FILE,Service Area Categorisation,Service Division Categorisation,Responsible Unit,Unit Code,Expenses Type,Expenses Sub Type,Expense  Code,Detailed Expenses Type,Transaction No,Amount,Invoice Date,Capital/Revenue,Supplier Name
2012 - SEP,Central Services,Fully rechargeable Overheads,Local Involvement Network               ,A01039,Third Party Payments          ,Private Contractors           ,EH10,Contract Payments,1,"8,342.91",6/9/2012,R,MERTON VOLUNTARY SERV COUNCIL 
2012 - SEP,Cultural Env Reg&Plan Services,Comm. Safety (Crime Reduction),Crime and Strategy Team                 ,A01100,Third Party Payments          ,Private Contractors           ,EH02,Miscellaneous Hired Services,2,"19,000.00",8/31/2012,R,VICTIM SUPPORT                
2012 - SEP,Cultural Env Reg&Plan Services,Comm. Safety (Crime Reduction),Crime and Strategy Team                 ,A01100,Third Party Payments          ,Private Contractors           ,EH02,Miscellaneous Hired Services,3,650,4/9/2012,R,REDACTED
2012 - SEP,Cultural Env Reg&Plan Services,Comm. Safety (Crime Reduction),CCTV                                    ,A01200,Supplies & Services           ,Equip Furniture/Materials     ,DA01,Equipment - R & M,4,"1,220.00",8/28/2012,R,COMPUTER POWER PROTECTION     
2012 - SEP,Adult Social Care,Other Adult Services,Access and Engagement                   ,A01302,Third Party Payments          ,Private Contractors           ,EH02,Miscellaneous Hired Services,5,"7,462.50",1/9/2012,R,ADDACTION KINGSTON            
2012 - SEP,Central Services,Fully rechargeable Overheads,STATUTORY MARKETING & COMM          ,A02018,Supplies & Services           ,Prntng Stnry Gen Off Exp      ,DE02,General Publications,6,784,8/23/2012,R,LEXIS NEXIS                   
2012 - SEP,Central Services,Fully rechargeable Overheads,STATUTORY MARKETING & COMM          ,A02018,Supplies & Services           ,Services                      ,DF02,Misc Advertising/Publicity,7,585.6,7/21/2012,R,NEWSQUEST (LONDON)LTD         
2012 - SEP,Central Services,Fully rechargeable Overheads,STATUTORY MARKETING & COMM          ,A02018,Supplies & Services           ,Services                      ,DF02,Misc Advertising/Publicity,8,831.6,8/31/2012,R,NEWSQUEST (LONDON)LTD         
2012 - SEP,Central Services,Fully rechargeable Overheads,NON-STATUTORY MARKETING & COMM ,A02019,Supplies & Services           ,Services                      ,DF35,Graphic Design,9,609.38,8/20/2012,R,PANACEA SOFTWARE LTD          
2012 - SEP,Central Services,Fully rechargeable Overheads,NON-STATUTORY MARKETING & COMM ,A02019,Supplies & Services           ,Services                      ,DF35,Graphic Design,10,"1,421.26",8/28/2012,R,PANACEA SOFTWARE LTD          
2012 - SEP,Central Services,Fully rechargeable Overheads,NON-STATUTORY MARKETING & COMM ,A02019,Supplies & Services           ,Services                      ,DF35,Graphic Design,11,"2,925.00",9/14/2012,R,THE BIG IDEA 
2012 - SEP,Central Services,Fully rechargeable Overheads,NON-STATUTORY MARKETING & COMM ,A02019,Supplies & Services           ,Services                      ,DF35,Graphic Design,12,845,9/25/2012,R,STUDIO ELEVEN LTD             
2012 - SEP,Central Services,Fully rechargeable Overheads,Democratic Services                     ,A02023,Employees                     ,Direct Employee Expenses      ,AA17,Agency Staff & Casual Paymts,13,607.5,5/9/2012,R,REDACTED
2012 - SEP,Central Services,Fully rechargeable Overheads,Democratic Services                     ,A02023,Supplies & Services           ,Expenses                      ,DH78,Outgoing Mayor (April-May),14,"1,026.50",4/23/2012,R,FACILITIES MANAGEMENT CATERING
2012 - SEP,Central Services,Fully rechargeable Overheads,Press and Public Relations.             ,A02026,Employees                     ,Direct Employee Expenses      ,AA17,Agency Staff & Casual Paymts,15,881.4,8/28/2012,R,HAYS RECRUITING EXPERTS       
2012 - SEP,Central Services,Fully rechargeable Overheads,Press and Public Relations.             ,A02026,Employees                     ,Direct Employee Expenses      ,AA17,Agency Staff & Casual Paymts,16,904,11/9/2012,R,HAYS RECRUITING EXPERTS       
2012 - SEP,Central Services,Fully rechargeable Overheads,Press and Public Relations.             ,A02026,Employees                     ,Direct Employee Expenses      ,AA17,Agency Staff & Casual Paymts,17,757.1,11/9/2012,R,HAYS RECRUITING EXPERTS       
2012 - SEP,Cultural Env Reg&Plan Services,Culture & Heritage,Mitcham Carnival                        ,A02030,Supplies & Services           ,Services                      ,DF09,Miscellaneous Fees,18,995,2/6/2012,R,ABLE MARQUEES                 
2012 - SEP,CS -Oth Operating Inc & Expend,Trading A/c Surpluses/Deficits,Prtng Jobs - Ext Agncy                  ,A03041,Supplies & Services           ,Prntng Stnry Gen Off Exp      ,DE01,External Printing,19,"1,152.00",9/25/2012,R,THE STATIONERY OFFICE LTD     
2012 - SEP,CS -Oth Operating Inc & Expend,Trading A/c Surpluses/Deficits,PrintUnit-HighVolPhtcopying             ,A03042,Third Party Payments          ,Private Contractors           ,EH02,Miscellaneous Hired Services,20,"4,328.62",9/14/2012,R,OCE (UK) LTD                  
2012 - SEP,CS -Oth Operating Inc & Expend,Trading A/c Surpluses/Deficits,Translation Services                    ,A04060,Supplies & Services           ,Services                      ,DF45,Payment of Sessional workers,21,"1,926.00",8/31/2012,R,REDACTED
2012 - SEP,Central Services,Fully rechargeable Overheads,Merton Link                             ,A04070,Employees                     ,Indirect Employee Expenses    ,AB57,External Training Costs,22,"1,595.00",8/29/2012,R,TIC SAFETY                    
2012 - SEP,Central Services,Fully rechargeable Overheads,Merton Link                             ,A04070,Supplies & Services           ,Comms and Computing           ,DG15,Network Maintenance,23,"1,125.20",3/9/2012,R,NORTHGATE INFORMATION SOLUTION
2012 - SEP,Central Services,Fully rechargeable Overheads,Learning and Development                ,B06146,Employees                     ,Indirect Employee Expenses    ,AB57,External Training Costs,24,572.5,8/15/2012,R,OPP UNLOCKING POTENTIAL       
2012 - SEP,CS -Oth Operating Inc & Expend,Trading A/c Surpluses/Deficits,CHAS Scheme                             ,B06150,Premises Related Expenditure  ,Rents                         ,BC03,Room/venue rental hire,25,"1,950.00",8/15/2012,R,BSI                           
2012 - SEP,CS -Oth Operating Inc & Expend,Trading A/c Surpluses/Deficits,CHAS Scheme                             ,B06150,Supplies & Services           ,Services                      ,DF88,Assessor Fees,26,682,8/21/2012,R,MCG HEALTH & SAFETY LTD       
2012 - SEP,CS -Oth Operating Inc & Expend,Trading A/c Surpluses/Deficits,CHAS Scheme                             ,B06150,Supplies & Services           ,Services                      ,DF88,Assessor Fees,27,562,8/25/2012,R,REDACTED
2012 - SEP,CS -Oth Operating Inc & Expend,Trading A/c Surpluses/Deficits,CHAS Scheme                             ,B06150,Supplies & Services           ,Services                      ,DF88,Assessor Fees,28,"1,063.00",8/20/2012,R,TERN ASSOCIATES LTD           
2012 - SEP,CS -Oth Operating Inc & Expend,Trading A/c Surpluses/Deficits,CHAS Scheme                             ,B06150,Supplies & Services           ,Services                      ,DF88,Assessor Fees,29,"2,401.00",8/15/2012,R,REDACTED
2012 - SEP,CS -Oth Operating Inc & Expend,Trading A/c Surpluses/Deficits,CHAS Scheme                             ,B06150,Supplies & Services           ,Services                      ,DF88,Assessor Fees,30,649,8/24/2012,R,REDACTED
2012 - SEP,CS -Oth Operating Inc & Expend,Trading A/c Surpluses/Deficits,CHAS Scheme                             ,B06150,Supplies & Services           ,Services                      ,DF88,Assessor Fees,31,595,8/27/2012,R,REDACTED
2012 - SEP,CS -Oth Operating Inc & Expend,Trading A/c Surpluses/Deficits,CHAS Scheme                             ,B06150,Supplies & Services           ,Services                      ,DF88,Assessor Fees,32,"4,005.00",7/31/2012,R,HOLLYGLADE LTD T/A BEACONRISK 
2012 - SEP,CS -Oth Operating Inc & Expend,Trading A/c Surpluses/Deficits,CHAS Scheme                             ,B06150,Supplies & Services           ,Services                      ,DF88,Assessor Fees,33,"1,752.00",8/28/2012,R,REDACTED
2012 - SEP,CS -Oth Operating Inc & Expend,Trading A/c Surpluses/Deficits,CHAS Scheme                             ,B06150,Supplies & Services           ,Services                      ,DF88,Assessor Fees,34,"1,284.00",2/9/2012,R,REDACTED
2012 - SEP,CS -Oth Operating Inc & Expend,Trading A/c Surpluses/Deficits,CHAS Scheme                             ,B06150,Supplies & Services           ,Services                      ,DF88,Assessor Fees,35,"4,193.00",1/9/2012,R,ARC ASSOCIATES (UK)           
2012 - SEP,CS -Oth Operating Inc & Expend,Trading A/c Surpluses/Deficits,CHAS Scheme                             ,B06150,Supplies & Services           ,Services                      ,DF88,Assessor Fees,36,557.98,8/31/2012,R,REDACTED
2012 - SEP,CS -Oth Operating Inc & Expend,Trading A/c Surpluses/Deficits,CHAS Scheme                             ,B06150,Supplies & Services           ,Services                      ,DF88,Assessor Fees,37,501,8/31/2012,R,REDACTED
2012 - SEP,CS -Oth Operating Inc & Expend,Trading A/c Surpluses/Deficits,CHAS Scheme                             ,B06150,Supplies & Services           ,Services                      ,DF88,Assessor Fees,38,548,1/9/2012,R,REDACTED
2012 - SEP,CS -Oth Operating Inc & Expend,Trading A/c Surpluses/Deficits,CHAS Scheme                             ,B06150,Supplies & Services           ,Services                      ,DF88,Assessor Fees,39,588,8/31/2012,R,REDACTED
2012 - SEP,CS -Oth Operating Inc & Expend,Trading A/c Surpluses/Deficits,CHAS Scheme                             ,B06150,Supplies & Services           ,Services                      ,DF88,Assessor Fees,40,"2,053.00",3/9/2012,R,MGW SAFETY SERVICES           
2012 - SEP,CS -Oth Operating Inc & Expend,Trading A/c Surpluses/Deficits,CHAS Scheme                             ,B06150,Supplies & Services           ,Services                      ,DF88,Assessor Fees,41,"2,328.00",1/9/2012,R,REDACTED
2012 - SEP,CS -Oth Operating Inc & Expend,Trading A/c Surpluses/Deficits,CHAS Scheme                             ,B06150,Supplies & Services           ,Services                      ,DF88,Assessor Fees,42,"1,799.00",8/28/2012,R,WOODS CONSULTANCY SERVICES LTD
2012 - SEP,CS -Oth Operating Inc & Expend,Trading A/c Surpluses/Deficits,CHAS Scheme                             ,B06150,Supplies & Services           ,Services                      ,DF88,Assessor Fees,43,863,3/9/2012,R,REDACTED
2012 - SEP,CS -Oth Operating Inc & Expend,Trading A/c Surpluses/Deficits,CHAS Scheme                             ,B06150,Supplies & Services           ,Services                      ,DF88,Assessor Fees,44,"2,608.00",8/31/2012,R,SOUTH EAST HEALTH & SAFETY LTD
2012 - SEP,CS -Oth Operating Inc & Expend,Trading A/c Surpluses/Deficits,CHAS Scheme                             ,B06150,Supplies & Services           ,Services                      ,DF88,Assessor Fees,45,"1,317.00",8/31/2012,R,REDACTED
2012 - SEP,CS -Oth Operating Inc & Expend,Trading A/c Surpluses/Deficits,CHAS Scheme                             ,B06150,Supplies & Services           ,Services                      ,DF88,Assessor Fees,46,"1,204.00",8/31/2012,R,REDACTED
2012 - SEP,CS -Oth Operating Inc & Expend,Trading A/c Surpluses/Deficits,CHAS Scheme                             ,B06150,Supplies & Services           ,Services                      ,DF88,Assessor Fees,47,675,1/8/2012,R,REDACTED
2012 - SEP,CS -Oth Operating Inc & Expend,Trading A/c Surpluses/Deficits,CHAS Scheme                             ,B06150,Supplies & Services           ,Services                      ,DF88,Assessor Fees,48,689,8/31/2012,R,REDACTED
2012 - SEP,CS -Oth Operating Inc & Expend,Trading A/c Surpluses/Deficits,CHAS Scheme                             ,B06150,Supplies & Services           ,Services                      ,DF88,Assessor Fees,49,"1,030.00",8/28/2012,R,SELECT SAFETY LIMITED         
2012 - SEP,CS -Oth Operating Inc & Expend,Trading A/c Surpluses/Deficits,CHAS Scheme                             ,B06150,Supplies & Services           ,Services                      ,DF88,Assessor Fees,50,"2,128.15",8/31/2012,R,REDACTED
2012 - SEP,CS -Oth Operating Inc & Expend,Trading A/c Surpluses/Deficits,CHAS Scheme                             ,B06150,Supplies & Services           ,Services                      ,DF88,Assessor Fees,51,602,8/31/2012,R,REDACTED
2012 - SEP,CS -Oth Operating Inc & Expend,Trading A/c Surpluses/Deficits,CHAS Scheme                             ,B06150,Supplies & Services           ,Services                      ,DF88,Assessor Fees,52,642,4/9/2012,R,REDACTED
2012 - SEP,CS -Oth Operating Inc & Expend,Trading A/c Surpluses/Deficits,CHAS Scheme                             ,B06150,Supplies & Services           ,Services                      ,DF88,Assessor Fees,53,"3,019.00",8/31/2012,R,STALLARD KANE ASSOCIATES LTD  
2012 - SEP,CS -Oth Operating Inc & Expend,Trading A/c Surpluses/Deficits,CHAS Scheme                             ,B06150,Supplies & Services           ,Services                      ,DF88,Assessor Fees,54,649,8/9/2012,R,REDACTED
2012 - SEP,CS -Oth Operating Inc & Expend,Trading A/c Surpluses/Deficits,CHAS Scheme                             ,B06150,Supplies & Services           ,Services                      ,DF88,Assessor Fees,55,508,8/31/2012,R,REDACTED
2012 - SEP,CS -Oth Operating Inc & Expend,Trading A/c Surpluses/Deficits,CHAS Scheme                             ,B06150,Supplies & Services           ,Services                      ,DF88,Assessor Fees,56,515,8/31/2012,R,REDACTED
2012 - SEP,CS -Oth Operating Inc & Expend,Trading A/c Surpluses/Deficits,CHAS Scheme                             ,B06150,Supplies & Services           ,Services                      ,DF88,Assessor Fees,57,983,7/9/2012,R,REDACTED
2012 - SEP,CS -Oth Operating Inc & Expend,Trading A/c Surpluses/Deficits,CHAS Scheme                             ,B06150,Supplies & Services           ,Services                      ,DF88,Assessor Fees,58,548,5/9/2012,R,REDACTED
2012 - SEP,CS -Oth Operating Inc & Expend,Trading A/c Surpluses/Deficits,CHAS Scheme                             ,B06150,Supplies & Services           ,Services                      ,DF88,Assessor Fees,59,"3,659.00",8/31/2012,R,ALIMOR SAFETY LTD             
2012 - SEP,CS -Oth Operating Inc & Expend,Trading A/c Surpluses/Deficits,CHAS Scheme                             ,B06150,Supplies & Services           ,Services                      ,DF88,Assessor Fees,60,"2,041.00",11/9/2012,R,REDACTED
2012 - SEP,CS -Oth Operating Inc & Expend,Trading A/c Surpluses/Deficits,CHAS Scheme                             ,B06150,Supplies & Services           ,Services                      ,DF88,Assessor Fees,61,"1,305.00",8/31/2012,R,REDACTED
2012 - SEP,CS -Oth Operating Inc & Expend,Trading A/c Surpluses/Deficits,CHAS Scheme                             ,B06150,Supplies & Services           ,Services                      ,DF88,Assessor Fees,62,875,11/9/2012,R,REDACTED
2012 - SEP,CS -Oth Operating Inc & Expend,Trading A/c Surpluses/Deficits,CHAS Scheme                             ,B06150,Supplies & Services           ,Services                      ,DF88,Assessor Fees,63,"1,228.00",7/28/2012,R,WOODS CONSULTANCY SERVICES LTD
2012 - SEP,CS -Oth Operating Inc & Expend,Trading A/c Surpluses/Deficits,CHAS Scheme                             ,B06150,Supplies & Services           ,Services                      ,DF88,Assessor Fees,64,"2,474.00",8/31/2012,R,REDACTED
2012 - SEP,CS -Oth Operating Inc & Expend,Trading A/c Surpluses/Deficits,CHAS Scheme                             ,B06150,Supplies & Services           ,Services                      ,DF88,Assessor Fees,65,"1,371.00",8/31/2012,R,2ND NATURE SAFETY SOLUTIONS UK
2012 - SEP,CS -Oth Operating Inc & Expend,Trading A/c Surpluses/Deficits,CHAS Scheme                             ,B06150,Supplies & Services           ,Services                      ,DF88,Assessor Fees,66,555,9/16/2012,R,REDACTED
2012 - SEP,CS -Oth Operating Inc & Expend,Trading A/c Surpluses/Deficits,CHAS Scheme                             ,B06150,Supplies & Services           ,Services                      ,DF88,Assessor Fees,67,562,8/31/2012,R,REDACTED
2012 - SEP,CS -Oth Operating Inc & Expend,Trading A/c Surpluses/Deficits,CHAS Scheme                             ,B06150,Supplies & Services           ,Services                      ,DF88,Assessor Fees,68,936,10/9/2012,R,WEST WALES SAFETY SERVICES    
2012 - SEP,CS -Oth Operating Inc & Expend,Trading A/c Surpluses/Deficits,CHAS Scheme                             ,B06150,Supplies & Services           ,Services                      ,DF88,Assessor Fees,69,610,6/29/2012,R,STALLARD KANE ASSOCIATES LTD  
2012 - SEP,CS -Oth Operating Inc & Expend,Trading A/c Surpluses/Deficits,CHAS Scheme                             ,B06150,Supplies & Services           ,Services                      ,DF88,Assessor Fees,70,"1,524.00",11/9/2012,R,REDACTED
2012 - SEP,CS -Oth Operating Inc & Expend,Trading A/c Surpluses/Deficits,CHAS Scheme                             ,B06150,Supplies & Services           ,Services                      ,DF88,Assessor Fees,71,"1,458.00",6/9/2012,R,REDACTED
2012 - SEP,CS -Oth Operating Inc & Expend,Trading A/c Surpluses/Deficits,CHAS Scheme                             ,B06150,Supplies & Services           ,Services                      ,DF88,Assessor Fees,72,983,9/13/2012,R,REDACTED
2012 - SEP,CS -Oth Operating Inc & Expend,Trading A/c Surpluses/Deficits,CHAS Scheme                             ,B06150,Supplies & Services           ,Services                      ,DF88,Assessor Fees,73,"1,093.00",4/9/2012,R,REDACTED
2012 - SEP,CS -Oth Operating Inc & Expend,Trading A/c Surpluses/Deficits,CHAS Scheme                             ,B06150,Supplies & Services           ,Services                      ,DF88,Assessor Fees,74,"1,618.00",12/9/2012,R,REDACTED
2012 - SEP,CS -Oth Operating Inc & Expend,Trading A/c Surpluses/Deficits,CHAS Scheme                             ,B06150,Supplies & Services           ,Services                      ,DF88,Assessor Fees,75,"1,820.00",9/14/2012,R,ARC ASSOCIATES (UK)           
2012 - SEP,CS -Oth Operating Inc & Expend,Trading A/c Surpluses/Deficits,CHAS Scheme                             ,B06150,Supplies & Services           ,Services                      ,DF88,Assessor Fees,76,"1,418.00",9/18/2012,R,TERN ASSOCIATES LTD           
2012 - SEP,CS -Oth Operating Inc & Expend,Trading A/c Surpluses/Deficits,CHAS Scheme                             ,B06150,Supplies & Services           ,Services                      ,DF88,Assessor Fees,77,"1,083.55",10/9/2012,R,REDACTED
2012 - SEP,CS -Oth Operating Inc & Expend,Trading A/c Surpluses/Deficits,CHAS Scheme                             ,B06150,Supplies & Services           ,Services                      ,DF88,Assessor Fees,78,"1,718.00",8/31/2012,R,REDACTED
2012 - SEP,CS -Oth Operating Inc & Expend,Trading A/c Surpluses/Deficits,CHAS Scheme                             ,B06150,Supplies & Services           ,Services                      ,DF88,Assessor Fees,79,647.3,9/16/2012,R,REDACTED
2012 - SEP,CS -Oth Operating Inc & Expend,Trading A/c Surpluses/Deficits,CHAS Scheme                             ,B06150,Supplies & Services           ,Services                      ,DF88,Assessor Fees,80,"1,023.00",9/17/2012,R,REDACTED
2012 - SEP,CS -Oth Operating Inc & Expend,Trading A/c Surpluses/Deficits,CHAS Scheme                             ,B06150,Supplies & Services           ,Services                      ,DF88,Assessor Fees,81,644.7,9/23/2012,R,REDACTED
2012 - SEP,CS -Oth Operating Inc & Expend,Trading A/c Surpluses/Deficits,CHAS Scheme                             ,B06150,Supplies & Services           ,Services                      ,DF88,Assessor Fees,82,562,9/19/2012,R,MCG HEALTH & SAFETY LTD       
2012 - SEP,CS -Oth Operating Inc & Expend,Trading A/c Surpluses/Deficits,CHAS Scheme                             ,B06150,Supplies & Services           ,Services                      ,DF88,Assessor Fees,83,"1,277.00",8/31/2012,R,REDACTED
2012 - SEP,CS -Oth Operating Inc & Expend,Trading A/c Surpluses/Deficits,CHAS Scheme                             ,B06150,Supplies & Services           ,Services                      ,DF88,Assessor Fees,84,"2,681.00",9/18/2012,R,REDACTED
2012 - SEP,CS -Oth Operating Inc & Expend,Trading A/c Surpluses/Deficits,CHAS Scheme                             ,B06150,Supplies & Services           ,Services                      ,DF88,Assessor Fees,85,"2,380.00",9/20/2012,R,HOLLYGLADE LTD T/A BEACONRISK 
2012 - SEP,CS -Oth Operating Inc & Expend,Trading A/c Surpluses/Deficits,CHAS Scheme                             ,B06150,Supplies & Services           ,Services                      ,DF88,Assessor Fees,86,"1,044.00",9/21/2012,R,REDACTED
2012 - SEP,CS -Oth Operating Inc & Expend,Trading A/c Surpluses/Deficits,CHAS Scheme                             ,B06150,Supplies & Services           ,Services                      ,DF88,Assessor Fees,87,515,9/19/2012,R,REDACTED
2012 - SEP,CS -Oth Operating Inc & Expend,Trading A/c Surpluses/Deficits,CHAS Scheme                             ,B06150,Supplies & Services           ,Services                      ,DF88,Assessor Fees,88,"1,289.00",11/9/2012,R,REDACTED
2012 - SEP,,,CCTV (match funding)                    ,CE002EA,Vehicles Plant Equipment and Machinery,0,D3,Equipment,89,"1,592.00",6/15/2012,C,INTECH FURNITURE              
2012 - SEP,,,Disabled Facilities Grant DCLG          ,CE004RA,Other Capital Expenditure,0,E1,Grants,90,"3,422.00",6/9/2012,C,URBAN CONSTRUCTION            
2012 - SEP,,,Disabled Facilities Grant DCLG          ,CE004RA,Other Capital Expenditure,0,E1,Grants,91,"2,177.66",6/9/2012,C,REDACTED
2012 - SEP,,,Disabled Facilities Grant DCLG          ,CE004RA,Other Capital Expenditure,0,E1,Grants,92,"2,372.50",12/9/2012,C,STAYING FIRST                 
2012 - SEP,,,Disabled Facilities Grant DCLG          ,CE004RA,Other Capital Expenditure,0,E1,Grants,93,"5,650.00",12/9/2012,C,FREEWAY LIFT SERVICES LTD     
2012 - SEP,,,Disabled Facilities Grant DCLG          ,CE004RA,Other Capital Expenditure,0,E1,Grants,94,"6,740.00",12/9/2012,C,TBS ADAPTATIONS LTD           
2012 - SEP,,,Disabled Facilities Grant DCLG          ,CE004RA,Other Capital Expenditure,0,E1,Grants,95,"5,150.00",9/13/2012,C,ZAIMAJ CONSTRUCTION           
2012 - SEP,,,Disabled Facilities Grant DCLG          ,CE004RA,Other Capital Expenditure,0,E1,Grants,96,"1,863.19",9/20/2012,C,ABLE 2 OCCUP.THERAPY SERV.LTD 
2012 - SEP,,,Disabled Facilities Grant DCLG          ,CE004RA,Other Capital Expenditure,0,E1,Grants,97,"2,161.17",9/20/2012,C,ABLE 2 OCCUP.THERAPY SERV.LTD 
2012 - SEP,,,Disabled Facilities Grant DCLG          ,CE004RA,Other Capital Expenditure,0,E1,Grants,98,"13,195.00",9/20/2012,C,R.E.B.BUILDERS                
2012 - SEP,,,Disabled Facilities Grant DCLG          ,CE004RA,Other Capital Expenditure,0,E1,Grants,99,"3,895.00",9/20/2012,C,R.E.B.BUILDERS                
2012 - SEP,,,Disabled Facilities Grant DCLG          ,CE004RA,Other Capital Expenditure,0,E1,Grants,100,"4,042.50",9/22/2012,C,VISTA SCAPES                  
2012 - SEP,,,B487 Landscape Ravensbury Park          ,CE009CA,New Construction Conversion and Renovation,0,B4,Site Works - Contractor,101,"5,840.05",9/19/2012,C,CONCEPT BUILDING SERVICES LTD 
2012 - SEP,,,Bridge inspection - parks               ,CE009SA,New Construction Conversion and Renovation,0,B4,Site Works - Contractor,102,"3,200.00",9/13/2012,C,TAYLOR BUILDING COMPANY LTD   
2012 - SEP,,,Parks Investment                        ,CE013SA,New Construction Conversion and Renovation,0,B1,Design and Supervision - Consultants Fee,103,"1,245.35",6/15/2012,C,GROUNDWORK LONDON LTD.        
2012 - SEP,,,Parks Investment                        ,CE013SA,New Construction Conversion and Renovation,0,B4,Site Works - Contractor,104,"1,784.00",8/21/2012,C,TAYLOR BUILDING COMPANY LTD   
2012 - SEP,,,Parks Investment                        ,CE013SA,New Construction Conversion and Renovation,0,B4,Site Works - Contractor,105,"6,749.00",8/30/2012,C,LA BELLE ROOFING CO LTD       
2012 - SEP,,,Parks Investment                        ,CE013SA,New Construction Conversion and Renovation,0,B4,Site Works - Contractor,106,"2,370.00",8/29/2012,C,TAYLOR BUILDING COMPANY LTD   
2012 - SEP,,,Parks Investment                        ,CE013SA,New Construction Conversion and Renovation,0,B4,Site Works - Contractor,107,"58,730.35",8/14/2012,C,BLAKEDOWN SPORT & PLAY LTD    
2012 - SEP,,,Surface Water Drainage                  ,CE024FA,New Construction Conversion and Renovation,0,B4,Site Works - Contractor,108,"3,204.17",8/28/2012,C,FM CONWAY LTD                 
2012 - SEP,,,Highways bridges & structures           ,CE025FA,New Construction Conversion and Renovation,0,B4,Site Works - Contractor,109,"5,278.21",8/31/2012,C,FM CONWAY LTD                 
2012 - SEP,,,Highways bridges & structures           ,CE025FA,New Construction Conversion and Renovation,0,B4,Site Works - Contractor,110,"49,310.86",8/30/2012,C,FM CONWAY LTD                 
2012 - SEP,,,Highways bridges & structures           ,CE025FA,New Construction Conversion and Renovation,0,B6,Site Works - Other Costs,111,"3,740.00",3/9/2012,C,TRANSPORT FOR LONDON          
2012 - SEP,,,Borough Roads Maintenance               ,CE026FA,New Construction Conversion and Renovation,0,B4,Site Works - Contractor,112,"5,083.90",8/28/2012,C,FM CONWAY LTD                 
2012 - SEP,,,Repairs to Footways                     ,CE029FA,New Construction Conversion and Renovation,0,B4,Site Works - Contractor,113,"30,000.00",8/28/2012,C,FM CONWAY LTD                 
2012 - SEP,,,Repairs to Footways                     ,CE029FA,New Construction Conversion and Renovation,0,B4,Site Works - Contractor,114,"20,000.00",8/28/2012,C,FM CONWAY LTD                 
2012 - SEP,,,Repairs to Footways                     ,CE029FA,New Construction Conversion and Renovation,0,B4,Site Works - Contractor,115,"2,834.12",8/28/2012,C,FM CONWAY LTD                 
2012 - SEP,,,Repairs to Footways                     ,CE029FA,New Construction Conversion and Renovation,0,B4,Site Works - Contractor,116,"1,000.99",11/9/2012,C,FM CONWAY LTD                 
2012 - SEP,,,Repairs to Footways                     ,CE029FA,New Construction Conversion and Renovation,0,B4,Site Works - Contractor,117,"22,338.99",11/9/2012,C,FM CONWAY LTD                 
2012 - SEP,,,Repairs to Footways                     ,CE029FA,New Construction Conversion and Renovation,0,B4,Site Works - Contractor,118,"-3,144.47",11/9/2012,C,FM CONWAY LTD                 
2012 - SEP,,,Repairs to Footways                     ,CE029FA,New Construction Conversion and Renovation,0,B4,Site Works - Contractor,119,"20,000.00",11/9/2012,C,FM CONWAY LTD                 
2012 - SEP,,,Leisure Centre Plant & Machine          ,CE038MA,New Construction Conversion and Renovation,0,B4,Site Works - Contractor,120,"2,852.37",7/26/2012,C,SALTASH ENTERPRISES LTD       
2012 - SEP,,,Garth Rd Workshop                       ,CE041AA,New Construction Conversion and Renovation,0,B4,Site Works - Contractor,121,"1,275.00",8/30/2012,C,BUXTON ASSOCS (CONS) ENG.LTD  
2012 - SEP,,,Garth Rd Workshop                       ,CE041AA,New Construction Conversion and Renovation,0,B4,Site Works - Contractor,122,"1,275.00",7/31/2012,C,BUXTON ASSOCS (CONS) ENG.LTD  
2012 - SEP,,,Street Lighting Replacement Pr          ,CE068FA,New Construction Conversion and Renovation,0,B4,Site Works - Contractor,123,-502.37,8/31/2012,C,MAY GURNEY LTD T/A CARTLEDGE  
2012 - SEP,,,Street Lighting Replacement Pr          ,CE068FA,New Construction Conversion and Renovation,0,B4,Site Works - Contractor,124,-521.63,8/31/2012,C,MAY GURNEY LTD T/A CARTLEDGE  
2012 - SEP,,,Area Traffic calming measures           ,CE070FA,New Construction Conversion and Renovation,0,B4,Site Works - Contractor,125,"-13,447.96",5/31/2012,C,FM CONWAY LTD                 
2012 - SEP,,,Traffic surveys & Investigatio          ,CE074FA,New Construction Conversion and Renovation,0,B4,Site Works - Contractor,126,"26,700.00",8/31/2012,C,FM CONWAY LTD                 
2012 - SEP,,,Traffic surveys & Safety Measu          ,CE075FA,New Construction Conversion and Renovation,0,B4,Site Works - Contractor,127,"49,840.00",8/31/2012,C,FM CONWAY LTD                 
2012 - SEP,,,B544 Wimbledon Station Access           ,CE085FL,New Construction Conversion and Renovation,0,B5,Site Works - Suppliers,128,"1,134.00",7/31/2012,C,NEONPALM LTD T/A URBAN ST PROD
2012 - SEP,,,Alley Gating Scheme - Fly Tip           ,CE087FA,Other Capital Expenditure,0,E1,Grants,129,952.65,9/14/2012,C,AGA GATING ASSOCIATION        
2012 - SEP,,,Waste Phase B - Replace RCVs            ,CE092EA,Vehicles Plant Equipment and Machinery,0,D1,Vehicles,130,"65,250.00",6/9/2012,C,KENT COUNTY COUNCIL           
2012 - SEP,,,School & Road Safety Campaigns          ,CE104RC,Other Capital Expenditure,0,E4,TFL Other,131,"4,805.00",12/9/2012,C,LIVING STREETS SERVICES LTD   
2012 - SEP,,,Bikeability cycle training Pro          ,CE104RG,Other Capital Expenditure,0,E4,TFL Other,132,616.5,8/31/2012,C,REDACTED
2012 - SEP,,,TFL Slippage - Corridors&Neigh          ,CE104RK,New Construction Conversion and Renovation,0,B4,Site Works - Contractor,133,"-5,023.21",5/31/2012,C,FM CONWAY LTD                 
2012 - SEP,,,TFL Slippage - Corridors&Neigh          ,CE104RK,New Construction Conversion and Renovation,0,B4,Site Works - Contractor,134,"22,379.90",11/9/2012,C,FM CONWAY LTD                 
2012 - SEP,,,TFL Slippage - Corridors&Neigh          ,CE104RK,New Construction Conversion and Renovation,0,B4,Site Works - Contractor,135,"17,620.10",11/9/2012,C,FM CONWAY LTD                 
2012 - SEP,,,Wim TC Accessibility & Streets          ,CE106FA,New Construction Conversion and Renovation,0,B2,Design and Supervision - Site Surveys,136,900,8/31/2012,C,SUNSHINE SURVEY               
2012 - SEP,,,Wim TC Accessibility & Streets          ,CE106FA,New Construction Conversion and Renovation,0,B4,Site Works - Contractor,137,"7,980.00",8/23/2012,C,FM CONWAY LTD                 
2012 - SEP,,,Universal Cold Busters                  ,CE120RA,Other Capital Expenditure,0,E1,Grants,138,"3,725.40",9/18/2012,C,CLIMATE ENERGY SOLUTIONS LTD  
2012 - SEP,,,Universal Cold Busters                  ,CE120RA,Other Capital Expenditure,0,E1,Grants,139,"3,089.10",9/18/2012,C,CLIMATE ENERGY SOLUTIONS LTD  
2012 - SEP,,,Universal Cold Busters                  ,CE120RA,Other Capital Expenditure,0,E1,Grants,140,507.96,9/18/2012,C,CLIMATE ENERGY LTD            
2012 - SEP,,,Universal Cold Busters                  ,CE120RA,Other Capital Expenditure,0,E1,Grants,141,"3,052.35",9/18/2012,C,CLAYDON HEATING               
2012 - SEP,,,Universal Cold Busters                  ,CE120RA,Other Capital Expenditure,0,E1,Grants,142,512.16,9/18/2012,C,CLIMATE ENERGY LTD            
2012 - SEP,,,Universal Cold Busters                  ,CE120RA,Other Capital Expenditure,0,E1,Grants,143,584.88,9/18/2012,C,CLIMATE ENERGY LTD            
2012 - SEP,,,Borough Support - Training              ,CE123RA,Other Capital Expenditure,0,E4,TFL Other,144,"1,390.00",9/14/2012,C,KNOWLEDGETRAIN                
2012 - SEP,,,Civic Centre refurbishment              ,CF001AB,New Construction Conversion and Renovation,0,B4,Site Works - Contractor,145,"1,980.75",11/30/2011,C,EDE'S (U.K.) LTD              
2012 - SEP,,,Civic Centre refurbishment              ,CF001AB,New Construction Conversion and Renovation,0,B4,Site Works - Contractor,146,720,11/30/2011,C,EDE'S (U.K.) LTD              
2012 - SEP,,,Civic Centre refurbishment              ,CF001AB,New Construction Conversion and Renovation,0,B4,Site Works - Contractor,147,"9,447.41",8/15/2012,C,SALTASH ENTERPRISES LTD       
2012 - SEP,,,Civic Centre refurbishment              ,CF001AB,New Construction Conversion and Renovation,0,B4,Site Works - Contractor,148,"1,200.00",9/25/2012,C,SSD LIMITED                   
2012 - SEP,,,Invest to Save schemes-General          ,CF003SA,New Construction Conversion and Renovation,0,B4,Site Works - Contractor,149,"7,158.00",6/9/2012,C,THORLUX LIGHTING              
2012 - SEP,,,IT Equip Room-Air Conditioning          ,CF004EB,New Construction Conversion and Renovation,0,B4,Site Works - Contractor,150,"3,625.44",8/24/2012,C,COFELY LIMITED                
2012 - SEP,,,Fire Risk Assessment Wrks               ,CF004SJ,New Construction Conversion and Renovation,0,B4,Site Works - Contractor,151,500,7/26/2012,C,SALTASH ENTERPRISES LTD       
2012 - SEP,,,King George Field-Electric Wrk          ,CF006CB,New Construction Conversion and Renovation,0,B4,Site Works - Contractor,152,"1,122.71",8/17/2012,C,COFELY LIMITED                
2012 - SEP,,,Cannizaro Park Upgrade Paths,CGH37CD,New Construction Conversion and Renovation,0,2N,Capital main contractor payments,153,"4,225.00",12/9/2012,C,REDDINGTON & SONS             
2012 - SEP,,,Raynes Park Sports Pavilion             ,CS003CA,New Construction Conversion and Renovation,0,B4,Site Works - Contractor,154,"15,592.98",9/17/2012,C,LENGUARD LIMITED              
2012 - SEP,,,Raynes Park Sports Pavilion             ,CS003CA,New Construction Conversion and Renovation,0,B4,Site Works - Contractor,155,"88,307.02",9/17/2012,C,LENGUARD LIMITED              
2012 - SEP,,,Bishop Gilpin new classroom             ,CS003RA,New Construction Conversion and Renovation,0,B4,Site Works - Contractor,156,"54,956.55",9/9/2012,C,P R FREDDI LTD                
2012 - SEP,,,St Thomas of Canterbury Expnsn          ,CS007RA,New Construction Conversion and Renovation,0,B4,Site Works - Contractor,157,"7,830.00",10/9/2012,C,EXTRASPACE (NI) LTD           
2012 - SEP,,,Aragon expansion                        ,CS008AA,New Construction Conversion and Renovation,0,B1,Design and Supervision - Consultants Fee,158,"31,675.00",7/16/2012,C,HAVERSTOCK ASSOCIATES LLP     
2012 - SEP,,,Aragon expansion                        ,CS008AA,New Construction Conversion and Renovation,0,B4,Site Works - Contractor,159,"55,000.00",8/15/2012,C,R DURTNELL & SONS LTD         
2012 - SEP,,,St Mary's expansion                     ,CS008RA,New Construction Conversion and Renovation,0,B1,Design and Supervision - Consultants Fee,160,"4,421.20",8/29/2012,C,ATKINS LIMITED                
2012 - SEP,,,St Mary's expansion                     ,CS008RA,New Construction Conversion and Renovation,0,B1,Design and Supervision - Consultants Fee,161,"1,403.00",8/23/2012,C,ATKINS LIMITED                
2012 - SEP,,,St Mary's expansion                     ,CS008RA,New Construction Conversion and Renovation,0,B4,Site Works - Contractor,162,"5,474.12",4/9/2012,C,R DURTNELL & SONS LTD         
2012 - SEP,,,St Mary's expansion                     ,CS008RA,New Construction Conversion and Renovation,0,B4,Site Works - Contractor,163,"238,665.79",9/20/2012,C,R DURTNELL & SONS LTD         
2012 - SEP,,,Pupil Growth - Unallocated              ,CS008SA,New Construction Conversion and Renovation,0,B1,Design and Supervision - Consultants Fee,164,"5,850.00",9/14/2012,C,HAVERSTOCK ASSOCIATES LLP     
2012 - SEP,,,Pupil Growth - Unallocated              ,CS008SA,New Construction Conversion and Renovation,0,B1,Design and Supervision - Consultants Fee,165,"2,272.10",9/17/2012,C,ATKINS LIMITED                
2012 - SEP,,,Pupil Growth - Unallocated              ,CS008SA,New Construction Conversion and Renovation,0,B1,Design and Supervision - Consultants Fee,166,"3,229.22",9/17/2012,C,ATKINS LIMITED                
2012 - SEP,,,Pupil Growth - Unallocated              ,CS008SA,New Construction Conversion and Renovation,0,B4,Site Works - Contractor,167,"2,353.50",9/14/2012,C,GML CONSTRUCTION LTD          
2012 - SEP,,,Pupil Growth - Unallocated              ,CS008SA,New Construction Conversion and Renovation,0,B4,Site Works - Contractor,168,"10,421.50",9/14/2012,C,GML CONSTRUCTION LTD          
2012 - SEP,,,Pupil Growth - Unallocated              ,CS008SA,New Construction Conversion and Renovation,0,B4,Site Works - Contractor,169,"2,796.00",9/14/2012,C,GML CONSTRUCTION LTD          
2012 - SEP,,,Pupil Growth - Unallocated              ,CS008SA,New Construction Conversion and Renovation,0,B4,Site Works - Contractor,170,"32,709.32",9/14/2012,C,GML CONSTRUCTION LTD          
2012 - SEP,,,Benedict expansion                      ,CS009AA,New Construction Conversion and Renovation,0,B1,Design and Supervision - Consultants Fee,171,"15,000.00",8/30/2012,C,THE HOCA PRACTISE             
2012 - SEP,,,Benedict expansion                      ,CS009AA,New Construction Conversion and Renovation,0,B4,Site Works - Contractor,172,"60,443.79",10/9/2012,C,R DURTNELL & SONS LTD         
2012 - SEP,,,Benedict expansion                      ,CS009AA,New Construction Conversion and Renovation,0,B4,Site Works - Contractor,173,"9,112.30",10/9/2012,C,R DURTNELL & SONS LTD         
2012 - SEP,,,Temp classroom for 5 schools            ,CS009EA,New Construction Conversion and Renovation,0,B4,Site Works - Contractor,174,"169,707.05",8/23/2012,C,THE MCAVOY GROUP              
2012 - SEP,,,Temp classroom for 5 schools            ,CS009EA,New Construction Conversion and Renovation,0,B4,Site Works - Contractor,175,"69,643.26",9/18/2012,C,THE MCAVOY GROUP              
2012 - SEP,,,Cranmer expansion                       ,CS010AA,New Construction Conversion and Renovation,0,B1,Design and Supervision - Consultants Fee,176,"56,030.87",8/31/2012,C,ATKINS LIMITED                
2012 - SEP,,,Joseph Hood Permanent Expansn           ,CS012AA,New Construction Conversion and Renovation,0,B1,Design and Supervision - Consultants Fee,177,"8,649.00",8/31/2012,C,HAVERSTOCK ASSOCIATES LLP     
2012 - SEP,,,Joseph Hood Permanent Expansn           ,CS012AA,New Construction Conversion and Renovation,0,B4,Site Works - Contractor,178,"570,000.00",11/9/2012,C,GEE CONSTRUCTION LTD          
2012 - SEP,,,Joseph Hood Permanent Expansn           ,CS012AA,New Construction Conversion and Renovation,0,B5,Site Works - Suppliers,179,"1,392.24",12/9/2012,C,BLUE CUBE CONNECTIONS LTD     
2012 - SEP,,,Joseph Hood Permanent Expansn           ,CS012AA,New Construction Conversion and Renovation,0,B6,Site Works - Other Costs,180,"19,130.00",9/13/2012,C,EDE'S (U.K.) LTD              
2012 - SEP,,,Garden PCP                              ,CS013AA,New Construction Conversion and Renovation,0,B4,Site Works - Contractor,181,"229,072.05",8/29/2012,C,R DURTNELL & SONS LTD         
2012 - SEP,,,Garden PCP                              ,CS013AA,Vehicles Plant Equipment and Machinery,0,D3,Equipment,182,"9,500.00",9/8/2012,C,MM-ICT LIMITED                
2012 - SEP,,,Links - Security&Lighting&Heat          ,CS014AB,New Construction Conversion and Renovation,0,B1,Design and Supervision - Consultants Fee,183,"1,867.84",8/31/2012,C,EC HARRIS LLP                 
2012 - SEP,,,SS Peter & Paul PCP                     ,CS014RA,New Construction Conversion and Renovation,0,B4,Site Works - Contractor,184,"26,361.49",7/9/2012,C,GEE CONSTRUCTION LTD          
2012 - SEP,,,St Marks PS-classroom lighting          ,CS015AC,New Construction Conversion and Renovation,0,B1,Design and Supervision - Consultants Fee,185,"1,294.30",8/31/2012,C,EC HARRIS LLP                 
2012 - SEP,,,William Morris PCP                      ,CS016AA,New Construction Conversion and Renovation,0,B1,Design and Supervision - Consultants Fee,186,"12,498.26",9/17/2012,C,ATKINS LIMITED                
2012 - SEP,,,Gorringe Park expansion                 ,CS018AB,New Construction Conversion and Renovation,0,B4,Site Works - Contractor,187,"548,000.00",7/9/2012,C,GEE CONSTRUCTION LTD          
2012 - SEP,,,Gorringe Park expansion                 ,CS018AB,New Construction Conversion and Renovation,0,B6,Site Works - Other Costs,188,"7,920.00",9/13/2012,C,EDE'S (U.K.) LTD              
2012 - SEP,,,Hillcross School Expansion              ,CS020AC,New Construction Conversion and Renovation,0,B4,Site Works - Contractor,189,"26,493.86",8/31/2012,C,GML CONSTRUCTION LTD          
2012 - SEP,,,Hillcross - Fire alarm & roof           ,CS020AE,New Construction Conversion and Renovation,0,B1,Design and Supervision - Consultants Fee,190,"6,837.25",8/14/2012,C,EC HARRIS LLP                 
2012 - SEP,,,Hillcross - Fire alarm & roof           ,CS020AE,New Construction Conversion and Renovation,0,B4,Site Works - Contractor,191,"3,890.14",8/31/2012,C,GML CONSTRUCTION LTD          
2012 - SEP,,,Pelham School Expansion                 ,CS023AC,New Construction Conversion and Renovation,0,B4,Site Works - Contractor,192,"65,643.65",6/9/2012,C,UPRISE LIMITED                
2012 - SEP,,,Pelham - Window Replacement             ,CS023AD,New Construction Conversion and Renovation,0,B1,Design and Supervision - Consultants Fee,193,"7,212.71",8/14/2012,C,EC HARRIS LLP                 
2012 - SEP,,,Pelham - Window Replacement             ,CS023AD,New Construction Conversion and Renovation,0,B2,Design and Supervision - Site Surveys,194,720,7/22/2012,C,ARMSTRONG YORK                
2012 - SEP,,,Pelham - Window Replacement             ,CS023AD,New Construction Conversion and Renovation,0,B4,Site Works - Contractor,195,"11,604.02",6/9/2012,C,UPRISE LIMITED                
2012 - SEP,,,Stanford-Imprvement to toilets          ,CS024AC,New Construction Conversion and Renovation,0,B1,Design and Supervision - Consultants Fee,196,"1,296.14",8/31/2012,C,EC HARRIS LLP                 
2012 - SEP,,,Dundonald expansion                     ,CS031AC,New Construction Conversion and Renovation,0,B1,Design and Supervision - Consultants Fee,197,"3,555.00",8/31/2012,C,HAVERSTOCK ASSOCIATES LLP     
2012 - SEP,,,Dundonald expansion                     ,CS031AC,New Construction Conversion and Renovation,0,B2,Design and Supervision - Site Surveys,198,"1,369.60",7/16/2012,C,RSK ENVIRONMENT LTD           
2012 - SEP,,,St Ann's Primary Phase                  ,CS032AA,New Construction Conversion and Renovation,0,B4,Site Works - Contractor,199,"121,044.97",4/9/2012,C,R DURTNELL & SONS LTD         
2012 - SEP,,,St Ann's Primary Phase                  ,CS032AA,New Construction Conversion and Renovation,0,B4,Site Works - Contractor,200,"108,986.47",11/9/2012,C,R DURTNELL & SONS LTD         
2012 - SEP,,,St Ann's Primary Phase                  ,CS032AA,Vehicles Plant Equipment and Machinery,0,D3,Equipment,201,"27,025.00",7/9/2012,C,REDACTED
2012 - SEP,,,St Anns - Primary                       ,CS032AB,New Construction Conversion and Renovation,0,B4,Site Works - Contractor,202,680.34,1/9/2012,C,PORTAKABIN LIMITED            
2012 - SEP,,,Poplar Permanent Expansion              ,CS034AB,New Construction Conversion and Renovation,0,B2,Design and Supervision - Site Surveys,203,"1,327.50",9/7/2012,C,JMP CONSULTANTS LTD           
2012 - SEP,,,Poplar Permanent Expansion              ,CS034AB,New Construction Conversion and Renovation,0,B2,Design and Supervision - Site Surveys,204,780,8/31/2012,C,GROUND ENGINEERING            
2012 - SEP,,,Poplar Permanent Expansion              ,CS034AB,New Construction Conversion and Renovation,0,B4,Site Works - Contractor,205,"169,142.27",8/23/2012,C,THE MCAVOY GROUP              
2012 - SEP,,,Poplar Permanent Expansion              ,CS034AB,New Construction Conversion and Renovation,0,B4,Site Works - Contractor,206,"66,564.46",9/18/2012,C,THE MCAVOY GROUP              
2012 - SEP,,,Poplar - Repairs nursery roof           ,CS034AC,New Construction Conversion and Renovation,0,B1,Design and Supervision - Consultants Fee,207,"1,512.09",9/17/2012,C,ATKINS LIMITED                
2012 - SEP,,,Poplar - Repairs nursery roof           ,CS034AC,New Construction Conversion and Renovation,0,B1,Design and Supervision - Consultants Fee,208,"8,463.00",9/17/2012,C,ATKINS LIMITED                
2012 - SEP,,,Liberty Primary School                  ,CS036AA,New Construction Conversion and Renovation,0,B1,Design and Supervision - Consultants Fee,209,"3,581.62",8/14/2012,C,EC HARRIS LLP                 
2012 - SEP,,,Liberty Primary School                  ,CS036AA,New Construction Conversion and Renovation,0,B2,Design and Supervision - Site Surveys,210,525,6/30/2012,C,REDACTED
2012 - SEP,,,Liberty Primary School                  ,CS036AA,New Construction Conversion and Renovation,0,B4,Site Works - Contractor,211,"17,915.10",6/7/2012,C,MOY CONSTRUCTION CO LTD       
2012 - SEP,,,Liberty expansion                       ,CS036AB,New Construction Conversion and Renovation,0,B1,Design and Supervision - Consultants Fee,212,"19,011.67",8/31/2012,C,ATKINS LIMITED                
2012 - SEP,,,Liberty expansion                       ,CS036AB,New Construction Conversion and Renovation,0,B4,Site Works - Contractor,213,"294,614.33",8/21/2012,C,R DURTNELL & SONS LTD         
2012 - SEP,,,Liberty expansion                       ,CS036AB,New Construction Conversion and Renovation,0,B5,Site Works - Suppliers,214,"2,327.14",6/9/2012,C,BLUE CUBE CONNECTIONS LTD     
2012 - SEP,,,Liberty expansion                       ,CS036AB,New Construction Conversion and Renovation,0,B6,Site Works - Other Costs,215,"11,315.00",9/13/2012,C,EDE'S (U.K.) LTD              
2012 - SEP,,,Lonesome IGC                            ,CS038AA,New Construction Conversion and Renovation,0,B1,Design and Supervision - Consultants Fee,216,"7,846.37",4/9/2012,C,CURL LA TOURELLE ARCHITECTS   
2012 - SEP,,,Adventure Playground                    ,CS038AB,New Construction Conversion and Renovation,0,B1,Design and Supervision - Consultants Fee,217,694.15,8/21/2012,C,CURL LA TOURELLE ARCHITECTS   
2012 - SEP,,,Singlegate expansion                    ,CS049AA,New Construction Conversion and Renovation,0,B1,Design and Supervision - Consultants Fee,218,"50,774.00",8/17/2012,C,HAVERSTOCK ASSOCIATES LLP     
2012 - SEP,,,Wimbledon Park expansion                ,CS050AA,New Construction Conversion and Renovation,0,B1,Design and Supervision - Consultants Fee,219,"2,400.00",8/31/2012,C,SYNERGY CPC LLP               
2012 - SEP,,,Wimbledon Park expansion                ,CS050AA,New Construction Conversion and Renovation,0,B1,Design and Supervision - Consultants Fee,220,"24,815.74",11/9/2012,C,CURL LA TOURELLE ARCHITECTS   
2012 - SEP,,,Wimbledon Park expansion                ,CS050AA,New Construction Conversion and Renovation,0,B1,Design and Supervision - Consultants Fee,221,960,9/17/2012,C,RJF LANDSCAPE CONSULTANTS     
2012 - SEP,,,Wimbledon Park expansion                ,CS050AA,New Construction Conversion and Renovation,0,B2,Design and Supervision - Site Surveys,222,"4,350.00",8/31/2012,C,MIDDLEMARCH ENVIRONMENTAL LTD 
2012 - SEP,,,Wimbledon Park expansion                ,CS050AA,New Construction Conversion and Renovation,0,B2,Design and Supervision - Site Surveys,223,500,5/9/2012,C,KINGSLAND SURVEYORS LTD       
2012 - SEP,,,Wimbledon Park expansion                ,CS050AA,New Construction Conversion and Renovation,0,B4,Site Works - Contractor,224,"171,241.28",4/9/2012,C,GEE CONSTRUCTION LTD          
2012 - SEP,,,The Sherwood - Roof repairs             ,CS053AB,New Construction Conversion and Renovation,0,B1,Design and Supervision - Consultants Fee,225,"1,803.83",8/31/2012,C,EC HARRIS LLP                 
2012 - SEP,,,Connect to N3 Netwrk NHS Spine          ,CT001EA,Vehicles Plant Equipment and Machinery,0,D3,Equipment,226,"3,745.00",9/13/2012,C,ORGANISED COMPUTER SYSTEMS LTD
2012 - SEP,,,IT Equipment                            ,CT006EA,Vehicles Plant Equipment and Machinery,0,D3,Equipment,227,"1,050.94",8/15/2012,C,SPECIALIST COMPUTER CENT. PLC 
2012 - SEP,,,IT Equipment                            ,CT006EA,Vehicles Plant Equipment and Machinery,0,D3,Equipment,228,"1,184.00",8/29/2012,C,SPECIALIST COMPUTER CENT. PLC 
2012 - SEP,,,IT Strategy - unallocated               ,CT007EW,Vehicles Plant Equipment and Machinery,0,D3,Equipment,229,512,8/31/2012,C,SCALABLE COMMUNICATIONS PLC   
2012 - SEP,,,IT Strategy - unallocated               ,CT007EW,Vehicles Plant Equipment and Machinery,0,D3,Equipment,230,"1,028.00",8/31/2012,C,SCALABLE COMMUNICATIONS PLC   
2012 - SEP,,,IT Strategy - unallocated               ,CT007EW,Vehicles Plant Equipment and Machinery,0,D3,Equipment,231,514,8/31/2012,C,SCALABLE COMMUNICATIONS PLC   
2012 - SEP,,,IT Strategy - unallocated               ,CT007EW,Vehicles Plant Equipment and Machinery,0,D3,Equipment,232,669,8/31/2012,C,SCALABLE COMMUNICATIONS PLC   
2012 - SEP,,,IT Strategy - unallocated               ,CT007EW,Vehicles Plant Equipment and Machinery,0,D3,Equipment,233,"4,636.00",8/31/2012,C,SCALABLE COMMUNICATIONS PLC   
2012 - SEP,,,IT Strategy - unallocated               ,CT007EW,Vehicles Plant Equipment and Machinery,0,D3,Equipment,234,"1,884.00",8/22/2012,C,MISCO                         
2012 - SEP,,,IT Strategy - unallocated               ,CT007EW,Vehicles Plant Equipment and Machinery,0,D3,Equipment,235,"10,815.00",9/13/2012,C,INCOM TELECOMMUNICATIONS      
2012 - SEP,,,IT Strategy - unallocated               ,CT007EW,Vehicles Plant Equipment and Machinery,0,D3,Equipment,236,"13,230.00",9/13/2012,C,INCOM TELECOMMUNICATIONS      
2012 - SEP,,,Stability Networks                      ,CT012ED,Vehicles Plant Equipment and Machinery,0,D3,Equipment,237,"1,667.58",8/15/2012,C,AXIAL SYSTEMS                 
2012 - SEP,,,Stability Networks                      ,CT012ED,Vehicles Plant Equipment and Machinery,0,D3,Equipment,238,833.8,8/15/2012,C,AXIAL SYSTEMS                 
2012 - SEP,,,Stability Networks                      ,CT012ED,Vehicles Plant Equipment and Machinery,0,D3,Equipment,239,"2,569.57",8/15/2012,C,AXIAL SYSTEMS                 
2012 - SEP,,,Cloud Computing - Cap Ambition          ,CT013EA,Other Capital Expenditure,0,E3,Miscellaneous Capital Expenditure,240,"1,450.00",8/31/2012,C,FORDWAY LTD                   
2012 - SEP,,,Cloud Computing - Cap Ambition          ,CT013EA,Other Capital Expenditure,0,E3,Miscellaneous Capital Expenditure,241,"1,450.00",8/31/2012,C,FORDWAY LTD                   
2012 - SEP,,,Cloud Computing - Cap Ambition          ,CT013EA,Other Capital Expenditure,0,E3,Miscellaneous Capital Expenditure,242,"1,450.00",8/31/2012,C,FORDWAY LTD                   
2012 - SEP,Central Services,Local Tax Collection,Local Taxation Services                 ,E02100,Supplies & Services           ,Services                      ,DF03,Consultants,243,750,7/19/2012,R,VALUATION OFFICE AGENCY       
2012 - SEP,Central Services,Local Tax Collection,Local Taxation Services                 ,E02100,Third Party Payments          ,Private Contractors           ,EH01,Miscellaneous Contrct Services,244,797.52,1/8/2012,R,COMMERCIAL COLLECTION SERVICES
2012 - SEP,Central Services,Local Tax Collection,Local Taxation Services                 ,E02100,Third Party Payments          ,Private Contractors           ,EH01,Miscellaneous Contrct Services,245,624.75,2/9/2012,R,COMMERCIAL COLLECTION SERVICES
2012 - SEP,Central Services,Local Tax Collection,Local Taxation Services                 ,E02100,Third Party Payments          ,Private Contractors           ,EH01,Miscellaneous Contrct Services,246,585.29,1/7/2012,R,COMMERCIAL COLLECTION SERVICES
2012 - SEP,Central Services,Local Tax Collection,Local Taxation Services                 ,E02100,Support Services,Corporate Services,GB16,Legal,247,925,10/8/2012,R,WELBECK LAW LLP               
2012 - SEP,Central Services,Local Tax Collection,Local Taxation Services                 ,E02100,Support Services,Corporate Services,GB16,Legal,248,920,8/31/2012,R,WELBECK LAW LLP               
2012 - SEP,Central Services,Local Tax Collection,Local Taxation Services                 ,E02100,Support Services,Corporate Services,GB16,Legal,249,920,8/31/2012,R,WELBECK LAW LLP               
2012 - SEP,Central Services,Local Tax Collection,Local Taxation Services                 ,E02100,Support Services,Corporate Services,GB16,Legal,250,925,10/8/2012,R,WELBECK LAW LLP               
2012 - SEP,Central Services,Local Tax Collection,Local Taxation Services                 ,E02100,Support Services,Corporate Services,GB16,Legal,251,920,8/31/2012,R,WELBECK LAW LLP               
2012 - SEP,Central Services,Local Tax Collection,Local Taxation Services                 ,E02100,Support Services,Corporate Services,GB16,Legal,252,920,8/31/2012,R,WELBECK LAW LLP               
2012 - SEP,Central Services,Local Tax Collection,Local Taxation Services                 ,E02100,Support Services,Corporate Services,GB16,Legal,253,611,8/31/2012,R,WELBECK LAW LLP               
2012 - SEP,Central Services,Local Tax Collection,Local Taxation Services                 ,E02100,Support Services,Corporate Services,GB16,Legal,254,965,10/8/2012,R,WELBECK LAW LLP               
2012 - SEP,Housing Services,Housing Benefit Administration,Benefits Administration                 ,E02120,Supplies & Services           ,Comms and Computing           ,DG09,Computer Purchases - Misc,255,"2,007.24",8/15/2012,R,CIVICA UK LIMITED             
2012 - SEP,Housing Services,Housing Benefit Administration,Benefits Administration                 ,E02120,Supplies & Services           ,Comms and Computing           ,DG09,Computer Purchases - Misc,256,"1,900.00",10/9/2012,R,CIVICA UK LIMITED             
2012 - SEP,Housing Services,Housing Benefit Administration,Benefits Administration                 ,E02120,Supplies & Services           ,Comms and Computing           ,DG09,Computer Purchases - Misc,257,724.5,7/20/2012,R,CIVICA UK LIMITED             
2012 - SEP,Central Services,Fully rechargeable Overheads,Post Room                               ,E02220,Supplies & Services           ,Prntng Stnry Gen Off Exp      ,DE30,General Office Expense        ,258,500,3/9/2012,R,TRAVELCARE                    
2012 - SEP,Central Services,Fully rechargeable Overheads,Post Room                               ,E02220,Supplies & Services           ,Comms and Computing           ,DG04,Postage - General,259,"1,173.00",3/9/2012,R,TRAVELCARE                    
2012 - SEP,Central Services,Fully rechargeable Overheads,Civic Centre                            ,E02222,Premises Related Expenditure  ,RepairsAlterations&MtceOfBldgs,BA29,Build Maint Mgt Fees,260,"10,588.00",8/15/2012,R,HART DECORATORS LIMITED       
2012 - SEP,Central Services,Fully rechargeable Overheads,Civic Centre                            ,E02222,Premises Related Expenditure  ,RepairsAlterations&MtceOfBldgs,BA29,Build Maint Mgt Fees,261,"34,762.00",8/21/2012,R,RITEC DECORATORS LIMITED      
2012 - SEP,Central Services,Fully rechargeable Overheads,Civic Centre                            ,E02222,Premises Related Expenditure  ,RepairsAlterations&MtceOfBldgs,BA29,Build Maint Mgt Fees,262,"4,261.00",8/31/2012,R,THE ENERGY SAVERS             
2012 - SEP,Central Services,Fully rechargeable Overheads,Civic Centre                            ,E02222,Premises Related Expenditure  ,RepairsAlterations&MtceOfBldgs,BA29,Build Maint Mgt Fees,263,"3,740.00",8/20/2012,R,ALIPORT LTD T/A ALIPORT COMM. 
2012 - SEP,Central Services,Fully rechargeable Overheads,Civic Centre                            ,E02222,Premises Related Expenditure  ,RepairsAlterations&MtceOfBldgs,BA29,Build Maint Mgt Fees,264,"1,007.00",8/31/2012,R,EDE'S (U.K.) LTD              
2012 - SEP,Central Services,Fully rechargeable Overheads,Civic Centre                            ,E02222,Premises Related Expenditure  ,RepairsAlterations&MtceOfBldgs,BA29,Build Maint Mgt Fees,265,"1,358.50",8/31/2012,R,EDE'S (U.K.) LTD              
2012 - SEP,Central Services,Fully rechargeable Overheads,Civic Centre                            ,E02222,Premises Related Expenditure  ,RepairsAlterations&MtceOfBldgs,BA29,Build Maint Mgt Fees,266,831.25,8/31/2012,R,EDE'S (U.K.) LTD              
2012 - SEP,Central Services,Fully rechargeable Overheads,Civic Centre                            ,E02222,Premises Related Expenditure  ,RepairsAlterations&MtceOfBldgs,BA29,Build Maint Mgt Fees,267,579.5,8/31/2012,R,EDE'S (U.K.) LTD              
2012 - SEP,Central Services,Fully rechargeable Overheads,Civic Centre                            ,E02222,Premises Related Expenditure  ,RepairsAlterations&MtceOfBldgs,BA29,Build Maint Mgt Fees,268,798,8/31/2012,R,EDE'S (U.K.) LTD              
2012 - SEP,Central Services,Fully rechargeable Overheads,Civic Centre                            ,E02222,Premises Related Expenditure  ,RepairsAlterations&MtceOfBldgs,BA29,Build Maint Mgt Fees,269,532,8/31/2012,R,EDE'S (U.K.) LTD              
2012 - SEP,Central Services,Fully rechargeable Overheads,Civic Centre                            ,E02222,Premises Related Expenditure  ,RepairsAlterations&MtceOfBldgs,BA29,Build Maint Mgt Fees,270,"1,330.00",8/31/2012,R,EDE'S (U.K.) LTD              
2012 - SEP,Central Services,Fully rechargeable Overheads,Civic Centre                            ,E02222,Premises Related Expenditure  ,RepairsAlterations&MtceOfBldgs,BA29,Build Maint Mgt Fees,271,798,8/31/2012,R,EDE'S (U.K.) LTD              
2012 - SEP,Central Services,Fully rechargeable Overheads,Civic Centre                            ,E02222,Premises Related Expenditure  ,RepairsAlterations&MtceOfBldgs,BA29,Build Maint Mgt Fees,272,722,8/31/2012,R,EDE'S (U.K.) LTD              
2012 - SEP,Central Services,Fully rechargeable Overheads,Civic Centre                            ,E02222,Premises Related Expenditure  ,RepairsAlterations&MtceOfBldgs,BA29,Build Maint Mgt Fees,273,"1,805.00",8/31/2012,R,EDE'S (U.K.) LTD              
2012 - SEP,Central Services,Fully rechargeable Overheads,Civic Centre                            ,E02222,Premises Related Expenditure  ,RepairsAlterations&MtceOfBldgs,BA29,Build Maint Mgt Fees,274,722,8/31/2012,R,EDE'S (U.K.) LTD              
2012 - SEP,Central Services,Fully rechargeable Overheads,Civic Centre                            ,E02222,Premises Related Expenditure  ,Cleaning and Domestic Supplies,BH03,Cleaning Services,275,"-3,363.00",8/31/2012,R,DYNAMIQ CLEANING LIMITED      
2012 - SEP,Central Services,Fully rechargeable Overheads,Civic Centre                            ,E02222,Supplies & Services           ,Equip Furniture/Materials     ,DA01,Equipment - R & M,276,"1,000.00",11/7/2012,R,SSD LIMITED                   
2012 - SEP,Central Services,Fully rechargeable Overheads,Civic Centre                            ,E02222,Supplies & Services           ,Equip Furniture/Materials     ,DA01,Equipment - R & M,277,700,8/29/2012,R,SHENTON GROUP                 
2012 - SEP,Central Services,Fully rechargeable Overheads,Civic Centre                            ,E02222,Supplies & Services           ,Equip Furniture/Materials     ,DA01,Equipment - R & M,278,750.18,8/29/2012,R,SHENTON GROUP                 
2012 - SEP,Central Services,Fully rechargeable Overheads,Civic Centre                            ,E02222,Supplies & Services           ,Equip Furniture/Materials     ,DA09,Equip-Purchases,279,"5,845.00",10/9/2012,R,PSW PAPER & PRINT LTD         
2012 - SEP,Central Services,Fully rechargeable Overheads,Civic Centre                            ,E02222,Supplies & Services           ,Equip Furniture/Materials     ,DA09,Equip-Purchases,280,"1,006.94",8/29/2012,R,PHS GROUP PLC                 
2012 - SEP,Central Services,Fully rechargeable Overheads,Civic Centre                            ,E02222,Third Party Payments          ,Private Contractors           ,EH10,Contract Payments,281,"1,958.49",8/8/2012,R,ISS COLLECTIONS LTD           
2012 - SEP,Central Services,Fully rechargeable Overheads,Civic Centre                            ,E02222,Third Party Payments          ,Private Contractors           ,EH10,Contract Payments,282,"4,313.62",8/22/2012,R,ISS COLLECTIONS LTD           
2012 - SEP,Central Services,Fully rechargeable Overheads,Facilities                              ,E02231,Premises Related Expenditure  ,RepairsAlterations&MtceOfBldgs,BA01,DDM - General Building,283,"6,904.00",7/26/2012,R,SALTASH ENTERPRISES LTD       
2012 - SEP,Central Services,Fully rechargeable Overheads,Facilities                              ,E02231,Premises Related Expenditure  ,RepairsAlterations&MtceOfBldgs,BA01,DDM - General Building,284,-711.67,8/15/2012,R,SALTASH ENTERPRISES LTD       
2012 - SEP,Central Services,Fully rechargeable Overheads,Facilities                              ,E02231,Premises Related Expenditure  ,RepairsAlterations&MtceOfBldgs,BA02,Energy Conservation,285,"160,000.00",7/31/2012,R,REDACTED
2012 - SEP,Central Services,Fully rechargeable Overheads,Facilities                              ,E02231,Premises Related Expenditure  ,RepairsAlterations&MtceOfBldgs,BA06,Repairs & Maintenance General,286,"5,450.86",8/29/2012,R,COFELY LIMITED                
2012 - SEP,Central Services,Fully rechargeable Overheads,Facilities                              ,E02231,Premises Related Expenditure  ,RepairsAlterations&MtceOfBldgs,BA06,Repairs & Maintenance General,287,"1,000.00",8/29/2012,R,COFELY LIMITED                
2012 - SEP,Central Services,Fully rechargeable Overheads,Facilities                              ,E02231,Premises Related Expenditure  ,RepairsAlterations&MtceOfBldgs,BA06,Repairs & Maintenance General,288,"15,000.00",8/29/2012,R,COFELY LIMITED                
2012 - SEP,Central Services,Fully rechargeable Overheads,Facilities                              ,E02231,Premises Related Expenditure  ,RepairsAlterations&MtceOfBldgs,BA06,Repairs & Maintenance General,289,"10,000.00",8/29/2012,R,COFELY LIMITED                
2012 - SEP,Central Services,Fully rechargeable Overheads,Facilities                              ,E02231,Premises Related Expenditure  ,RepairsAlterations&MtceOfBldgs,BA06,Repairs & Maintenance General,290,500,8/29/2012,R,COFELY LIMITED                
2012 - SEP,Central Services,Fully rechargeable Overheads,Facilities                              ,E02231,Premises Related Expenditure  ,RepairsAlterations&MtceOfBldgs,BA06,Repairs & Maintenance General,291,500,8/29/2012,R,COFELY LIMITED                
2012 - SEP,Central Services,Fully rechargeable Overheads,Facilities                              ,E02231,Premises Related Expenditure  ,RepairsAlterations&MtceOfBldgs,BA06,Repairs & Maintenance General,292,"1,000.00",8/29/2012,R,COFELY LIMITED                
2012 - SEP,Central Services,Fully rechargeable Overheads,Facilities                              ,E02231,Premises Related Expenditure  ,RepairsAlterations&MtceOfBldgs,BA06,Repairs & Maintenance General,293,500,8/29/2012,R,COFELY LIMITED                
2012 - SEP,Central Services,Fully rechargeable Overheads,Facilities                              ,E02231,Premises Related Expenditure  ,RepairsAlterations&MtceOfBldgs,BA06,Repairs & Maintenance General,294,"2,000.00",8/29/2012,R,COFELY LIMITED                
2012 - SEP,Central Services,Fully rechargeable Overheads,Facilities                              ,E02231,Premises Related Expenditure  ,RepairsAlterations&MtceOfBldgs,BA06,Repairs & Maintenance General,295,"1,500.00",8/29/2012,R,COFELY LIMITED                
2012 - SEP,Central Services,Fully rechargeable Overheads,Facilities                              ,E02231,Supplies & Services           ,Services                      ,DF09,Miscellaneous Fees,296,"1,290.00",8/24/2012,R,ENVIRONMENT AGENCY            
2012 - SEP,Central Services,Fully rechargeable Overheads,Facilities                              ,E02231,Supplies & Services           ,Comms and Computing           ,DG07,Computer Software,297,917.1,8/31/2012,R,SOFTCAT LTD                   
2012 - SEP,Central Services,Fully rechargeable Overheads,Facilities                              ,E02231,Third Party Payments          ,Private Contractors           ,EH02,Miscellaneous Hired Services,298,549.08,7/26/2012,R,SALTASH ENTERPRISES LTD       
2012 - SEP,Central Services,Fully rechargeable Overheads,Facilities                              ,E02231,Third Party Payments          ,Private Contractors           ,EH02,Miscellaneous Hired Services,299,"1,000.00",7/26/2012,R,SALTASH ENTERPRISES LTD       
2012 - SEP,Central Services,Fully rechargeable Overheads,Facilities                              ,E02231,Third Party Payments          ,Private Contractors           ,EH02,Miscellaneous Hired Services,300,"1,414.44",7/9/2012,R,SALTASH ENTERPRISES LTD       
2012 - SEP,Central Services,Fully rechargeable Overheads,Facilities                              ,E02231,Third Party Payments          ,Private Contractors           ,EH02,Miscellaneous Hired Services,301,"1,000.00",7/9/2012,R,SALTASH ENTERPRISES LTD       
2012 - SEP,Central Services,Fully rechargeable Overheads,FM External Fees                        ,E02239,Premises Related Expenditure  ,RepairsAlterations&MtceOfBldgs,BA01,DDM - General Building,302,"7,275.00",5/31/2012,R,SALTASH ENTERPRISES LTD       
2012 - SEP,Central Services,Fully rechargeable Overheads,FM External Fees                        ,E02239,Premises Related Expenditure  ,RepairsAlterations&MtceOfBldgs,BA01,DDM - General Building,303,"7,520.02",6/29/2012,R,SALTASH ENTERPRISES LTD       
2012 - SEP,Central Services,Fully rechargeable Overheads,FM External Fees                        ,E02239,Premises Related Expenditure  ,RepairsAlterations&MtceOfBldgs,BA01,DDM - General Building,304,615,5/31/2012,R,SALTASH ENTERPRISES LTD       
2012 - SEP,Central Services,Fully rechargeable Overheads,FM External Fees                        ,E02239,Premises Related Expenditure  ,RepairsAlterations&MtceOfBldgs,BA01,DDM - General Building,305,"3,115.00",6/29/2012,R,SALTASH ENTERPRISES LTD       
2012 - SEP,Central Services,Fully rechargeable Overheads,Corporate Services Buildings            ,E02240,Premises Related Expenditure  ,RepairsAlterations&MtceOfBldgs,BA01,DDM - General Building,306,550,12/7/2012,R,PJ HARVEY & CO LTD            
2012 - SEP,Central Services,Fully rechargeable Overheads,Corporate Services Buildings            ,E02240,Premises Related Expenditure  ,RepairsAlterations&MtceOfBldgs,BA01,DDM - General Building,307,795.55,7/26/2012,R,SALTASH ENTERPRISES LTD       
2012 - SEP,Central Services,Fully rechargeable Overheads,Corporate Services Buildings            ,E02240,Premises Related Expenditure  ,RepairsAlterations&MtceOfBldgs,BA01,DDM - General Building,308,525.97,4/9/2012,R,SALTASH ENTERPRISES LTD       
2012 - SEP,Central Services,Fully rechargeable Overheads,Corporate Services Buildings            ,E02240,Premises Related Expenditure  ,RepairsAlterations&MtceOfBldgs,BA01,DDM - General Building,309,"7,405.00",8/30/2012,R,CONCRETE REPAIRS LIMITED      
2012 - SEP,Central Services,Fully rechargeable Overheads,Corporate Services Buildings            ,E02240,Premises Related Expenditure  ,RepairsAlterations&MtceOfBldgs,BA01,DDM - General Building,310,503,9/19/2012,R,SAFETY SHOP                   
2012 - SEP,Central Services,Fully rechargeable Overheads,Corporate Services Buildings            ,E02240,Premises Related Expenditure  ,RepairsAlterations&MtceOfBldgs,BA03,DDM - Mechanical,311,"4,098.21",8/28/2012,R,COFELY LIMITED                
2012 - SEP,Central Services,Fully rechargeable Overheads,Corporate Services Buildings            ,E02240,Premises Related Expenditure  ,RepairsAlterations&MtceOfBldgs,BA03,DDM - Mechanical,312,765,9/17/2012,R,TREND CONTROL SYSTEMS         
2012 - SEP,Central Services,Fully rechargeable Overheads,Corporate Services Buildings            ,E02240,Premises Related Expenditure  ,RepairsAlterations&MtceOfBldgs,BA05,DDM - Electrical,313,754.3,1/9/2012,R,ABEL ALARM COMPANY LIMITED    
2012 - SEP,Central Services,Fully rechargeable Overheads,Corporate Services Buildings            ,E02240,Premises Related Expenditure  ,RepairsAlterations&MtceOfBldgs,BA05,DDM - Electrical,314,769.68,7/30/2012,R,COFELY LIMITED                
2012 - SEP,Central Services,Fully rechargeable Overheads,Corporate Services Buildings            ,E02240,Premises Related Expenditure  ,Energy Costs                  ,BB02,Electricity,315,"16,238.94",10/8/2012,R,KENT COUNTY COUNCIL           
2012 - SEP,Central Services,Fully rechargeable Overheads,Corporate Services Buildings            ,E02240,Premises Related Expenditure  ,Energy Costs                  ,BB02,Electricity,316,"2,753.33",1/8/2012,R,EDF ENERGY 1 LIMITED          
2012 - SEP,Central Services,Fully rechargeable Overheads,Corporate Services Buildings            ,E02240,Premises Related Expenditure  ,Energy Costs                  ,BB03,Gas (incl. Butane),317,"3,255.61",8/29/2012,R,KENT COUNTY COUNCIL           
2012 - SEP,Central Services,Fully rechargeable Overheads,Corporate Services Buildings            ,E02240,Premises Related Expenditure  ,Water Services                ,BE01,Use of Water (Metered),318,"1,214.56",8/24/2012,R,SUTTON AND EAST SURREY WATER  
2012 - SEP,Childrens & Education Services,Service Strategy,CSF Buildings                           ,E02256,Premises Related Expenditure  ,RepairsAlterations&MtceOfBldgs,BA03,DDM - Mechanical,319,994.83,7/25/2012,R,CHUBB FIRE LIMITED            
2012 - SEP,Cultural Env Reg&Plan Services,Open Spaces,E & R Buildings                         ,E02344,Premises Related Expenditure  ,RepairsAlterations&MtceOfBldgs,BA03,DDM - Mechanical,320,569.45,8/28/2012,R,COFELY LIMITED                
2012 - SEP,Adult Social Care,Adult u65 Phys/Sensory Impair,C & H Buildings                         ,E02345,Premises Related Expenditure  ,RepairsAlterations&MtceOfBldgs,BA01,DDM - General Building,321,520.61,4/9/2012,R,SALTASH ENTERPRISES LTD       
2012 - SEP,Adult Social Care,Adult u65 Phys/Sensory Impair,C & H Buildings                         ,E02345,Premises Related Expenditure  ,RepairsAlterations&MtceOfBldgs,BA03,DDM - Mechanical,322,694.4,8/28/2012,R,COFELY LIMITED                
2012 - SEP,Cultural Env Reg&Plan Services,Open Spaces,Leisure Buildings                       ,E02350,Premises Related Expenditure  ,RepairsAlterations&MtceOfBldgs,BA01,DDM - General Building,323,570.72,4/9/2012,R,SALTASH ENTERPRISES LTD       
2012 - SEP,Cultural Env Reg&Plan Services,Open Spaces,Leisure Buildings                       ,E02350,Premises Related Expenditure  ,RepairsAlterations&MtceOfBldgs,BA03,DDM - Mechanical,324,668.48,8/28/2012,R,COFELY LIMITED                
2012 - SEP,Central Services,Fully rechargeable Overheads,Director of Corporate Services          ,E04060,Employees                     ,Direct Employee Expenses      ,AA17,Agency Staff & Casual Paymts,325,"11,050.00",3/9/2012,R,REDACTED
2012 - SEP,Central Services,Fully rechargeable Overheads,Director of Corporate Services          ,E04060,Employees                     ,Indirect Employee Expenses    ,AB57,External Training Costs,326,941,8/14/2012,R,NESCOT                        
2012 - SEP,Central Services,Fully rechargeable Overheads,Director of Corporate Services          ,E04060,Supplies & Services           ,Services                      ,DF11,Counsel's fees,327,870,8/22/2012,R,REDACTED
2012 - SEP,Central Services,Fully rechargeable Overheads,Director of Corporate Services          ,E04060,Supplies & Services           ,Services                      ,DF11,Counsel's fees,328,"2,212.50",6/7/2012,R,REDACTED
2012 - SEP,Central Services,Fully rechargeable Overheads,AD RESOURCES                            ,E04061,Employees                     ,Direct Employee Expenses      ,AA17,Agency Staff & Casual Paymts,329,"9,750.00",3/9/2012,R,REDACTED
2012 - SEP,Central Services,Fully rechargeable Overheads,AD RESOURCES                            ,E04061,Supplies & Services           ,Services                      ,DF03,Consultants,330,"4,200.00",7/31/2012,R,UNISERVE CONSULTING LIMITED   
2012 - SEP,Central Services,Fully rechargeable Overheads,AD RESOURCES                            ,E04061,Supplies & Services           ,Services                      ,DF03,Consultants,331,"2,800.00",7/31/2012,R,UNISERVE CONSULTING LIMITED   
2012 - SEP,Central Services,Fully rechargeable Overheads,AD RESOURCES                            ,E04061,Supplies & Services           ,Services                      ,DF03,Consultants,332,"1,200.00",7/31/2012,R,UNISERVE CONSULTING LIMITED   
2012 - SEP,Housing Services,Housing Benefit Administration,Benefits Investigation Section          ,E05103,Employees                     ,Indirect Employee Expenses    ,AB57,External Training Costs,333,801,7/9/2012,R,ITS TRAINING (UK) LTD         
2012 - SEP,Central Services,Fully rechargeable Overheads,Insurance Premiums & Funding            ,E05161,Supplies & Services           ,Services                      ,DF74,Insurance Premiums,334,"2,177.90",9/13/2012,R,ZURICH INSURANCE COMPANY      
2012 - SEP,Central Services,Fully rechargeable Overheads,Corporate Accountancy                   ,E06209,Supplies & Services           ,Services                      ,DF58,Audit Fee,335,"4,640.00",3/8/2012,R,AUDIT COMMISSION              
2012 - SEP,Central Services,Fully rechargeable Overheads,Corporate Accountancy                   ,E06209,Supplies & Services           ,Services                      ,DF58,Audit Fee,336,"3,709.30",7/9/2012,R,AUDIT COMMISSION              
2012 - SEP,Central Services,Fully rechargeable Overheads,Treasury & Insurance                    ,E06222,Employees                     ,Direct Employee Expenses      ,AA17,Agency Staff & Casual Paymts,337,"2,970.00",3/9/2012,R,RANDSTAD FIN & PROF LTD.      
2012 - SEP,Central Services,Fully rechargeable Overheads,Treasury & Insurance                    ,E06222,Employees                     ,Direct Employee Expenses      ,AA17,Agency Staff & Casual Paymts,338,"7,050.00",3/9/2012,R,RANDSTAD FIN & PROF LTD.      
2012 - SEP,Central Services,Fully rechargeable Overheads,Treasury & Insurance                    ,E06222,Employees                     ,Direct Employee Expenses      ,AA17,Agency Staff & Casual Paymts,339,880,12/9/2012,R,RANDSTAD FIN & PROF LTD.      
2012 - SEP,Central Services,Fully rechargeable Overheads,Treasury & Insurance                    ,E06222,Employees                     ,Direct Employee Expenses      ,AA17,Agency Staff & Casual Paymts,340,"1,410.00",9/17/2012,R,RANDSTAD FIN & PROF LTD.      
2012 - SEP,Central Services,Fully rechargeable Overheads,Treasury & Insurance                    ,E06222,Employees                     ,Direct Employee Expenses      ,AA17,Agency Staff & Casual Paymts,341,"1,100.00",9/17/2012,R,RANDSTAD FIN & PROF LTD.      
2012 - SEP,Central Services,Fully rechargeable Overheads,Treasury & Insurance                    ,E06222,Employees                     ,Direct Employee Expenses      ,AA17,Agency Staff & Casual Paymts,342,"1,100.00",9/26/2012,R,RANDSTAD FIN & PROF LTD.      
2012 - SEP,Central Services,Fully rechargeable Overheads,Parking Cash Collect'n Contrct          ,E06225,Third Party Payments          ,Private Contractors           ,EH02,Miscellaneous Hired Services,343,"1,053.50",7/31/2012,R,BANKING AUTOMATION LTD        
2012 - SEP,Central Services,Fully rechargeable Overheads,Parking Cash Collect'n Contrct          ,E06225,Third Party Payments          ,Private Contractors           ,EH02,Miscellaneous Hired Services,344,"11,561.00",8/31/2012,R,BANKING AUTOMATION LTD        
2012 - SEP,Central Services,Fully rechargeable Overheads,Establishments' Cash Collect'n          ,E06226,Third Party Payments          ,Private Contractors           ,EH02,Miscellaneous Hired Services,345,"3,054.63",8/15/2012,R,LOOMIS UK LTD                 
2012 - SEP,Central Services,Fully rechargeable Overheads,Establishments' Cash Collect'n          ,E06226,Third Party Payments          ,Private Contractors           ,EH02,Miscellaneous Hired Services,346,633.1,8/31/2012,R,LOOMIS UK LTD                 
2012 - SEP,Central Services,Fully rechargeable Overheads,Service Accountancy                     ,E06227,Employees                     ,Direct Employee Expenses      ,AA17,Agency Staff & Casual Paymts,347,"3,450.00",3/9/2012,R,RANDSTAD FIN & PROF LTD.      
2012 - SEP,Central Services,Fully rechargeable Overheads,Service Accountancy                     ,E06227,Employees                     ,Direct Employee Expenses      ,AA17,Agency Staff & Casual Paymts,348,"3,900.00",3/9/2012,R,RANDSTAD FIN & PROF LTD.      
2012 - SEP,Central Services,Fully rechargeable Overheads,Service Accountancy                     ,E06227,Employees                     ,Direct Employee Expenses      ,AA17,Agency Staff & Casual Paymts,349,"1,350.00",12/9/2012,R,RANDSTAD FIN & PROF LTD.      
2012 - SEP,Central Services,Fully rechargeable Overheads,Service Accountancy                     ,E06227,Employees                     ,Direct Employee Expenses      ,AA17,Agency Staff & Casual Paymts,350,750,9/17/2012,R,RANDSTAD FIN & PROF LTD.      
2012 - SEP,Central Services,Fully rechargeable Overheads,Service Accountancy                     ,E06227,Employees                     ,Direct Employee Expenses      ,AA17,Agency Staff & Casual Paymts,351,750,9/17/2012,R,RANDSTAD FIN & PROF LTD.      
2012 - SEP,Central Services,Fully rechargeable Overheads,Service Accountancy                     ,E06227,Employees                     ,Direct Employee Expenses      ,AA17,Agency Staff & Casual Paymts,352,"1,500.00",9/26/2012,R,RANDSTAD FIN & PROF LTD.      
2012 - SEP,Central Services,Fully rechargeable Overheads,Service Accountancy                     ,E06227,Employees                     ,Direct Employee Expenses      ,AA17,Agency Staff & Casual Paymts,353,"4,600.00",9/26/2012,R,RANDSTAD FIN & PROF LTD.      
2012 - SEP,Central Services,Fully rechargeable Overheads,Service Accountancy                     ,E06227,Employees                     ,Indirect Employee Expenses    ,AB57,External Training Costs,354,"1,920.81",8/23/2012,R,BPP PROFESSIONAL EDUCATION LTD
2012 - SEP,Central Services,Fully rechargeable Overheads,Service Accountancy                     ,E06227,Supplies & Services           ,Services                      ,DF03,Consultants,355,819.55,7/31/2012,R,UNISERVE CONSULTING LIMITED   
2012 - SEP,Central Services,Fully rechargeable Overheads,Service Accountancy                     ,E06227,Transfer Payments             ,Housing Benefits              ,FA50,Burial and Cremation,356,"1,095.50",5/9/2012,R,F.W. PAINE                    
2012 - SEP,Central Services,Fully rechargeable Overheads,AD CORPORATE GOVERNANCE               ,E10279,Employees                     ,Indirect Employee Expenses    ,AB57,External Training Costs,357,"2,008.00",9/14/2012,R,AUDITWARE SYSTEMS LTD         
2012 - SEP,Central Services,Fully rechargeable Overheads,Legal Services                          ,E10282,Supplies & Services           ,Services                      ,DF28,Court Fees,358,575,8/29/2012,R,REDACTED
2012 - SEP,Central Services,Fully rechargeable Overheads,Legal Services                          ,E10282,Supplies & Services           ,Services                      ,DF28,Court Fees,359,"2,400.00",9/20/2012,R,REDACTED
2012 - SEP,Central Services,Fully rechargeable Overheads,Legal Services                          ,E10282,Supplies & Services           ,Services                      ,DF28,Court Fees,360,"2,225.00",9/20/2012,R,REDACTED
2012 - SEP,Central Services,Fully rechargeable Overheads,Legal Services                          ,E10282,Supplies & Services           ,Services                      ,DF95,Services from Provider,361,"3,000.00",8/29/2012,R,SHOOSMITHS SOLICITORS         
2012 - SEP,Central Services,Fully rechargeable Overheads,Shared Legal Service                    ,E10288,Supplies & Services           ,Equip Furniture/Materials     ,DA80,Books,362,"7,200.00",8/28/2012,R,PRACTICAL LAW COMPANY         
2012 - SEP,Central Services,Fully rechargeable Overheads,Shared Legal Service                    ,E10288,Supplies & Services           ,Comms and Computing           ,DG50,Other IT Expenditure,363,"2,640.00",7/27/2012,R,LEXIS NEXIS                   
2012 - SEP,Central Services,Fully rechargeable Overheads,Richmond Legal                          ,E10289,Supplies & Services           ,Services                      ,DF03,Consultants,364,"1,383.30",8/31/2012,R,LONDON BOROUGH OF BRENT       
2012 - SEP,Central Services,Fully rechargeable Overheads,Richmond Legal                          ,E10289,Supplies & Services           ,Services                      ,DF11,Counsel's fees,365,"2,268.20",9/8/2012,R,REDACTED
2012 - SEP,Central Services,Fully rechargeable Overheads,Richmond Legal                          ,E10289,Supplies & Services           ,Services                      ,DF11,Counsel's fees,366,900,2/8/2012,R,REDACTED
2012 - SEP,Central Services,Fully rechargeable Overheads,Richmond Legal                          ,E10289,Supplies & Services           ,Services                      ,DF11,Counsel's fees,367,625,2/8/2012,R,REDACTED
2012 - SEP,Central Services,Fully rechargeable Overheads,Richmond Legal                          ,E10289,Supplies & Services           ,Services                      ,DF11,Counsel's fees,368,"3,750.00",9/7/2012,R,REDACTED
2012 - SEP,Central Services,Fully rechargeable Overheads,Richmond Legal                          ,E10289,Supplies & Services           ,Services                      ,DF11,Counsel's fees,369,"1,443.75",8/30/2012,R,REDACTED
2012 - SEP,Central Services,Fully rechargeable Overheads,Richmond Legal                          ,E10289,Supplies & Services           ,Services                      ,DF11,Counsel's fees,370,"3,550.00",8/20/2012,R,REDACTED
2012 - SEP,Central Services,Fully rechargeable Overheads,Richmond Legal                          ,E10289,Supplies & Services           ,Services                      ,DF11,Counsel's fees,371,625,2/8/2012,R,REDACTED
2012 - SEP,Central Services,Fully rechargeable Overheads,Richmond Legal                          ,E10289,Supplies & Services           ,Services                      ,DF11,Counsel's fees,372,"1,040.00",8/20/2012,R,REDACTED
2012 - SEP,Central Services,Fully rechargeable Overheads,Richmond Legal                          ,E10289,Supplies & Services           ,Services                      ,DF11,Counsel's fees,373,"1,285.00",6/15/2012,R,REDACTED
2012 - SEP,Central Services,Fully rechargeable Overheads,Richmond Legal                          ,E10289,Supplies & Services           ,Services                      ,DF11,Counsel's fees,374,500,5/9/2012,R,REDACTED
2012 - SEP,Central Services,Fully rechargeable Overheads,Richmond Legal                          ,E10289,Supplies & Services           ,Services                      ,DF11,Counsel's fees,375,"7,550.00",8/22/2012,R,REDACTED
2012 - SEP,Central Services,Fully rechargeable Overheads,Richmond Legal                          ,E10289,Supplies & Services           ,Services                      ,DF11,Counsel's fees,376,"8,866.60",7/17/2012,R,REDACTED
2012 - SEP,Central Services,Fully rechargeable Overheads,Richmond Legal                          ,E10289,Supplies & Services           ,Services                      ,DF95,Services from Provider,377,629.98,6/25/2012,R,CORAL COMMUNITY ASSESSMENTS   
2012 - SEP,Central Services,Fully rechargeable Overheads,Richmond Legal                          ,E10289,Supplies & Services           ,Services                      ,DF95,Services from Provider,378,"2,000.00",7/24/2012,R,SHOOSMITHS SOLICITORS         
2012 - SEP,Central Services,Fully rechargeable Overheads,Richmond Legal                          ,E10289,Supplies & Services           ,Services                      ,DF95,Services from Provider,379,690,12/1/2012,R,REDACTED
2012 - SEP,Central Services,Fully rechargeable Overheads,Richmond Legal                          ,E10289,Supplies & Services           ,Services                      ,DF95,Services from Provider,380,"1,728.20",8/30/2012,R,SHOOSMITHS SOLICITORS         
2012 - SEP,Central Services,Fully rechargeable Overheads,Richmond Legal                          ,E10289,Supplies & Services           ,Services                      ,DF95,Services from Provider,381,"6,090.50",7/24/2012,R,REDACTED
2012 - SEP,Central Services,Fully rechargeable Overheads,Richmond Legal                          ,E10289,Supplies & Services           ,Services                      ,DF95,Services from Provider,382,600,9/8/2012,R,RUSSELL -  COOKE LLP          
2012 - SEP,Central Services,Fully rechargeable Overheads,AD Business Improvement                 ,E14358,Employees                     ,Direct Employee Expenses      ,AA17,Agency Staff & Casual Paymts,383,"8,625.00",8/30/2012,R,JW MANAGEMENT                 
2012 - SEP,Central Services,Fully rechargeable Overheads,AD Business Improvement                 ,E14358,Employees                     ,Direct Employee Expenses      ,AA17,Agency Staff & Casual Paymts,384,"2,260.00",8/23/2012,R,HAYS RECRUITING EXPERTS       
2012 - SEP,Central Services,Fully rechargeable Overheads,AD Business Improvement                 ,E14358,Employees                     ,Direct Employee Expenses      ,AA17,Agency Staff & Casual Paymts,385,"2,260.00",8/29/2012,R,HAYS RECRUITING EXPERTS       
2012 - SEP,Central Services,Fully rechargeable Overheads,AD Business Improvement                 ,E14358,Employees                     ,Direct Employee Expenses      ,AA17,Agency Staff & Casual Paymts,386,"2,260.00",9/13/2012,R,HAYS RECRUITING EXPERTS       
2012 - SEP,Central Services,Fully rechargeable Overheads,AD Business Improvement                 ,E14358,Employees                     ,Direct Employee Expenses      ,AA17,Agency Staff & Casual Paymts,387,"2,260.00",9/20/2012,R,HAYS RECRUITING EXPERTS       
2012 - SEP,Central Services,Fully rechargeable Overheads,AD Business Improvement                 ,E14358,Employees                     ,Indirect Employee Expenses    ,AB02,Recruitment Adverts,388,"3,200.00",12/9/2012,R,ODGERS RAY & BERNDTSON INTERIM
2012 - SEP,Central Services,Fully rechargeable Overheads,AD Business Improvement                 ,E14358,Employees                     ,Indirect Employee Expenses    ,AB02,Recruitment Adverts,389,"2,750.00",8/22/2012,R,HAYS RECRUITING EXPERTS       
2012 - SEP,Central Services,Fully rechargeable Overheads,AD Business Improvement                 ,E14358,Employees                     ,Indirect Employee Expenses    ,AB02,Recruitment Adverts,390,"1,500.00",8/22/2012,R,HAYS RECRUITING EXPERTS       
2012 - SEP,Central Services,Fully rechargeable Overheads,Corp Saving-Print Strategy              ,E14359,Supplies & Services           ,Equip Furniture/Materials     ,DA77,Photocopier Rental,391,"31,918.16",8/28/2012,R,ALTODIGITAL NETWORKS LTD      
2012 - SEP,Central Services,Fully rechargeable Overheads,Corp Saving-Print Strategy              ,E14359,Supplies & Services           ,Prntng Stnry Gen Off Exp      ,DE06,Multi-Functional Printers     ,392,"42,201.97",8/28/2012,R,ALTODIGITAL NETWORKS LTD      
2012 - SEP,Central Services,Fully rechargeable Overheads,BI IT Projects                          ,E14360,Employees                     ,Indirect Employee Expenses    ,AB57,External Training Costs,393,937,8/31/2012,R,PITNEY BOWES SOFTWARE LTD     
2012 - SEP,Central Services,Fully rechargeable Overheads,BI IT Projects                          ,E14360,Supplies & Services           ,Services                      ,DF03,Consultants,394,"2,500.00",8/22/2012,R,CASHFRIDAY                    
2012 - SEP,Central Services,Fully rechargeable Overheads,BI IT Projects                          ,E14360,Supplies & Services           ,Services                      ,DF03,Consultants,395,650,1/9/2012,R,REDACTED
2012 - SEP,Central Services,Fully rechargeable Overheads,Operations & Telecomms                  ,E14367,Supplies & Services           ,Equip Furniture/Materials     ,DA01,Equipment - R & M,396,849,11/9/2012,R,SHENTON GROUP                 
2012 - SEP,Central Services,Fully rechargeable Overheads,Operations & Telecomms                  ,E14367,Supplies & Services           ,Comms and Computing           ,DG54,Corporate Telephones,397,"2,982.00",8/28/2012,R,BTS                           
2012 - SEP,Central Services,Fully rechargeable Overheads,Operations & Telecomms                  ,E14367,Supplies & Services           ,Comms and Computing           ,DG54,Corporate Telephones,398,"24,325.86",8/27/2012,R,BRITISH TELECOMMUNICATIONS PLC
2012 - SEP,Central Services,Fully rechargeable Overheads,Operations & Telecomms                  ,E14367,Supplies & Services           ,Comms and Computing           ,DG54,Corporate Telephones,399,"4,908.62",3/9/2012,R,BRITISH TELECOMMUNICATIONS PLC
2012 - SEP,Central Services,Fully rechargeable Overheads,Operations & Telecomms                  ,E14367,Supplies & Services           ,Comms and Computing           ,DG54,Corporate Telephones,400,"1,035.00",8/29/2012,R,O2 (UK) LIMITED               
2012 - SEP,Central Services,Fully rechargeable Overheads,Operations & Telecomms                  ,E14367,Supplies & Services           ,Comms and Computing           ,DG54,Corporate Telephones,401,"2,830.43",2/9/2012,R,COLT TELECOMMUNICATIONS       
2012 - SEP,Central Services,Fully rechargeable Overheads,Distributed Services                    ,E14368,Supplies & Services           ,Comms and Computing           ,DG63,Software Licences - Data,402,706.8,8/24/2012,R,V-SUB SOLUTIONS               
2012 - SEP,Central Services,Fully rechargeable Overheads,Distributed Services                    ,E14368,Supplies & Services           ,Comms and Computing           ,DG63,Software Licences - Data,403,"7,178.62",7/24/2012,R,NORTHGATE INFORMATION SOLUTION
2012 - SEP,Central Services,Fully rechargeable Overheads,Distributed Services                    ,E14368,Supplies & Services           ,Comms and Computing           ,DG63,Software Licences - Data,404,"18,821.67",7/24/2012,R,NORTHGATE INFORMATION SOLUTION
2012 - SEP,Central Services,Fully rechargeable Overheads,Distributed Services                    ,E14368,Supplies & Services           ,Comms and Computing           ,DG63,Software Licences - Data,405,"11,293.00",7/24/2012,R,NORTHGATE INFORMATION SOLUTION
2012 - SEP,Central Services,Fully rechargeable Overheads,Distributed Services                    ,E14368,Supplies & Services           ,Comms and Computing           ,DG63,Software Licences - Data,406,"6,516.51",7/24/2012,R,NORTHGATE INFORMATION SOLUTION
2012 - SEP,Central Services,Fully rechargeable Overheads,Distributed Services                    ,E14368,Supplies & Services           ,Comms and Computing           ,DG63,Software Licences - Data,407,"2,640.00",7/31/2012,R,STATSEEKER                    
2012 - SEP,Central Services,Fully rechargeable Overheads,Distributed Services                    ,E14368,Supplies & Services           ,Comms and Computing           ,DG65,Application Licences,408,"57,302.44",4/9/2012,R,OPEN TEXT UK LTD              
2012 - SEP,Central Services,Fully rechargeable Overheads,Facilities Magt Cptal Works             ,E14370,Premises Related Expenditure  ,RepairsAlterations&MtceOfBldgs,BA01,DDM - General Building,409,938,9/20/2012,R,TREND CONTROL SYSTEMS         
2012 - SEP,Cultural Env Reg&Plan Services,SMSS (Env),ES Support & Development                ,G00070,Supplies & Services           ,Expenses                      ,DH02,Conferences,410,"2,331.00",9/14/2012,R,LONDON BOROUGH OF CAMDEN(AR)  
2012 - SEP,Cultural Env Reg&Plan Services,SMSS (Env),ES Support & Development                ,G00070,Supplies & Services           ,Expenses                      ,DH02,Conferences,411,750,9/19/2012,R,SERCO LTD                     
2012 - SEP,Cultural Env Reg&Plan Services,SMSS (Env),ES Support & Development                ,G00070,Supplies & Services           ,Expenses                      ,DH02,Conferences,412,"1,200.00",9/21/2012,R,LONDON BOROUGH OF CAMDEN(AR)  
2012 - SEP,Cultural Env Reg&Plan Services,SMSS (Env),Senior Mgt. - E.S.C.                    ,G00100,Supplies & Services           ,Grants and Subscriptions      ,DJ04,Subscriptions,413,"4,950.00",9/19/2012,R,FUTURE OF LONDON              
2012 - SEP,Cultural Env Reg&Plan Services,SMSS (Env),Senior Mgt. - E.S.C.                    ,G00100,Supplies & Services           ,Grants and Subscriptions      ,DJ04,Subscriptions,414,"2,500.00",9/26/2012,R,LEDNET                        
2012 - SEP,Highways & Transport Services,Structural Maintenance,C'way & F'way Mtce                      ,G00121,Supplies & Services           ,Grants and Subscriptions      ,DJ04,Subscriptions,415,650,10/8/2012,R,THOMAS TELFORD SERVICES LTD   
2012 - SEP,Highways & Transport Services,Env Safety&Routine Maintenance,Walk Sheets                             ,G00127,Third Party Payments          ,Private Contractors           ,EH56,Carriageway/Fway Maint,416,"27,309.32",8/28/2012,R,FM CONWAY LTD                 
2012 - SEP,Highways & Transport Services,Env Safety&Routine Maintenance,Walk Sheets                             ,G00127,Third Party Payments          ,Private Contractors           ,EH56,Carriageway/Fway Maint,417,"2,617.11",8/28/2012,R,FM CONWAY LTD                 
2012 - SEP,Highways & Transport Services,Env Safety&Routine Maintenance,Walk Sheets                             ,G00127,Third Party Payments          ,Private Contractors           ,EH56,Carriageway/Fway Maint,418,"50,890.84",11/9/2012,R,FM CONWAY LTD                 
2012 - SEP,Highways & Transport Services,Env Safety&Routine Maintenance,Traffic Signs.                          ,G00160,Third Party Payments          ,Private Contractors           ,EH01,Miscellaneous Contrct Services,419,586.7,8/22/2012,R,MAY GURNEY LTD T/A CARTLEDGE  
2012 - SEP,Highways & Transport Services,Env Safety&Routine Maintenance,Traffic Signs.                          ,G00160,Third Party Payments          ,Private Contractors           ,EH01,Miscellaneous Contrct Services,420,"2,765.21",11/9/2012,R,FM CONWAY LTD                 
2012 - SEP,Highways & Transport Services,Tr'sport Plg / Policy / Str'gy,CPZ implementation & Consultat          ,G00211,Third Party Payments          ,Private Contractors           ,EH56,Carriageway/Fway Maint,421,"1,898.70",8/28/2012,R,FM CONWAY LTD                 
2012 - SEP,Highways & Transport Services,Tr'sport Plg / Policy / Str'gy,CPZ implementation & Consultat          ,G00211,Third Party Payments          ,Private Contractors           ,EH56,Carriageway/Fway Maint,422,"6,981.86",8/28/2012,R,FM CONWAY LTD                 
2012 - SEP,Highways & Transport Services,Traffic Mgt & Road Safety,Tr Man & Accid Sch                      ,G00220,Supplies & Services           ,Grants and Subscriptions      ,DJ04,Subscriptions,423,"1,147.00",7/13/2012,R,KEY TRAFFIC SYSTEMS LTD       
2012 - SEP,Highways & Transport Services,Street Lights(Inc Energy Cost),Street Lighting .                       ,G00260,Premises Related Expenditure  ,Energy Costs                  ,BB02,Electricity,424,"55,178.54",11/9/2012,R,KENT COUNTY COUNCIL           
2012 - SEP,Highways & Transport Services,Street Lights(Inc Energy Cost),Street Lighting .                       ,G00260,Third Party Payments          ,Private Contractors           ,EH01,Miscellaneous Contrct Services,425,"3,807.74",8/22/2012,R,MAY GURNEY LTD T/A CARTLEDGE  
2012 - SEP,Highways & Transport Services,Street Lights(Inc Energy Cost),Street Lighting .                       ,G00260,Third Party Payments          ,Private Contractors           ,EH01,Miscellaneous Contrct Services,426,"13,947.98",8/31/2012,R,MAY GURNEY LTD T/A CARTLEDGE  
2012 - SEP,Highways & Transport Services,Street Lights(Inc Energy Cost),Street Lighting .                       ,G00260,Third Party Payments          ,Private Contractors           ,EH01,Miscellaneous Contrct Services,427,695.08,9/13/2012,R,MAY GURNEY LTD T/A CARTLEDGE  
2012 - SEP,Highways & Transport Services,Street Lights(Inc Energy Cost),Street Lighting .                       ,G00260,Third Party Payments          ,Private Contractors           ,EH01,Miscellaneous Contrct Services,428,"4,146.81",8/31/2012,R,MAY GURNEY LTD T/A CARTLEDGE  
2012 - SEP,Highways & Transport Services,Parking Services,Queen's Road C P                        ,G00297,Premises Related Expenditure  ,RepairsAlterations&MtceOfBldgs,BA06,Repairs & Maintenance General,429,"2,232.00",9/17/2012,R,TEASDALE GROUP LTD            
2012 - SEP,Highways & Transport Services,Parking Services,York Close CP                           ,G00298,Premises Related Expenditure  ,Rents                         ,BC01,Miscellaneous Rents,430,"30,460.50",8/28/2012,R,TRANSPORT TRADING LTD PROP A/C
2012 - SEP,Highways & Transport Services,Parking Services,St. Georges Car Park EAST               ,G00300,Premises Related Expenditure  ,Rents                         ,BC01,Miscellaneous Rents,431,824.05,8/17/2012,R,LLOYDS BANK SF NOMINEES LTD   
2012 - SEP,Highways & Transport Services,Parking Services,St. Georges Car Park WEST M/S           ,G00302,Premises Related Expenditure  ,Rents                         ,BC01,Miscellaneous Rents,432,"2,118.86",8/24/2012,R,SACKVILLE SPF IV (GP) NO 1 LTD
2012 - SEP,Highways & Transport Services,Parking Services,Civil Enforcement Officers              ,G00330,Supplies & Services           ,Equip Furniture/Materials     ,DA09,Equip-Purchases,433,877.5,3/9/2012,R,QUARTIX                       
2012 - SEP,Highways & Transport Services,Parking Services,Operational Running Costs               ,G00331,Supplies & Services           ,Equip Furniture/Materials     ,DA09,Equip-Purchases,434,"2,595.00",9/17/2012,R,TEASDALE GROUP LTD            
2012 - SEP,Highways & Transport Services,Parking Services,Operational Running Costs               ,G00331,Supplies & Services           ,Prntng Stnry Gen Off Exp      ,DE01,External Printing,435,"2,010.00",9/13/2012,R,LIBERTY SERVICES              
2012 - SEP,Highways & Transport Services,Parking Services,Operational Running Costs               ,G00331,Supplies & Services           ,Comms and Computing           ,DG50,Other IT Expenditure,436,879.92,8/24/2012,R,INSIGHT DIRECT (UK) LTD       
2012 - SEP,Highways & Transport Services,Tr'sport Plg / Policy / Str'gy,RASWA                                   ,G00382,Employees                     ,Indirect Employee Expenses    ,AB57,External Training Costs,437,"3,311.00",7/31/2012,R,PITNEY BOWES SOFTWARE LTD     
2012 - SEP,Highways & Transport Services,Structural Maintenance,Footpath Crossings.                     ,G00390,Third Party Payments          ,Private Contractors           ,EH56,Carriageway/Fway Maint,438,"1,184.88",8/28/2012,R,FM CONWAY LTD                 
2012 - SEP,Highways & Transport Services,Structural Maintenance,Footpath Crossings.                     ,G00390,Third Party Payments          ,Private Contractors           ,EH56,Carriageway/Fway Maint,439,"7,018.29",8/28/2012,R,FM CONWAY LTD                 
2012 - SEP,Cultural Env Reg&Plan Services,Street Cleaning - Not highways,Street Cleansing (Inc. Gully)           ,G00492,Supplies & Services           ,Equip Furniture/Materials     ,DA01,Equipment - R & M,440,829.87,9/18/2012,R,GREEN MACHINES                
2012 - SEP,Cultural Env Reg&Plan Services,Street Cleaning - Not highways,Street Cleansing (Inc. Gully)           ,G00492,Supplies & Services           ,Equip Furniture/Materials     ,DA31,Waste Sacks & Bags,441,"1,852.20",8/16/2012,R,POLARIS PLASTICS LTD          
2012 - SEP,Cultural Env Reg&Plan Services,Street Cleaning - Not highways,Street Cleansing (Inc. Gully)           ,G00492,Supplies & Services           ,Clothing Unfrms Laundry       ,DC02,Clothing & Uniforms,442,"1,593.21",8/31/2012,R,SAFETY MANAGEMENT             
2012 - SEP,Cultural Env Reg&Plan Services,Waste Disposal,Waste Disposal .                        ,G00550,Third Party Payments          ,Private Contractors           ,EH04,Accommodation Based Support,443,"452,416.56",7/9/2012,R,KINGSTON CORPORATION          
2012 - SEP,Cultural Env Reg&Plan Services,Waste Disposal,Waste Disposal .                        ,G00550,Third Party Payments          ,Private Contractors           ,EH10,Contract Payments,444,"34,155.89",7/9/2012,R,KINGSTON CORPORATION          
2012 - SEP,Cultural Env Reg&Plan Services,Waste Disposal,Waste Disposal .                        ,G00550,Third Party Payments          ,Private Contractors           ,EH96,Gen Waste - Alt.  Contractor  ,445,"1,133.62",8/31/2012,R,CORY ENVIRONMENTAL LIMITED    
2012 - SEP,Cultural Env Reg&Plan Services,Waste Disposal,Garth Road Site                         ,G00580,Premises Related Expenditure  ,Energy Costs                  ,BB02,Electricity,446,"1,023.57",5/21/2012,R,EDF ENERGY 1 LIMITED          
2012 - SEP,Cultural Env Reg&Plan Services,Waste Disposal,Garth Road Site                         ,G00580,Supplies & Services           ,Equip Furniture/Materials     ,DA01,Equipment - R & M,447,"1,142.40",11/9/2012,R,UNIQUE OFFICE SOLUTIONS LTD   
2012 - SEP,Cultural Env Reg&Plan Services,Waste Disposal,Garth Road Site                         ,G00580,Third Party Payments          ,Private Contractors           ,EH63,Paper Haulage,448,"10,038.38",7/9/2012,R,KINGSTON CORPORATION          
2012 - SEP,Cultural Env Reg&Plan Services,Waste Disposal,Garth Road Site                         ,G00580,Third Party Payments          ,Private Contractors           ,EH65,MH Clients,449,"29,121.05",7/9/2012,R,KINGSTON CORPORATION          
2012 - SEP,Highways & Transport Services,Structural Maintenance,Grass Cut/Tr Mtce                       ,G00600,Premises Related Expenditure  ,Ground Maintenance Costs      ,BL03,Maintenance of Grounds,450,879.28,9/8/2012,R,VEOLIA ES (UK) LIMITED        
2012 - SEP,Highways & Transport Services,Structural Maintenance,Grass Cut/Tr Mtce                       ,G00600,Premises Related Expenditure  ,Ground Maintenance Costs      ,BL03,Maintenance of Grounds,451,"2,866.25",8/28/2012,R,FM CONWAY LTD                 
2012 - SEP,Highways & Transport Services,Structural Maintenance,Grass Cut/Tr Mtce                       ,G00600,Premises Related Expenditure  ,Ground Maintenance Costs      ,BL03,Maintenance of Grounds,452,"1,501.46",3/9/2012,R,VEOLIA ES (UK) LIMITED        
2012 - SEP,Highways & Transport Services,Structural Maintenance,Grass Cut/Tr Mtce                       ,G00600,Premises Related Expenditure  ,Ground Maintenance Costs      ,BL03,Maintenance of Grounds,453,"2,884.50",3/9/2012,R,VEOLIA ES (UK) LIMITED        
2012 - SEP,Highways & Transport Services,Structural Maintenance,Grass Cut/Tr Mtce                       ,G00600,Premises Related Expenditure  ,Ground Maintenance Costs      ,BL03,Maintenance of Grounds,454,"1,178.19",3/9/2012,R,VEOLIA ES (UK) LIMITED        
2012 - SEP,Cultural Env Reg&Plan Services,Environmental Health,Dog Control.                            ,G00620,Third Party Payments          ,Private Contractors           ,EH02,Miscellaneous Hired Services,455,"1,323.00",4/9/2012,R,RIVERSIDE ANIMAL SERVICES     
2012 - SEP,Cultural Env Reg&Plan Services,Waste Collection,Recycling Activities                    ,G00640,Supplies & Services           ,Equip Furniture/Materials     ,DA31,Waste Sacks & Bags,456,"1,664.00",8/16/2012,R,POLARIS PLASTICS LTD          
2012 - SEP,Cultural Env Reg&Plan Services,Waste Collection,Recycling Activities                    ,G00640,Third Party Payments          ,Private Contractors           ,EH03,Term Contract,457,"23,661.38",7/9/2012,R,KINGSTON CORPORATION          
2012 - SEP,Cultural Env Reg&Plan Services,Waste Collection,Recycling Activities                    ,G00640,Third Party Payments          ,Private Contractors           ,EH03,Term Contract,458,"49,181.43",7/9/2012,R,KINGSTON CORPORATION          
2012 - SEP,Cultural Env Reg&Plan Services,Waste Collection,Recycling Activities                    ,G00640,Third Party Payments          ,Private Contractors           ,EH10,Contract Payments,459,"9,766.45",7/9/2012,R,KINGSTON CORPORATION          
2012 - SEP,Cultural Env Reg&Plan Services,Waste Collection,Recycling Activities                    ,G00640,Third Party Payments          ,Private Contractors           ,EH18,Disposal of Kitchen Waste,460,"7,533.00",7/9/2012,R,KINGSTON CORPORATION          
2012 - SEP,Cultural Env Reg&Plan Services,Waste Collection,Recycling Activities                    ,G00640,Third Party Payments          ,Private Contractors           ,EH18,Disposal of Kitchen Waste,461,"17,899.08",7/9/2012,R,KINGSTON CORPORATION          
2012 - SEP,Cultural Env Reg&Plan Services,Waste Collection,Recycling Activities                    ,G00640,Third Party Payments          ,Private Contractors           ,EH19,Dano Drum Contract Sita Haulag,462,"3,022.09",7/9/2012,R,KINGSTON CORPORATION          
2012 - SEP,Cultural Env Reg&Plan Services,Waste Collection,Recycling Activities                    ,G00640,Third Party Payments          ,Private Contractors           ,EH63,Paper Haulage,463,"1,167.10",7/9/2012,R,KINGSTON CORPORATION          
2012 - SEP,Cultural Env Reg&Plan Services,Waste Collection,Recycling Activities                    ,G00640,Third Party Payments          ,Private Contractors           ,EH63,Paper Haulage,464,"10,286.95",7/9/2012,R,KINGSTON CORPORATION          
2012 - SEP,Cultural Env Reg&Plan Services,Waste Collection,Recycling Activities                    ,G00640,Third Party Payments          ,Private Contractors           ,EH63,Paper Haulage,465,"30,067.34",7/9/2012,R,KINGSTON CORPORATION          
2012 - SEP,Cultural Env Reg&Plan Services,Waste Collection,Recycling Activities                    ,G00640,Third Party Payments          ,Private Contractors           ,EH90,Disposal of Waste from CA Site,466,"162,532.00",7/9/2012,R,KINGSTON CORPORATION          
2012 - SEP,Cultural Env Reg&Plan Services,Waste Collection,Recycling Activities                    ,G00640,Third Party Payments          ,Private Contractors           ,EH94,Waste Disposal - Alt. Site,467,"7,126.27",7/9/2012,R,KINGSTON CORPORATION          
2012 - SEP,Cultural Env Reg&Plan Services,Waste Collection,Refuse Collection (Operations)          ,G00661,Supplies & Services           ,Clothing Unfrms Laundry       ,DC02,Clothing & Uniforms,468,"2,147.22",8/20/2012,R,SAFETY MANAGEMENT             
2012 - SEP,Cultural Env Reg&Plan Services,Waste Collection,Commercial Waste                        ,G00663,Supplies & Services           ,Equip Furniture/Materials     ,DA08,Tools-Purchase,469,775.8,6/9/2012,R,BELL BRUSH                    
2012 - SEP,Cultural Env Reg&Plan Services,Street Cleaning - Not highways,Waste Enforcement                       ,G00680,Supplies & Services           ,Services                      ,DF11,Counsel's fees,470,"1,950.00",2/3/2012,R,REDACTED
2012 - SEP,Cultural Env Reg&Plan Services,Street Cleaning - Not highways,Waste Enforcement                       ,G00680,Supplies & Services           ,Services                      ,DF11,Counsel's fees,471,570,9/8/2012,R,REDACTED
2012 - SEP,Cultural Env Reg&Plan Services,Consumer Protection,Trading Standards                       ,G00690,Supplies & Services           ,Services                      ,DF11,Counsel's fees,472,"1,000.00",6/7/2012,R,REDACTED
2012 - SEP,Cultural Env Reg&Plan Services,Consumer Protection,Trading Standards                       ,G00690,Supplies & Services           ,Grants and Subscriptions      ,DJ04,Subscriptions,473,"2,692.00",6/9/2012,R,WANDSWORTH BOROUGH COUNCIL    
2012 - SEP,Cultural Env Reg&Plan Services,Consumer Protection,Trading Standards                       ,G00690,Supplies & Services           ,Grants and Subscriptions      ,DJ04,Subscriptions,474,"1,500.00",2/28/2012,R,LOTSA CIC                     
2012 - SEP,Cultural Env Reg&Plan Services,Environmental Health,Health & Safety                         ,G00697,Supplies & Services           ,Equip Furniture/Materials     ,DA09,Equip-Purchases,475,539.1,8/24/2012,R,POSTURITE (UK)                
2012 - SEP,Cultural Env Reg&Plan Services,Environmental Health,Pest Control                            ,G00724,Supplies & Services           ,Equip Furniture/Materials     ,DA09,Equip-Purchases,476,851.05,8/22/2012,R,KILLGERM CHEMICALS LIMITED    
2012 - SEP,Cultural Env Reg&Plan Services,Environmental Health,Housing/Env                             ,G00730,Employees                     ,Direct Employee Expenses      ,AA17,Agency Staff & Casual Paymts,477,635.95,5/9/2012,R,REDACTED
2012 - SEP,Cultural Env Reg&Plan Services,Environmental Health,Housing/Env                             ,G00730,Employees                     ,Direct Employee Expenses      ,AA17,Agency Staff & Casual Paymts,478,893.55,8/29/2012,R,REDACTED
2012 - SEP,Cultural Env Reg&Plan Services,Environmental Health,Housing/Env                             ,G00730,Employees                     ,Direct Employee Expenses      ,AA17,Agency Staff & Casual Paymts,479,644,12/9/2012,R,REDACTED
2012 - SEP,Cultural Env Reg&Plan Services,Environmental Health,Housing/Env                             ,G00730,Supplies & Services           ,Equip Furniture/Materials     ,DA09,Equip-Purchases,480,"1,198.00",4/7/2012,R,POSTURITE (UK)                
2012 - SEP,Cultural Env Reg&Plan Services,Environmental Health,Housing/Env                             ,G00730,Supplies & Services           ,Equip Furniture/Materials     ,DA09,Equip-Purchases,481,"-1,243.00",9/24/2012,R,POSTURITE (UK)                
2012 - SEP,Cultural Env Reg&Plan Services,Environmental Health,Housing/Env                             ,G00730,Supplies & Services           ,Equip Furniture/Materials     ,DA09,Equip-Purchases,482,"1,118.70",9/24/2012,R,POSTURITE (UK)                
2012 - SEP,Cultural Env Reg&Plan Services,SMSS (Env),Waste Management                        ,G00900,Supplies & Services           ,Equip Furniture/Materials     ,DA31,Waste Sacks & Bags,483,"1,047.20",4/9/2012,R,BPI INDUSTRIAL                
2012 - SEP,Central Services,Gen Grants Bequest & Donations,Vestry Hall                             ,G40314,Employees                     ,Direct Employee Expenses      ,AA17,Agency Staff & Casual Paymts,484,"1,011.80",8/31/2012,R,PCL SECURITY LTD              
2012 - SEP,Central Services,Gen Grants Bequest & Donations,Vestry Hall                             ,G40314,Employees                     ,Direct Employee Expenses      ,AA17,Agency Staff & Casual Paymts,485,"4,486.95",10/9/2012,R,PCL SECURITY LTD              
2012 - SEP,CS -Oth Operating Inc & Expend,INVESTMENT PROPERTIES,Edenvale Com Cntr (NE Mitcham)          ,G40316,Premises Related Expenditure  ,RepairsAlterations&MtceOfBldgs,BA03,DDM - Mechanical,486,700,8/29/2012,R,COFELY LIMITED                
2012 - SEP,Cultural Env Reg&Plan Services,Development Control,Development Control                     ,H01130,Supplies & Services           ,Services                      ,DF03,Consultants,487,880,8/23/2012,R,THE HOME REFIT SERVICE        
2012 - SEP,Cultural Env Reg&Plan Services,Development Control,Development Control                     ,H01130,Supplies & Services           ,Services                      ,DF11,Counsel's fees,488,500,8/29/2012,R,REDACTED
2012 - SEP,Cultural Env Reg&Plan Services,Development Control,Development Control                     ,H01130,Supplies & Services           ,Services                      ,DF11,Counsel's fees,489,"4,600.00",9/25/2012,R,KINGSLEY SMITH SOLICITORS     
2012 - SEP,Cultural Env Reg&Plan Services,Development Control,Development Control                     ,H01130,Supplies & Services           ,Services                      ,DF11,Counsel's fees,490,"3,000.00",12/9/2012,R,VALUATION OFFICE AGENCY       
2012 - SEP,Cultural Env Reg&Plan Services,Planning Policy,HPDG - FUTUREMERTON                     ,H01183,Supplies & Services           ,Services                      ,DF03,Consultants,491,500,9/21/2012,R,ADROIT ECONOMICS              
2012 - SEP,Cultural Env Reg&Plan Services,Planning Policy,HPDG - FUTUREMERTON                     ,H01183,Supplies & Services           ,Grants and Subscriptions      ,DJ04,Subscriptions,492,500,8/31/2012,R,HERITAGE OF LONDON TRUST LTD  
2012 - SEP,CS -Oth Operating Inc & Expend,INVESTMENT PROPERTIES,MILES RD GENERATOR                      ,H01203,Premises Related Expenditure  ,Rents                         ,BC01,Miscellaneous Rents,493,"8,000.00",7/9/2012,R,W&R BUXTON LTD PENSION FUND   
2012 - SEP,CS -Oth Operating Inc & Expend,INVESTMENT PROPERTIES,MILES RD GENERATOR                      ,H01203,Third Party Payments          ,Private Contractors           ,EH02,Miscellaneous Hired Services,494,"28,875.00",9/18/2012,R,MERTON CHAMBER OF COMMERCE    
2012 - SEP,CS -Oth Operating Inc & Expend,Trading A/c Surpluses/Deficits,Transport-Contract Hire                 ,J01374,Transport Related Expenditure ,Direct Transport Costs        ,CA01,Petrol Derv & Oil,495,"40,444.81",8/29/2012,R,EMO OILS LTD                  
2012 - SEP,CS -Oth Operating Inc & Expend,Trading A/c Surpluses/Deficits,Transport-Contract Hire                 ,J01374,Transport Related Expenditure ,Direct Transport Costs        ,CA01,Petrol Derv & Oil,496,"1,770.85",9/18/2012,R,B P OIL UK LIMITED            
2012 - SEP,CS -Oth Operating Inc & Expend,Trading A/c Surpluses/Deficits,Transport-Contract Hire                 ,J01374,Transport Related Expenditure ,Contract Hire and Op Leasing  ,CC53,Plant Hire for MRCS,497,851,8/31/2012,R,SHB HIRE LTD                  
2012 - SEP,CS -Oth Operating Inc & Expend,Trading A/c Surpluses/Deficits,Transport-Contract Hire                 ,J01374,Transport Related Expenditure ,Contract Hire and Op Leasing  ,CC53,Plant Hire for MRCS,498,851,8/31/2012,R,SHB HIRE LTD                  
2012 - SEP,CS -Oth Operating Inc & Expend,Trading A/c Surpluses/Deficits,Transport-Contract Hire                 ,J01374,Transport Related Expenditure ,Contract Hire and Op Leasing  ,CC53,Plant Hire for MRCS,499,700,2/9/2012,R,PHOENIX VEHICLE HIRE LTD      
2012 - SEP,CS -Oth Operating Inc & Expend,Trading A/c Surpluses/Deficits,Transport-Contract Hire                 ,J01374,Transport Related Expenditure ,Contract Hire and Op Leasing  ,CC53,Plant Hire for MRCS,500,851,8/31/2012,R,SHB HIRE LTD                  
2012 - SEP,CS -Oth Operating Inc & Expend,Trading A/c Surpluses/Deficits,Transport-Contract Hire                 ,J01374,Transport Related Expenditure ,Contract Hire and Op Leasing  ,CC53,Plant Hire for MRCS,501,"1,390.00",8/28/2012,R,SHB HIRE LTD                  
2012 - SEP,CS -Oth Operating Inc & Expend,Trading A/c Surpluses/Deficits,Transport-Contract Hire                 ,J01374,Transport Related Expenditure ,Contract Hire and Op Leasing  ,CC53,Plant Hire for MRCS,502,"2,500.00",8/31/2012,R,NOBLET MUNICIPAL SERVICES LTD 
2012 - SEP,CS -Oth Operating Inc & Expend,Trading A/c Surpluses/Deficits,Transport-Contract Hire                 ,J01374,Transport Related Expenditure ,Contract Hire and Op Leasing  ,CC53,Plant Hire for MRCS,503,700,9/9/2012,R,PHOENIX VEHICLE HIRE LTD      
2012 - SEP,CS -Oth Operating Inc & Expend,Trading A/c Surpluses/Deficits,Transport-Contract Hire                 ,J01374,Transport Related Expenditure ,Contract Hire and Op Leasing  ,CC53,Plant Hire for MRCS,504,"1,311.00",8/30/2012,R,GVS HIRE LTD                  
2012 - SEP,CS -Oth Operating Inc & Expend,Trading A/c Surpluses/Deficits,Transport-Contract Hire                 ,J01374,Transport Related Expenditure ,Contract Hire and Op Leasing  ,CC53,Plant Hire for MRCS,505,700,8/26/2012,R,PHOENIX VEHICLE HIRE LTD      
2012 - SEP,CS -Oth Operating Inc & Expend,Trading A/c Surpluses/Deficits,Transport-Contract Hire                 ,J01374,Transport Related Expenditure ,Contract Hire and Op Leasing  ,CC57,Plant Hire for Housing,506,940,8/31/2012,R,REDACTED
2012 - SEP,CS -Oth Operating Inc & Expend,Trading A/c Surpluses/Deficits,Transport-Contract Hire                 ,J01374,Transport Related Expenditure ,Contract Hire and Op Leasing  ,CC58,Plant Hire - Ad Hoc,507,759,8/30/2012,R,GVS HIRE LTD                  
2012 - SEP,CS -Oth Operating Inc & Expend,Trading A/c Surpluses/Deficits,Transport-Contract Hire                 ,J01374,Transport Related Expenditure ,Contract Hire and Op Leasing  ,CC58,Plant Hire - Ad Hoc,508,759,8/30/2012,R,GVS HIRE LTD                  
2012 - SEP,CS -Oth Operating Inc & Expend,Trading A/c Surpluses/Deficits,Transport-Contract Hire                 ,J01374,Transport Related Expenditure ,Contract Hire and Op Leasing  ,CC59,Plant Hire - Non-Rechargeable ,509,"1,458.62",4/9/2012,R,DAWSON RENTALS BUS AND COACH  
2012 - SEP,CS -Oth Operating Inc & Expend,Trading A/c Surpluses/Deficits,Transport-Contract Hire                 ,J01374,Transport Related Expenditure ,Contract Hire and Op Leasing  ,CC59,Plant Hire - Non-Rechargeable ,510,"1,458.62",4/9/2012,R,DAWSON RENTALS BUS AND COACH  
2012 - SEP,CS -Oth Operating Inc & Expend,Trading A/c Surpluses/Deficits,Transport-Contract Hire                 ,J01374,Transport Related Expenditure ,Contract Hire and Op Leasing  ,CC59,Plant Hire - Non-Rechargeable ,511,777.33,6/9/2012,R,REDACTED
2012 - SEP,CS -Oth Operating Inc & Expend,Trading A/c Surpluses/Deficits,Transport-Contract Hire                 ,J01374,Transport Related Expenditure ,Contract Hire and Op Leasing  ,CC59,Plant Hire - Non-Rechargeable ,512,"2,238.32",8/31/2012,R,REDACTED
2012 - SEP,CS -Oth Operating Inc & Expend,Trading A/c Surpluses/Deficits,Transport-Contract Hire                 ,J01374,Transport Related Expenditure ,Contract Hire and Op Leasing  ,CC64,Mini Cab Hire for Education,513,"5,355.72",9/9/2012,R,KINGSTON ACCESSIBILITY TRAN LT
2012 - SEP,CS -Oth Operating Inc & Expend,Trading A/c Surpluses/Deficits,Transport-Contract Hire                 ,J01374,Transport Related Expenditure ,Contract Hire and Op Leasing  ,CC64,Mini Cab Hire for Education,514,"12,134.42",9/16/2012,R,KINGSTON ACCESSIBILITY TRAN LT
2012 - SEP,CS -Oth Operating Inc & Expend,Trading A/c Surpluses/Deficits,Transport-Contract Hire                 ,J01374,Transport Related Expenditure ,Contract Hire and Op Leasing  ,CC64,Mini Cab Hire for Education,515,900,8/13/2012,R,CAREFIRST24                   
2012 - SEP,CS -Oth Operating Inc & Expend,Trading A/c Surpluses/Deficits,Transport-Contract Hire                 ,J01374,Transport Related Expenditure ,Contract Hire and Op Leasing  ,CC64,Mini Cab Hire for Education,516,900,6/9/2012,R,CAREFIRST24                   
2012 - SEP,CS -Oth Operating Inc & Expend,Trading A/c Surpluses/Deficits,Transport-Contract Hire                 ,J01374,Transport Related Expenditure ,Contract Hire and Op Leasing  ,CC64,Mini Cab Hire for Education,517,640,7/23/2012,R,CAREFIRST24                   
2012 - SEP,CS -Oth Operating Inc & Expend,Trading A/c Surpluses/Deficits,Transport-Contract Hire                 ,J01374,Transport Related Expenditure ,Contract Hire and Op Leasing  ,CC64,Mini Cab Hire for Education,518,900,7/16/2012,R,CAREFIRST24                   
2012 - SEP,CS -Oth Operating Inc & Expend,Trading A/c Surpluses/Deficits,Transport-Contract Hire                 ,J01374,Transport Related Expenditure ,Contract Hire and Op Leasing  ,CC64,Mini Cab Hire for Education,519,900,6/18/2012,R,CAREFIRST24                   
2012 - SEP,CS -Oth Operating Inc & Expend,Trading A/c Surpluses/Deficits,Transport-Contract Hire                 ,J01374,Transport Related Expenditure ,Contract Hire and Op Leasing  ,CC64,Mini Cab Hire for Education,520,720,8/31/2012,R,SILVERBURN FINANCE (UK) LTD   
2012 - SEP,CS -Oth Operating Inc & Expend,Trading A/c Surpluses/Deficits,Transport-Contract Hire                 ,J01374,Transport Related Expenditure ,Contract Hire and Op Leasing  ,CC64,Mini Cab Hire for Education,521,760,8/20/2012,R,CAREFIRST24                   
2012 - SEP,CS -Oth Operating Inc & Expend,Trading A/c Surpluses/Deficits,Transport-Contract Hire                 ,J01374,Transport Related Expenditure ,Contract Hire and Op Leasing  ,CC64,Mini Cab Hire for Education,522,800,9/7/2012,R,CAREFIRST24                   
2012 - SEP,CS -Oth Operating Inc & Expend,Trading A/c Surpluses/Deficits,Transport-Contract Hire                 ,J01374,Transport Related Expenditure ,Contract Hire and Op Leasing  ,CC64,Mini Cab Hire for Education,523,900,6/25/2012,R,CAREFIRST24                   
2012 - SEP,CS -Oth Operating Inc & Expend,Trading A/c Surpluses/Deficits,Transport-Contract Hire                 ,J01374,Transport Related Expenditure ,Contract Hire and Op Leasing  ,CC64,Mini Cab Hire for Education,524,"12,630.00",9/23/2012,R,KINGSTON ACCESSIBILITY TRAN LT
2012 - SEP,CS -Oth Operating Inc & Expend,Trading A/c Surpluses/Deficits,Transport-Contract Hire                 ,J01374,Transport Related Expenditure ,Contract Hire and Op Leasing  ,CC66,Mini Cab Hire -Soc Serv -Child,525,749.96,2/9/2012,R,KINGSTON ACCESSIBILITY TRAN LT
2012 - SEP,CS -Oth Operating Inc & Expend,Trading A/c Surpluses/Deficits,Transport-Contract Hire                 ,J01374,Transport Related Expenditure ,Contract Hire and Op Leasing  ,CC66,Mini Cab Hire -Soc Serv -Child,526,640.8,9/9/2012,R,KINGSTON ACCESSIBILITY TRAN LT
2012 - SEP,CS -Oth Operating Inc & Expend,Trading A/c Surpluses/Deficits,Transport-Contract Hire                 ,J01374,Transport Related Expenditure ,Contract Hire and Op Leasing  ,CC66,Mini Cab Hire -Soc Serv -Child,527,"1,737.90",9/16/2012,R,KINGSTON ACCESSIBILITY TRAN LT
2012 - SEP,CS -Oth Operating Inc & Expend,Trading A/c Surpluses/Deficits,Transport-Contract Hire                 ,J01374,Transport Related Expenditure ,Contract Hire and Op Leasing  ,CC66,Mini Cab Hire -Soc Serv -Child,528,889.24,8/31/2012,R,BARCLAYS ASSET & SALES FINANCE
2012 - SEP,CS -Oth Operating Inc & Expend,Trading A/c Surpluses/Deficits,Transport-Contract Hire                 ,J01374,Transport Related Expenditure ,Contract Hire and Op Leasing  ,CC66,Mini Cab Hire -Soc Serv -Child,529,"1,800.00",8/31/2012,R,GALPINS SERVICE               
2012 - SEP,CS -Oth Operating Inc & Expend,Trading A/c Surpluses/Deficits,Transport-Contract Hire                 ,J01374,Transport Related Expenditure ,Contract Hire and Op Leasing  ,CC66,Mini Cab Hire -Soc Serv -Child,530,"1,777.90",9/23/2012,R,KINGSTON ACCESSIBILITY TRAN LT
2012 - SEP,CS -Oth Operating Inc & Expend,Trading A/c Surpluses/Deficits,Transport-Contract Hire                 ,J01374,Transport Related Expenditure ,Contract Hire and Op Leasing  ,CC66,Mini Cab Hire -Soc Serv -Child,531,520,8/31/2012,R,CHEAM STATION CARS            
2012 - SEP,CS -Oth Operating Inc & Expend,Trading A/c Surpluses/Deficits,Transport-Contract Hire                 ,J01374,Transport Related Expenditure ,Contract Hire and Op Leasing  ,CC66,Mini Cab Hire -Soc Serv -Child,532,840,8/31/2012,R,CHEAM STATION CARS            
2012 - SEP,CS -Oth Operating Inc & Expend,Trading A/c Surpluses/Deficits,Transport-Contract Hire                 ,J01374,Transport Related Expenditure ,Contract Hire and Op Leasing  ,CC67,Mini Cab Hire -Soc Serv -Adult,533,890,2/9/2012,R,KINGSTON ACCESSIBILITY TRAN LT
2012 - SEP,CS -Oth Operating Inc & Expend,Trading A/c Surpluses/Deficits,Transport-Contract Hire                 ,J01374,Transport Related Expenditure ,Contract Hire and Op Leasing  ,CC67,Mini Cab Hire -Soc Serv -Adult,534,"1,448.90",9/9/2012,R,KINGSTON ACCESSIBILITY TRAN LT
2012 - SEP,CS -Oth Operating Inc & Expend,Trading A/c Surpluses/Deficits,Transport-Contract Hire                 ,J01374,Transport Related Expenditure ,Contract Hire and Op Leasing  ,CC67,Mini Cab Hire -Soc Serv -Adult,535,880,8/31/2012,R,AERIAL CAR SERVICES LTD       
2012 - SEP,CS -Oth Operating Inc & Expend,Trading A/c Surpluses/Deficits,Transport-Contract Hire                 ,J01374,Transport Related Expenditure ,Contract Hire and Op Leasing  ,CC67,Mini Cab Hire -Soc Serv -Adult,536,962,8/31/2012,R,AERIAL CAR SERVICES LTD       
2012 - SEP,CS -Oth Operating Inc & Expend,Trading A/c Surpluses/Deficits,Transport-Contract Hire                 ,J01374,Transport Related Expenditure ,Contract Hire and Op Leasing  ,CC67,Mini Cab Hire -Soc Serv -Adult,537,"1,662.52",9/16/2012,R,KINGSTON ACCESSIBILITY TRAN LT
2012 - SEP,CS -Oth Operating Inc & Expend,Trading A/c Surpluses/Deficits,Transport-Contract Hire                 ,J01374,Transport Related Expenditure ,Contract Hire and Op Leasing  ,CC67,Mini Cab Hire -Soc Serv -Adult,538,"1,672.00",8/31/2012,R,BARCLAYS ASSET & SALES FINANCE
2012 - SEP,CS -Oth Operating Inc & Expend,Trading A/c Surpluses/Deficits,Transport-Contract Hire                 ,J01374,Transport Related Expenditure ,Contract Hire and Op Leasing  ,CC67,Mini Cab Hire -Soc Serv -Adult,539,"1,040.00",8/31/2012,R,BARCLAYS ASSET & SALES FINANCE
2012 - SEP,CS -Oth Operating Inc & Expend,Trading A/c Surpluses/Deficits,Transport-Contract Hire                 ,J01374,Transport Related Expenditure ,Contract Hire and Op Leasing  ,CC67,Mini Cab Hire -Soc Serv -Adult,540,"1,232.00",8/31/2012,R,BARCLAYS ASSET & SALES FINANCE
2012 - SEP,CS -Oth Operating Inc & Expend,Trading A/c Surpluses/Deficits,Transport-Contract Hire                 ,J01374,Transport Related Expenditure ,Contract Hire and Op Leasing  ,CC67,Mini Cab Hire -Soc Serv -Adult,541,561.6,8/31/2012,R,SILVERBURN FINANCE (UK) LTD   
2012 - SEP,CS -Oth Operating Inc & Expend,Trading A/c Surpluses/Deficits,Transport-Contract Hire                 ,J01374,Transport Related Expenditure ,Contract Hire and Op Leasing  ,CC67,Mini Cab Hire -Soc Serv -Adult,542,"1,132.00",8/31/2012,R,NVCAR HIRE LTD                
2012 - SEP,CS -Oth Operating Inc & Expend,Trading A/c Surpluses/Deficits,Transport-Contract Hire                 ,J01374,Transport Related Expenditure ,Contract Hire and Op Leasing  ,CC67,Mini Cab Hire -Soc Serv -Adult,543,624,8/31/2012,R,BARCLAYS ASSET & SALES FINANCE
2012 - SEP,CS -Oth Operating Inc & Expend,Trading A/c Surpluses/Deficits,Transport-Contract Hire                 ,J01374,Transport Related Expenditure ,Contract Hire and Op Leasing  ,CC67,Mini Cab Hire -Soc Serv -Adult,544,"1,056.00",8/31/2012,R,BARCLAYS ASSET & SALES FINANCE
2012 - SEP,CS -Oth Operating Inc & Expend,Trading A/c Surpluses/Deficits,Transport-Contract Hire                 ,J01374,Transport Related Expenditure ,Contract Hire and Op Leasing  ,CC67,Mini Cab Hire -Soc Serv -Adult,545,784,8/31/2012,R,CAPITAL CARS                  
2012 - SEP,CS -Oth Operating Inc & Expend,Trading A/c Surpluses/Deficits,Transport-Contract Hire                 ,J01374,Transport Related Expenditure ,Contract Hire and Op Leasing  ,CC67,Mini Cab Hire -Soc Serv -Adult,546,"1,882.52",9/23/2012,R,KINGSTON ACCESSIBILITY TRAN LT
2012 - SEP,CS -Oth Operating Inc & Expend,Trading A/c Surpluses/Deficits,Transport-Contract Hire                 ,J01374,Transport Related Expenditure ,Contract Hire and Op Leasing  ,CC68,Vehicle Hire Special Projects,547,756,9/9/2012,R,KINGSTON ACCESSIBILITY TRAN LT
2012 - SEP,CS -Oth Operating Inc & Expend,Trading A/c Surpluses/Deficits,Transport-Contract Hire                 ,J01374,Transport Related Expenditure ,Contract Hire and Op Leasing  ,CC68,Vehicle Hire Special Projects,548,"1,170.00",9/16/2012,R,KINGSTON ACCESSIBILITY TRAN LT
2012 - SEP,CS -Oth Operating Inc & Expend,Trading A/c Surpluses/Deficits,Transport-Contract Hire                 ,J01374,Transport Related Expenditure ,Contract Hire and Op Leasing  ,CC68,Vehicle Hire Special Projects,549,"1,260.00",9/23/2012,R,KINGSTON ACCESSIBILITY TRAN LT
2012 - SEP,CS -Oth Operating Inc & Expend,Trading A/c Surpluses/Deficits,Transport-Workshop                      ,J01376,Premises Related Expenditure  ,RepairsAlterations&MtceOfBldgs,BA03,DDM - Mechanical,550,505.44,8/25/2012,R,SUNLIGHT SERVICE GROUP LTD    
2012 - SEP,CS -Oth Operating Inc & Expend,Trading A/c Surpluses/Deficits,Transport-Workshop                      ,J01376,Premises Related Expenditure  ,RepairsAlterations&MtceOfBldgs,BA03,DDM - Mechanical,551,501.37,8/28/2012,R,COFELY LIMITED                
2012 - SEP,CS -Oth Operating Inc & Expend,Trading A/c Surpluses/Deficits,Transport-Workshop                      ,J01376,Transport Related Expenditure ,Direct Transport Costs        ,CA02,Tyres,552,500,8/23/2012,R,MORDEN TYRE SERVICES LTD      
2012 - SEP,CS -Oth Operating Inc & Expend,Trading A/c Surpluses/Deficits,Transport-Workshop                      ,J01376,Transport Related Expenditure ,Direct Transport Costs        ,CA02,Tyres,553,"1,435.00",3/9/2012,R,MORDEN TYRE SERVICES LTD      
2012 - SEP,CS -Oth Operating Inc & Expend,Trading A/c Surpluses/Deficits,Transport-Workshop                      ,J01376,Transport Related Expenditure ,Direct Transport Costs        ,CA02,Tyres,554,"1,510.00",6/9/2012,R,MORDEN TYRE SERVICES LTD      
2012 - SEP,CS -Oth Operating Inc & Expend,Trading A/c Surpluses/Deficits,Transport-Workshop                      ,J01376,Transport Related Expenditure ,Direct Transport Costs        ,CA02,Tyres,555,"1,795.00",9/13/2012,R,MORDEN TYRE SERVICES LTD      
2012 - SEP,CS -Oth Operating Inc & Expend,Trading A/c Surpluses/Deficits,Transport-Workshop                      ,J01376,Transport Related Expenditure ,Direct Transport Costs        ,CA02,Tyres,556,640,7/9/2012,R,MORDEN TYRE SERVICES LTD      
2012 - SEP,CS -Oth Operating Inc & Expend,Trading A/c Surpluses/Deficits,Transport-Workshop                      ,J01376,Transport Related Expenditure ,Direct Transport Costs        ,CA55,Specialist Maint. (Off Site),557,"1,105.08",8/22/2012,R,FLEETSPEED COACHWORKS LTD.    
2012 - SEP,CS -Oth Operating Inc & Expend,Trading A/c Surpluses/Deficits,Transport-Workshop                      ,J01376,Transport Related Expenditure ,Direct Transport Costs        ,CA55,Specialist Maint. (Off Site),558,812.47,8/17/2012,R,GULLIVER'S TRUCK HIRE LTD.    
2012 - SEP,CS -Oth Operating Inc & Expend,Trading A/c Surpluses/Deficits,Transport-Workshop                      ,J01376,Transport Related Expenditure ,Direct Transport Costs        ,CA55,Specialist Maint. (Off Site),559,811.29,8/23/2012,R,REDACTED
2012 - SEP,CS -Oth Operating Inc & Expend,Trading A/c Surpluses/Deficits,Transport-Workshop                      ,J01376,Transport Related Expenditure ,Direct Transport Costs        ,CA55,Specialist Maint. (Off Site),560,826.77,9/8/2012,R,REDACTED
2012 - SEP,CS -Oth Operating Inc & Expend,Trading A/c Surpluses/Deficits,Transport-Workshop                      ,J01376,Transport Related Expenditure ,Direct Transport Costs        ,CA55,Specialist Maint. (Off Site),561,743.7,7/20/2012,R,TENSID UK PLC                 
2012 - SEP,CS -Oth Operating Inc & Expend,Trading A/c Surpluses/Deficits,Transport-Workshop                      ,J01376,Transport Related Expenditure ,Direct Transport Costs        ,CA55,Specialist Maint. (Off Site),562,"1,595.97",8/29/2012,R,REDACTED
2012 - SEP,CS -Oth Operating Inc & Expend,Trading A/c Surpluses/Deficits,Transport-Workshop                      ,J01376,Transport Related Expenditure ,Direct Transport Costs        ,CA56,Specialist Maint. (On Site),563,879,8/22/2012,R,BOLTON GATE SERVICES LTD      
2012 - SEP,CS -Oth Operating Inc & Expend,Trading A/c Surpluses/Deficits,Transport-Workshop                      ,J01376,Transport Related Expenditure ,Direct Transport Costs        ,CA56,Specialist Maint. (On Site),564,570.44,4/9/2012,R,R.J.H.WELDING                 
2012 - SEP,CS -Oth Operating Inc & Expend,Trading A/c Surpluses/Deficits,Transport-Workshop                      ,J01376,Transport Related Expenditure ,Direct Transport Costs        ,CA56,Specialist Maint. (On Site),565,"2,151.42",4/9/2012,R,R.J.H.WELDING                 
2012 - SEP,CS -Oth Operating Inc & Expend,Trading A/c Surpluses/Deficits,Transport-Workshop                      ,J01376,Transport Related Expenditure ,Direct Transport Costs        ,CA56,Specialist Maint. (On Site),566,562.5,4/9/2012,R,R.J.H.WELDING                 
2012 - SEP,CS -Oth Operating Inc & Expend,Trading A/c Surpluses/Deficits,Transport-Workshop                      ,J01376,Transport Related Expenditure ,Direct Transport Costs        ,CA56,Specialist Maint. (On Site),567,835.5,3/9/2012,R,GREEN MACHINES                
2012 - SEP,CS -Oth Operating Inc & Expend,Trading A/c Surpluses/Deficits,Transport-Workshop                      ,J01376,Transport Related Expenditure ,Direct Transport Costs        ,CA72,Vehicle Parts,568,528.44,8/28/2012,R,COMMERCIAL & PLANT LTD        
2012 - SEP,CS -Oth Operating Inc & Expend,Trading A/c Surpluses/Deficits,Transport-Workshop                      ,J01376,Transport Related Expenditure ,Direct Transport Costs        ,CA72,Vehicle Parts,569,509.85,8/22/2012,R,DENNIS EAGLE LIMITED          
2012 - SEP,CS -Oth Operating Inc & Expend,Trading A/c Surpluses/Deficits,Transport-Workshop                      ,J01376,Transport Related Expenditure ,Direct Transport Costs        ,CA72,Vehicle Parts,570,"1,679.33",4/9/2012,R,GREEN MACHINES                
2012 - SEP,CS -Oth Operating Inc & Expend,Trading A/c Surpluses/Deficits,Transport-Workshop                      ,J01376,Transport Related Expenditure ,Direct Transport Costs        ,CA72,Vehicle Parts,571,853.17,8/31/2012,R,GEESINK NORBA                 
2012 - SEP,CS -Oth Operating Inc & Expend,Trading A/c Surpluses/Deficits,Transport-Workshop                      ,J01376,Transport Related Expenditure ,Direct Transport Costs        ,CA72,Vehicle Parts,572,757.4,4/9/2012,R,JD ASSOCIATES                 
2012 - SEP,CS -Oth Operating Inc & Expend,Trading A/c Surpluses/Deficits,Transport-Workshop                      ,J01376,Transport Related Expenditure ,Direct Transport Costs        ,CA72,Vehicle Parts,573,884.85,8/29/2012,R,BOC LTD.                      
2012 - SEP,CS -Oth Operating Inc & Expend,Trading A/c Surpluses/Deficits,Transport-Workshop                      ,J01376,Transport Related Expenditure ,Direct Transport Costs        ,CA72,Vehicle Parts,574,558.4,6/9/2012,R,DENNIS EAGLE LIMITED          
2012 - SEP,CS -Oth Operating Inc & Expend,Trading A/c Surpluses/Deficits,Transport-Workshop                      ,J01376,Transport Related Expenditure ,Direct Transport Costs        ,CA72,Vehicle Parts,575,549.43,3/9/2012,R,DENNIS EAGLE LIMITED          
2012 - SEP,CS -Oth Operating Inc & Expend,Trading A/c Surpluses/Deficits,Transport-Workshop                      ,J01376,Transport Related Expenditure ,Direct Transport Costs        ,CA72,Vehicle Parts,576,"3,172.94",8/23/2012,R,GRAYS TRUCK CENTRE LIMITED    
2012 - SEP,CS -Oth Operating Inc & Expend,Trading A/c Surpluses/Deficits,Transport-Workshop                      ,J01376,Transport Related Expenditure ,Direct Transport Costs        ,CA72,Vehicle Parts,577,"2,858.17",5/9/2012,R,GEESINK NORBA                 
2012 - SEP,CS -Oth Operating Inc & Expend,Trading A/c Surpluses/Deficits,Transport-Workshop                      ,J01376,Transport Related Expenditure ,Contract Hire and Op Leasing  ,CC60,Vehicle Hire for LB Sutton,578,"2,291.00",8/31/2012,R,BARCLAYS ASSET & SALES FINANCE
2012 - SEP,CS -Oth Operating Inc & Expend,Trading A/c Surpluses/Deficits,Transport-Workshop                      ,J01376,Transport Related Expenditure ,Contract Hire and Op Leasing  ,CC65,Vehicle Hire for Education,579,712,7/31/2012,R,CROYDON COACHES               
2012 - SEP,CS -Oth Operating Inc & Expend,Trading A/c Surpluses/Deficits,Transport-Workshop                      ,J01376,Transport Related Expenditure ,Contract Hire and Op Leasing  ,CC65,Vehicle Hire for Education,580,720,8/29/2012,R,FREEWAY COACH SERVICES        
2012 - SEP,CS -Oth Operating Inc & Expend,Trading A/c Surpluses/Deficits,Transport-Workshop                      ,J01376,Transport Related Expenditure ,Contract Hire and Op Leasing  ,CC65,Vehicle Hire for Education,581,565,7/19/2012,R,GOLDEN SOVEREIGN COACHES      
2012 - SEP,Cultural Env Reg&Plan Services,SMSS (Env),Estates Mgt                             ,J01420,Supplies & Services           ,Services                      ,DF03,Consultants,582,550,8/14/2012,R,VALUATION OFFICE AGENCY       
2012 - SEP,Cultural Env Reg&Plan Services,SMSS (Env),Estates Mgt                             ,J01420,Supplies & Services           ,Grants and Subscriptions      ,DJ04,Subscriptions,583,"1,395.00",8/22/2012,R,CIPFA                         
2012 - SEP,CS -Oth Operating Inc & Expend,INVESTMENT PROPERTIES,Housing Shops                           ,J01533,Premises Related Expenditure  ,RepairsAlterations&MtceOfBldgs,BA79,Security of Premises,584,"1,040.00",8/31/2012,R,OM METROPOLITAN TOTAL SEC.LTD 
2012 - SEP,Central Services,Unused Share - Other Assets,Montgomery Close                        ,J02044,Premises Related Expenditure  ,RepairsAlterations&MtceOfBldgs,BA03,DDM - Mechanical,585,617.24,8/28/2012,R,COFELY LIMITED                
2012 - SEP,CS -Oth Operating Inc & Expend,INVESTMENT PROPERTIES,Pollards Hill Comm Cntre                ,J08074,Premises Related Expenditure  ,RepairsAlterations&MtceOfBldgs,BA03,DDM - Mechanical,586,692.01,8/28/2012,R,COFELY LIMITED                
2012 - SEP,Childrens & Education Services,Schools Strategic Management,Senior Mngt & Support Services          ,K01005,Supplies & Services           ,Services                      ,DF03,Consultants,587,750,3/9/2012,R,MOORE INSIGHT LIMITED         
2012 - SEP,Childrens & Education Services,Schools Strategic Management,Senior Mngt & Support Services          ,K01005,Supplies & Services           ,Services                      ,DF11,Counsel's fees,588,800,6/7/2012,R,REDACTED
2012 - SEP,Childrens & Education Services,Schools Strategic Management,Senior Mngt & Support Services          ,K01005,Supplies & Services           ,Services                      ,DF11,Counsel's fees,589,"1,350.00",3/8/2012,R,REDACTED
2012 - SEP,Childrens & Education Services,Schools Strategic Management,Senior Mngt & Support Services          ,K01005,Supplies & Services           ,Services                      ,DF11,Counsel's fees,590,520,8/23/2012,R,REDACTED
2012 - SEP,Childrens & Education Services,Schools Strategic Management,Senior Mngt & Support Services          ,K01005,Supplies & Services           ,Services                      ,DF11,Counsel's fees,591,825,8/14/2012,R,REDACTED
2012 - SEP,Childrens & Education Services,Schools Strategic Management,Senior Mngt & Support Services          ,K01005,Supplies & Services           ,Services                      ,DF11,Counsel's fees,592,500,8/22/2012,R,REDACTED
2012 - SEP,Childrens & Education Services,Schools Strategic Management,Senior Mngt & Support Services          ,K01005,Supplies & Services           ,Services                      ,DF11,Counsel's fees,593,995,6/19/2012,R,REDACTED
2012 - SEP,Childrens & Education Services,Schools Strategic Management,Senior Mngt & Support Services          ,K01005,Supplies & Services           ,Services                      ,DF11,Counsel's fees,594,"2,725.00",2/8/2012,R,REDACTED
2012 - SEP,Childrens & Education Services,Schools Strategic Management,Senior Mngt & Support Services          ,K01005,Supplies & Services           ,Services                      ,DF11,Counsel's fees,595,"2,352.90",2/8/2012,R,REDACTED
2012 - SEP,Childrens & Education Services,Schools Strategic Management,Research and Statistics                 ,K03016,Supplies & Services           ,Expenses                      ,DH02,Conferences,596,790,7/9/2012,R,CTR FOR STRATEGY&COMMUNICATION
2012 - SEP,Childrens & Education Services,Assuring Access To Schools,PFI Unitary Charges                     ,K03023,Third Party Payments          ,Private Contractors           ,EH02,Miscellaneous Hired Services,597,"11,052.67",8/14/2012,R,NEWSCHOOLS (MERTON) LIMITED   
2012 - SEP,Childrens & Education Services,Assuring Access To Schools,PFI Unitary Charges                     ,K03023,Third Party Payments          ,Private Contractors           ,EH02,Miscellaneous Hired Services,598,"1,715.78",6/30/2012,R,NEWSCHOOLS (MERTON) LIMITED   
2012 - SEP,Childrens & Education Services,Assuring Access To Schools,PFI Unitary Charges                     ,K03023,Third Party Payments          ,Private Contractors           ,EH02,Miscellaneous Hired Services,599,"1,270.50",2/29/2012,R,NEWSCHOOLS (MERTON) LIMITED   
2012 - SEP,Childrens & Education Services,Assuring Access To Schools,PFI Unitary Charges                     ,K03023,Third Party Payments          ,Private Contractors           ,EH02,Miscellaneous Hired Services,600,"1,355.72",2/29/2012,R,NEWSCHOOLS (MERTON) LIMITED   
2012 - SEP,Childrens & Education Services,Assuring Access To Schools,PFI Unitary Charges                     ,K03023,Third Party Payments          ,Private Contractors           ,EH02,Miscellaneous Hired Services,601,777.52,6/30/2012,R,NEWSCHOOLS (MERTON) LIMITED   
2012 - SEP,Childrens & Education Services,Assuring Access To Schools,PFI Unitary Charges                     ,K03023,Third Party Payments          ,Private Contractors           ,EH02,Miscellaneous Hired Services,602,830.06,6/30/2012,R,NEWSCHOOLS (MERTON) LIMITED   
2012 - SEP,Childrens & Education Services,Assuring Access To Schools,PFI Unitary Charges                     ,K03023,Third Party Payments          ,Private Contractors           ,EH10,Contract Payments,603,"3,343,219.48",3/9/2012,R,NEWSCHOOLS (MERTON) LIMITED   
2012 - SEP,Childrens & Education Services,GENERATED ACCOUNT,SEN Transitions Team                    ,K04016,Employees                     ,Direct Employee Expenses      ,AA17,Agency Staff & Casual Paymts,604,"3,400.00",11/8/2012,R,PERMANENT FUTURES             
2012 - SEP,Childrens & Education Services,GENERATED ACCOUNT,SEN Transitions Team                    ,K04016,Employees                     ,Direct Employee Expenses      ,AA17,Agency Staff & Casual Paymts,605,"2,200.00",1/9/2012,R,PERMANENT FUTURES             
2012 - SEP,Childrens & Education Services,Supporting SEN,Expanded Pupil Referral Unit            ,K05099,Third Party Payments          ,Private Contractors           ,EH01,Miscellaneous Contrct Services,606,"4,865.14",8/24/2012,R,SW LONDON ST GEORGES NHS TRUST
2012 - SEP,Childrens & Education Services,Pre-School Ed (inc Nursery),Children's centres                      ,K05137,Supplies & Services           ,Grants and Subscriptions      ,DJ01,Grants,607,"12,839.00",8/14/2012,R,COMMONSIDE COMMUNITY DEV TRUST
2012 - SEP,Childrens & Education Services,Pre-School Ed (inc Nursery),Nursery Grant payment-2 yr old          ,K05408,Supplies & Services           ,Grants and Subscriptions      ,DJ01,Grants,608,"1,440.00",6/9/2012,R,COOPERATIVE CHILDCARE         
2012 - SEP,Childrens & Education Services,Pre-School Ed (inc Nursery),Nursery Grant payment-2 yr old          ,K05408,Supplies & Services           ,Grants and Subscriptions      ,DJ01,Grants,609,"1,440.00",6/9/2012,R,IVY GARDENS CHILDREN' S CENTRE
2012 - SEP,Childrens & Education Services,Pre-School Ed (inc Nursery),Nursery Grant payment-2 yr old          ,K05408,Supplies & Services           ,Grants and Subscriptions      ,DJ01,Grants,610,"1,314.00",6/9/2012,R,REDACTED
2012 - SEP,Childrens & Education Services,Pre-School Ed (inc Nursery),Nursery Grant payment-2 yr old          ,K05408,Supplies & Services           ,Grants and Subscriptions      ,DJ01,Grants,611,720,6/9/2012,R,IVY GARDENS CHILDREN' S CENTRE
2012 - SEP,Childrens & Education Services,Pre-School Ed (inc Nursery),Nursery Grant payment-2 yr old          ,K05408,Supplies & Services           ,Grants and Subscriptions      ,DJ01,Grants,612,"1,314.00",12/9/2012,R,ARK AT SHERWOOD LTD           
2012 - SEP,Childrens & Education Services,Pre-School Ed (inc Nursery),Nursery Grant payment-2 yr old          ,K05408,Supplies & Services           ,Grants and Subscriptions      ,DJ01,Grants,613,"1,314.00",12/9/2012,R,BOW LANE PRE-SCHOOL           
2012 - SEP,Childrens & Education Services,Pre-School Ed (inc Nursery),Nursery Grant payment-2 yr old          ,K05408,Supplies & Services           ,Grants and Subscriptions      ,DJ01,Grants,614,"1,314.00",12/9/2012,R,ARK AT SHERWOOD LTD           
2012 - SEP,Childrens & Education Services,Pre-School Ed (inc Nursery),Nursery Grant payment-2 yr old          ,K05408,Supplies & Services           ,Grants and Subscriptions      ,DJ01,Grants,615,"1,314.00",12/9/2012,R,BOW LANE PRE-SCHOOL           
2012 - SEP,Childrens & Education Services,Pre-School Ed (inc Nursery),Nursery Grant payment-2 yr old          ,K05408,Supplies & Services           ,Grants and Subscriptions      ,DJ01,Grants,616,"1,314.00",12/9/2012,R,ARK AT SHERWOOD LTD           
2012 - SEP,Childrens & Education Services,Pre-School Ed (inc Nursery),Nursery Grant payment-2 yr old          ,K05408,Supplies & Services           ,Grants and Subscriptions      ,DJ01,Grants,617,788.4,12/9/2012,R,BOW LANE PRE-SCHOOL           
2012 - SEP,Childrens & Education Services,Pre-School Ed (inc Nursery),Nursery Grant payment-2 yr old          ,K05408,Supplies & Services           ,Grants and Subscriptions      ,DJ01,Grants,618,"1,314.00",12/9/2012,R,ARK AT SHERWOOD LTD           
2012 - SEP,Childrens & Education Services,Pre-School Ed (inc Nursery),Nursery Grant payment-2 yr old          ,K05408,Supplies & Services           ,Grants and Subscriptions      ,DJ01,Grants,619,"1,314.00",12/9/2012,R,BOW LANE PRE-SCHOOL           
2012 - SEP,Childrens & Education Services,Pre-School Ed (inc Nursery),Nursery Grant payment-2 yr old          ,K05408,Supplies & Services           ,Grants and Subscriptions      ,DJ01,Grants,620,"1,314.00",12/9/2012,R,BOW LANE PRE-SCHOOL           
2012 - SEP,Childrens & Education Services,Pre-School Ed (inc Nursery),Nursery Grant payment-2 yr old          ,K05408,Supplies & Services           ,Grants and Subscriptions      ,DJ01,Grants,621,"1,314.00",12/9/2012,R,ARK AT SHERWOOD LTD           
2012 - SEP,Childrens & Education Services,Pre-School Ed (inc Nursery),Nursery Grant payment-2 yr old          ,K05408,Supplies & Services           ,Grants and Subscriptions      ,DJ01,Grants,622,"5,199.94",9/14/2012,R,LITTLE GATES                  
2012 - SEP,Childrens & Education Services,Pre-School Ed (inc Nursery),Nursery Grant payment-2 yr old          ,K05408,Supplies & Services           ,Grants and Subscriptions      ,DJ01,Grants,623,"1,296.00",9/14/2012,R,HASLEMERE HOUSE DAY NURSERY   
2012 - SEP,Childrens & Education Services,Pre-School Ed (inc Nursery),Nursery Grant payment-2 yr old          ,K05408,Supplies & Services           ,Grants and Subscriptions      ,DJ01,Grants,624,"1,008.00",9/14/2012,R,HASLEMERE HOUSE DAY NURSERY   
2012 - SEP,Childrens & Education Services,Pre-School Ed (inc Nursery),Nursery Grant payment-2 yr old          ,K05408,Supplies & Services           ,Grants and Subscriptions      ,DJ01,Grants,625,"1,440.00",9/14/2012,R,HASLEMERE HOUSE DAY NURSERY   
2012 - SEP,Childrens & Education Services,Pre-School Ed (inc Nursery),Nursery Grant payment-2 yr old          ,K05408,Supplies & Services           ,Grants and Subscriptions      ,DJ01,Grants,626,"1,296.00",9/14/2012,R,HASLEMERE HOUSE DAY NURSERY   
2012 - SEP,Childrens & Education Services,Pre-School Ed (inc Nursery),Nursery Grant payment-2 yr old          ,K05408,Supplies & Services           ,Grants and Subscriptions      ,DJ01,Grants,627,"1,314.00",9/14/2012,R,HASLEMERE HOUSE DAY NURSERY   
2012 - SEP,Childrens & Education Services,Pre-School Ed (inc Nursery),Nursery Grant payment-2 yr old          ,K05408,Supplies & Services           ,Grants and Subscriptions      ,DJ01,Grants,628,"1,296.00",9/14/2012,R,HASLEMERE HOUSE DAY NURSERY   
2012 - SEP,Childrens & Education Services,Pre-School Ed (inc Nursery),Nursery Grant payment-2 yr old          ,K05408,Supplies & Services           ,Grants and Subscriptions      ,DJ01,Grants,629,"1,440.00",9/14/2012,R,LA PETITE FLEUR PRE-SCHOOL    
2012 - SEP,Childrens & Education Services,Pre-School Ed (inc Nursery),Nursery Grant payment-2 yr old          ,K05408,Supplies & Services           ,Grants and Subscriptions      ,DJ01,Grants,630,"1,440.00",9/14/2012,R,LA PETITE FLEUR PRE-SCHOOL    
2012 - SEP,Childrens & Education Services,Pre-School Ed (inc Nursery),Nursery Grant payment-2 yr old          ,K05408,Supplies & Services           ,Grants and Subscriptions      ,DJ01,Grants,631,"1,314.00",9/14/2012,R,LITTLE CATERPILLARS           
2012 - SEP,Childrens & Education Services,Pre-School Ed (inc Nursery),Nursery Grant payment-2 yr old          ,K05408,Supplies & Services           ,Grants and Subscriptions      ,DJ01,Grants,632,"1,314.00",9/14/2012,R,REDACTED
2012 - SEP,Childrens & Education Services,Pre-School Ed (inc Nursery),Nursery Grant payment-2 yr old          ,K05408,Supplies & Services           ,Grants and Subscriptions      ,DJ01,Grants,633,"1,008.00",9/14/2012,R,HASLEMERE HOUSE DAY NURSERY   
2012 - SEP,Childrens & Education Services,Pre-School Ed (inc Nursery),Nursery Grant payment-2 yr old          ,K05408,Supplies & Services           ,Grants and Subscriptions      ,DJ01,Grants,634,"1,314.00",9/14/2012,R,LITTLE CATERPILLARS           
2012 - SEP,Childrens & Education Services,Pre-School Ed (inc Nursery),Nursery Grant payment-2 yr old          ,K05408,Supplies & Services           ,Grants and Subscriptions      ,DJ01,Grants,635,"1,440.00",9/14/2012,R,SUTTON OPPORTUNITY PRE-SCHOOL 
2012 - SEP,Childrens & Education Services,Pre-School Ed (inc Nursery),Nursery Grant payment-2 yr old          ,K05408,Supplies & Services           ,Grants and Subscriptions      ,DJ01,Grants,636,686.4,9/14/2012,R,SUTTON OPPORTUNITY PRE-SCHOOL 
2012 - SEP,Childrens & Education Services,Pre-School Ed (inc Nursery),Nursery Grant payment-2 yr old          ,K05408,Supplies & Services           ,Grants and Subscriptions      ,DJ01,Grants,637,"1,314.00",9/14/2012,R,THE GRANGE DAY NURSERY        
2012 - SEP,Childrens & Education Services,Pre-School Ed (inc Nursery),Nursery Grant payment-2 yr old          ,K05408,Supplies & Services           ,Grants and Subscriptions      ,DJ01,Grants,638,"1,440.00",9/14/2012,R,REDACTED
2012 - SEP,Childrens & Education Services,Pre-School Ed (inc Nursery),Nursery Grant payment-2 yr old          ,K05408,Supplies & Services           ,Grants and Subscriptions      ,DJ01,Grants,639,"1,440.00",9/14/2012,R,THE GRANGE DAY NURSERY        
2012 - SEP,Childrens & Education Services,Pre-School Ed (inc Nursery),Nursery Grant payment-2 yr old          ,K05408,Supplies & Services           ,Grants and Subscriptions      ,DJ01,Grants,640,"1,440.00",9/14/2012,R,REDACTED
2012 - SEP,Childrens & Education Services,Pre-School Ed (inc Nursery),Nursery Grant payment-2 yr old          ,K05408,Supplies & Services           ,Grants and Subscriptions      ,DJ01,Grants,641,"1,080.00",9/14/2012,R,DICKY BIRDS PRE SCHOOL NURSERY
2012 - SEP,Childrens & Education Services,Pre-School Ed (inc Nursery),Nursery Grant payment-2 yr old          ,K05408,Supplies & Services           ,Grants and Subscriptions      ,DJ01,Grants,642,"1,314.00",9/14/2012,R,CHERUBS @ NEWMINSTER          
2012 - SEP,Childrens & Education Services,Pre-School Ed (inc Nursery),Nursery Grant payment-2 yr old          ,K05408,Supplies & Services           ,Grants and Subscriptions      ,DJ01,Grants,643,626.34,9/14/2012,R,CHERUBS @ NEWMINSTER          
2012 - SEP,Childrens & Education Services,Pre-School Ed (inc Nursery),Nursery Grant payment-2 yr old          ,K05408,Supplies & Services           ,Grants and Subscriptions      ,DJ01,Grants,644,"1,440.00",9/14/2012,R,EARLY YEARS NURSERY           
2012 - SEP,Childrens & Education Services,Pre-School Ed (inc Nursery),Nursery Grant payment-2 yr old          ,K05408,Supplies & Services           ,Grants and Subscriptions      ,DJ01,Grants,645,"1,440.00",9/14/2012,R,REDACTED
2012 - SEP,Childrens & Education Services,Pre-School Ed (inc Nursery),Nursery Grant payment-2 yr old          ,K05408,Supplies & Services           ,Grants and Subscriptions      ,DJ01,Grants,646,"1,440.00",9/14/2012,R,THE GRANGE DAY NURSERY        
2012 - SEP,Childrens & Education Services,Pre-School Ed (inc Nursery),Nursery Grant payment-2 yr old          ,K05408,Supplies & Services           ,Grants and Subscriptions      ,DJ01,Grants,647,"1,314.00",9/14/2012,R,LITTLE CATERPILLARS           
2012 - SEP,Childrens & Education Services,Pre-School Ed (inc Nursery),Nursery Grant payment-2 yr old          ,K05408,Supplies & Services           ,Grants and Subscriptions      ,DJ01,Grants,648,"1,314.00",9/14/2012,R,CHERUBS @ NEWMINSTER          
2012 - SEP,Childrens & Education Services,Pre-School Ed (inc Nursery),Nursery Grant payment-2 yr old          ,K05408,Supplies & Services           ,Grants and Subscriptions      ,DJ01,Grants,649,"1,314.00",9/15/2012,R,CHERUBS @ NEWMINSTER          
2012 - SEP,Childrens & Education Services,Pre-School Ed (inc Nursery),Nursery Grant payment-2 yr old          ,K05408,Supplies & Services           ,Grants and Subscriptions      ,DJ01,Grants,650,"1,314.00",9/15/2012,R,CHERUBS @ NEWMINSTER          
2012 - SEP,Childrens & Education Services,Pre-School Ed (inc Nursery),Nursery Grant payment-2 yr old          ,K05408,Supplies & Services           ,Grants and Subscriptions      ,DJ01,Grants,651,"1,314.00",9/15/2012,R,CHERUBS @ NEWMINSTER          
2012 - SEP,Childrens & Education Services,Pre-School Ed (inc Nursery),Nursery Grant payment-2 yr old          ,K05408,Supplies & Services           ,Grants and Subscriptions      ,DJ01,Grants,652,"1,314.00",9/15/2012,R,CHERUBS @ NEWMINSTER          
2012 - SEP,Childrens & Education Services,Pre-School Ed (inc Nursery),Nursery Grant payment-2 yr old          ,K05408,Supplies & Services           ,Grants and Subscriptions      ,DJ01,Grants,653,"1,314.00",9/15/2012,R,CHERUBS @ NEWMINSTER          
2012 - SEP,Childrens & Education Services,Pre-School Ed (inc Nursery),Nursery Grant payment-2 yr old          ,K05408,Supplies & Services           ,Grants and Subscriptions      ,DJ01,Grants,654,"1,314.00",9/18/2012,R,MINI TREASURES NURSERY LTD    
2012 - SEP,Childrens & Education Services,Pre-School Ed (inc Nursery),Nursery Grant payment-2 yr old          ,K05408,Supplies & Services           ,Grants and Subscriptions      ,DJ01,Grants,655,"1,440.00",9/18/2012,R,MINI TREASURES NURSERY LTD    
2012 - SEP,Childrens & Education Services,Pre-School Ed (inc Nursery),Nursery Grant payment-2 yr old          ,K05408,Supplies & Services           ,Grants and Subscriptions      ,DJ01,Grants,656,"1,314.00",9/18/2012,R,MINI TREASURES NURSERY LTD    
2012 - SEP,Childrens & Education Services,Pre-School Ed (inc Nursery),Nursery Grant payment-2 yr old          ,K05408,Supplies & Services           ,Grants and Subscriptions      ,DJ01,Grants,657,"1,440.00",9/18/2012,R,MINI TREASURES NURSERY LTD    
2012 - SEP,Childrens & Education Services,Pre-School Ed (inc Nursery),Nursery Grant payment-2 yr old          ,K05408,Supplies & Services           ,Grants and Subscriptions      ,DJ01,Grants,658,"1,314.00",9/18/2012,R,MINI TREASURES NURSERY LTD    
2012 - SEP,Childrens & Education Services,Pre-School Ed (inc Nursery),Nursery Grant payment-2 yr old          ,K05408,Supplies & Services           ,Grants and Subscriptions      ,DJ01,Grants,659,"1,440.00",9/18/2012,R,MINI TREASURES NURSERY LTD    
2012 - SEP,Childrens & Education Services,Pre-School Ed (inc Nursery),Nursery Grant payment-2 yr old          ,K05408,Supplies & Services           ,Grants and Subscriptions      ,DJ01,Grants,660,"1,440.00",9/18/2012,R,MINI TREASURES NURSERY LTD    
2012 - SEP,Childrens & Education Services,Pre-School Ed (inc Nursery),Nursery Grant payment-2 yr old          ,K05408,Supplies & Services           ,Grants and Subscriptions      ,DJ01,Grants,661,540,9/18/2012,R,MINI TREASURES NURSERY LTD    
2012 - SEP,Childrens & Education Services,Pre-School Ed (inc Nursery),Nursery Grant payment-2 yr old          ,K05408,Supplies & Services           ,Grants and Subscriptions      ,DJ01,Grants,662,"1,134.00",9/18/2012,R,MINI TREASURES NURSERY LTD    
2012 - SEP,Childrens & Education Services,Pre-School Ed (inc Nursery),Nursery Grant payment-2 yr old          ,K05408,Supplies & Services           ,Grants and Subscriptions      ,DJ01,Grants,663,"1,440.00",9/20/2012,R,IVY GARDENS CHILDREN' S CENTRE
2012 - SEP,Childrens & Education Services,Pre-School Ed (inc Nursery),Nursery Grant payment-2 yr old          ,K05408,Supplies & Services           ,Grants and Subscriptions      ,DJ01,Grants,664,"1,440.00",9/20/2012,R,IVY GARDENS CHILDREN' S CENTRE
2012 - SEP,Childrens & Education Services,Pre-School Ed (inc Nursery),Nursery Grant payment-2 yr old          ,K05408,Supplies & Services           ,Grants and Subscriptions      ,DJ01,Grants,665,"1,314.00",9/20/2012,R,IVY GARDENS CHILDREN' S CENTRE
2012 - SEP,Childrens & Education Services,Pre-School Ed (inc Nursery),Nursery Grant payment-2 yr old          ,K05408,Supplies & Services           ,Grants and Subscriptions      ,DJ01,Grants,666,"1,440.00",9/20/2012,R,IVY GARDENS CHILDREN' S CENTRE
2012 - SEP,Childrens & Education Services,Pre-School Ed (inc Nursery),Nursery Grant payment-2 yr old          ,K05408,Supplies & Services           ,Grants and Subscriptions      ,DJ01,Grants,667,"1,314.00",9/20/2012,R,IVY GARDENS CHILDREN' S CENTRE
2012 - SEP,Childrens & Education Services,Pre-School Ed (inc Nursery),Nursery Grant payment-2 yr old          ,K05408,Supplies & Services           ,Grants and Subscriptions      ,DJ01,Grants,668,"1,440.00",9/20/2012,R,IVY GARDENS CHILDREN' S CENTRE
2012 - SEP,Childrens & Education Services,Pre-School Ed (inc Nursery),Nursery Grant payment-2 yr old          ,K05408,Supplies & Services           ,Grants and Subscriptions      ,DJ01,Grants,669,"1,440.00",9/20/2012,R,IVY GARDENS CHILDREN' S CENTRE
2012 - SEP,Childrens & Education Services,Pre-School Ed (inc Nursery),Nursery Grant payment-2 yr old          ,K05408,Supplies & Services           ,Grants and Subscriptions      ,DJ01,Grants,670,"1,314.00",9/20/2012,R,IVY GARDENS CHILDREN' S CENTRE
2012 - SEP,Childrens & Education Services,Pre-School Ed (inc Nursery),Nursery Grant payment-2 yr old          ,K05408,Supplies & Services           ,Grants and Subscriptions      ,DJ01,Grants,671,"1,440.00",9/20/2012,R,IVY GARDENS CHILDREN' S CENTRE
2012 - SEP,Childrens & Education Services,Pre-School Ed (inc Nursery),Nursery Grant payment-2 yr old          ,K05408,Supplies & Services           ,Grants and Subscriptions      ,DJ01,Grants,672,686.4,9/20/2012,R,IVY GARDENS CHILDREN' S CENTRE
2012 - SEP,Childrens & Education Services,Pre-School Ed (inc Nursery),Nursery Grant payment-2 yr old          ,K05408,Supplies & Services           ,Grants and Subscriptions      ,DJ01,Grants,673,"1,314.00",9/26/2012,R,LITTLE CATERPILLARS           
2012 - SEP,Childrens & Education Services,Pre-School Ed (inc Nursery),Nursery Grant payment-2 yr old          ,K05408,Supplies & Services           ,Grants and Subscriptions      ,DJ01,Grants,674,"1,314.00",9/27/2012,R,CHERUBS @ ST THOMAS           
2012 - SEP,Childrens & Education Services,Pre-School Ed (inc Nursery),Nursery Grant payment-2 yr old          ,K05408,Supplies & Services           ,Grants and Subscriptions      ,DJ01,Grants,675,876,9/30/2012,R,HOLY CROSS PLAYGROUP          
2012 - SEP,Childrens & Education Services,Pre-School Ed (inc Nursery),Lavender Children's Centre              ,K05410,Premises Related Expenditure  ,Cleaning and Domestic Supplies,BH03,Cleaning Services,676,"1,010.00",8/31/2012,R,RE MCS CLEANING SERVICES LTD  
2012 - SEP,Childrens & Education Services,Pre-School Ed (inc Nursery),Lavender Children's Centre              ,K05410,Premises Related Expenditure  ,Cleaning and Domestic Supplies,BH03,Cleaning Services,677,"1,177.41",5/9/2012,R,RE MCS CLEANING SERVICES LTD  
2012 - SEP,Childrens & Education Services,Pre-School Ed (inc Nursery),Mitcham MAT                             ,K05411,Supplies & Services           ,Equip Furniture/Materials     ,DA04,Materials,678,"1,732.11",12/9/2012,R,INCREDIBLE YEARS              
2012 - SEP,Childrens & Education Services,Pre-School Ed (inc Nursery),Mitcham MAT (Premises)                  ,K05412,Premises Related Expenditure  ,Cleaning and Domestic Supplies,BH03,Cleaning Services,679,"1,128.40",8/18/2012,R,RE MCS CLEANING SERVICES LTD  
2012 - SEP,Childrens & Education Services,Pre-School Ed (inc Nursery),Mitcham MAT (Premises)                  ,K05412,Premises Related Expenditure  ,Cleaning and Domestic Supplies,BH03,Cleaning Services,680,"1,128.40",9/18/2012,R,RE MCS CLEANING SERVICES LTD  
2012 - SEP,Childrens & Education Services,Pre-School Ed (inc Nursery),Lavender CC Non Childcare               ,K05415,Premises Related Expenditure  ,Cleaning and Domestic Supplies,BH03,Cleaning Services,681,900,8/31/2012,R,RE MCS CLEANING SERVICES LTD  
2012 - SEP,Childrens & Education Services,Pre-School Ed (inc Nursery),E.Years-Intergenerational Cntr          ,K05416,Premises Related Expenditure  ,Energy Costs                  ,BB02,Electricity,682,859.77,8/16/2012,R,KENT COUNTY COUNCIL           
2012 - SEP,Childrens & Education Services,Pre-School Ed (inc Nursery),E.Years-Intergenerational Cntr          ,K05416,Premises Related Expenditure  ,Cleaning and Domestic Supplies,BH03,Cleaning Services,683,964.45,8/25/2012,R,JULIUS RUTHERFOORD & CO LTD   
2012 - SEP,Childrens & Education Services,Pre-School Ed (inc Nursery),EY- DCATC                               ,K05420,Supplies & Services           ,Equip Furniture/Materials     ,DA04,Materials,684,842,10/9/2012,R,COMMUNITY PRODUCTS (UK) LTD.  
2012 - SEP,Childrens & Education Services,Youth Service,Youth Service                           ,K06053,Supplies & Services           ,Expenses                      ,DH12,Young Peoples Expenses,685,"2,600.00",6/9/2012,R,HARRIS ACADEMY MERTON         
2012 - SEP,Childrens & Education Services,Youth Service,Youth Service                           ,K06053,Supplies & Services           ,Expenses                      ,DH12,Young Peoples Expenses,686,-783.72,8/31/2012,R,SCALABLE COMMUNICATIONS PLC   
2012 - SEP,Childrens & Education Services,Youth Service,Detached Projects                       ,K06066,Supplies & Services           ,Expenses                      ,DH12,Young Peoples Expenses,687,840,8/30/2012,R,REDACTED
2012 - SEP,Childrens & Education Services,Youth Service,Youth Office Premises Cost              ,K06073,Premises Related Expenditure  ,RepairsAlterations&MtceOfBldgs,BA03,DDM - Mechanical,688,856.84,8/24/2012,R,COFELY LIMITED                
2012 - SEP,Childrens & Education Services,Youth Service,PAYP Moving Forward in Life             ,K06092,Premises Related Expenditure  ,Rents                         ,BC01,Miscellaneous Rents,689,"6,000.00",6/9/2012,R,GOLDPLAZA (MITCHAM) LIMITED   
2012 - SEP,Childrens & Education Services,Youth Service,Youth Generator Fund                    ,K06093,Supplies & Services           ,Grants and Subscriptions      ,DJ01,Grants,690,"2,328.00",8/16/2012,R,BMETVFM                       
2012 - SEP,Childrens & Education Services,Youth Service,Youth Generator Fund                    ,K06093,Supplies & Services           ,Grants and Subscriptions      ,DJ01,Grants,691,"1,768.00",8/16/2012,R,BMETVFM                       
2012 - SEP,Childrens & Education Services,Youth Service,Youth Generator Fund                    ,K06093,Supplies & Services           ,Grants and Subscriptions      ,DJ01,Grants,692,"2,388.80",12/9/2012,R,LEARN THROUGH SPORT           
2012 - SEP,Childrens & Education Services,Youth Service,Youth Generator Fund                    ,K06093,Supplies & Services           ,Grants and Subscriptions      ,DJ01,Grants,693,"2,488.00",10/9/2012,R,COMMUNITIES FIRST             
2012 - SEP,Childrens & Education Services,Assuring Access To Schools,Young Person Substance Misuse           ,K06114,Third Party Payments          ,Private Contractors           ,EH01,Miscellaneous Contrct Services,694,"53,294.50",8/31/2012,R,CATCH 22                      
2012 - SEP,Childrens & Education Services,Assuring Access To Schools,Premises and Contracts                  ,K08069,Supplies & Services           ,Services                      ,DF03,Consultants,695,"4,420.00",11/9/2012,R,PETER GWILLIAM & COMPANY      
2012 - SEP,Childrens & Education Services,Assuring Access To Schools,Revenuisation & S106 Proj               ,K08077,Premises Related Expenditure  ,RepairsAlterations&MtceOfBldgs,BA06,Repairs & Maintenance General,696,"9,216.00",8/27/2012,R,MOY CONSTRUCTION CO LTD       
2012 - SEP,Childrens & Education Services,Assuring Access To Schools,Revenuisation & S106 Proj               ,K08077,Premises Related Expenditure  ,RepairsAlterations&MtceOfBldgs,BA06,Repairs & Maintenance General,697,"5,236.00",8/29/2012,R,MOY CONSTRUCTION CO LTD       
2012 - SEP,Childrens & Education Services,Assuring Access To Schools,Revenuisation & S106 Proj               ,K08077,Supplies & Services           ,Services                      ,DF04,Miscellaneous Expenses,698,"3,318.00",3/9/2012,R,SIGHT & SOUND                 
2012 - SEP,Childrens & Education Services,Assuring Access To Schools,Centre Commissioned Servs               ,K08078,Supplies & Services           ,Grants and Subscriptions      ,DJ01,Grants,699,"4,500.00",8/30/2012,R,CARERS SUPPORT MERTON         
2012 - SEP,Childrens & Education Services,Assuring Access To Schools,Centre Commissioned Servs               ,K08078,Supplies & Services           ,Grants and Subscriptions      ,DJ01,Grants,700,"3,750.00",8/31/2012,R,SOUTH LONDON REFUGEE ASSOC.   
2012 - SEP,Childrens & Education Services,Assuring Access To Schools,Centre Commissioned Servs               ,K08078,Supplies & Services           ,Grants and Subscriptions      ,DJ01,Grants,701,"23,089.75",8/30/2012,R,CARERS SUPPORT MERTON         
2012 - SEP,Childrens & Education Services,Facilitating Sch Improvement,SSQ                                     ,K09077,Supplies & Services           ,Services                      ,DF03,Consultants,702,"1,069.00",6/28/2012,R,REDACTED
2012 - SEP,Childrens & Education Services,Facilitating Sch Improvement,SSQ                                     ,K09077,Supplies & Services           ,Expenses                      ,DH02,Conferences,703,"1,568.00",1/8/2012,R,REDACTED
2012 - SEP,Childrens & Education Services,Assuring Access To Schools,Stouthall                               ,K09082,Premises Related Expenditure  ,Energy Costs                  ,BB02,Electricity,704,579.68,8/24/2012,R,SWALEC                        
2012 - SEP,Childrens & Education Services,Assuring Access To Schools,Stouthall                               ,K09082,Premises Related Expenditure  ,Rents                         ,BC01,Miscellaneous Rents,705,"4,125.00",9/20/2012,R,ROBERT MORGAN & SONS LTD      
2012 - SEP,Childrens & Education Services,Schools Strategic Management,Profess Develop Cntre                   ,K09084,Premises Related Expenditure  ,Cleaning and Domestic Supplies,BH03,Cleaning Services,706,"2,645.92",8/25/2012,R,JULIUS RUTHERFOORD & CO LTD   
2012 - SEP,Childrens & Education Services,Schools Strategic Management,Profess Develop Cntre                   ,K09084,Supplies & Services           ,Equip Furniture/Materials     ,DA09,Equip-Purchases,707,"1,589.84",3/23/2012,R,VIGLEN LIMITED                
2012 - SEP,Childrens & Education Services,Schools Strategic Management,Profess Develop Cntre                   ,K09084,Supplies & Services           ,Equip Furniture/Materials     ,DA09,Equip-Purchases,708,"3,416.53",3/23/2012,R,VIGLEN LIMITED                
2012 - SEP,Childrens & Education Services,Schools Strategic Management,Profess Develop Cntre                   ,K09084,Supplies & Services           ,Equip Furniture/Materials     ,DA09,Equip-Purchases,709,624,3/23/2012,R,VIGLEN LIMITED                
2012 - SEP,Childrens & Education Services,Assuring Access To Schools,Free School Meals                       ,K90002,Premises Related Expenditure  ,RepairsAlterations&MtceOfBldgs,BA01,DDM - General Building,710,745.42,8/14/2012,R,CATERCRAFT SUPPLIES LTD       
2012 - SEP,Childrens & Education Services,Assuring Access To Schools,Behaviour Support                       ,K90004,Employees                     ,Indirect Employee Expenses    ,AB56,Internal Training Costs,711,"1,280.00",6/9/2012,R,SURREY COUNTY COUNCIL         
2012 - SEP,Childrens & Education Services,Supporting SEN,Alt Educn(Incl Yr 11 Project)           ,K90009,Supplies & Services           ,Services                      ,DF07,Bought in Teaching Services,712,735,9/7/2012,R,IMMANUEL HOUSE-COMM TRAINING  
2012 - SEP,Childrens & Education Services,Supporting SEN,Alt Educn(Incl Yr 11 Project)           ,K90009,Supplies & Services           ,Services                      ,DF07,Bought in Teaching Services,713,600,11/6/2012,R,IMMANUEL HOUSE-COMM TRAINING  
2012 - SEP,Childrens & Education Services,Supporting SEN,Alt Educn(Incl Yr 11 Project)           ,K90009,Supplies & Services           ,Services                      ,DF07,Bought in Teaching Services,714,"2,701.00",6/19/2012,R,IMMANUEL HOUSE-COMM TRAINING  
2012 - SEP,Childrens & Education Services,Supporting SEN,Alt Educn(Incl Yr 11 Project)           ,K90009,Supplies & Services           ,Services                      ,DF07,Bought in Teaching Services,715,"2,953.45",3/7/2012,R,IMMANUEL HOUSE-COMM TRAINING  
2012 - SEP,Childrens & Education Services,Supporting SEN,Alt Educn(Incl Yr 11 Project)           ,K90009,Supplies & Services           ,Services                      ,DF07,Bought in Teaching Services,716,"2,110.05",3/7/2012,R,IMMANUEL HOUSE-COMM TRAINING  
2012 - SEP,Childrens & Education Services,Supporting SEN,Alt Educn(Incl Yr 11 Project)           ,K90009,Supplies & Services           ,Services                      ,DF07,Bought in Teaching Services,717,"1,092.96",6/15/2012,R,IMMANUEL HOUSE-COMM TRAINING  
2012 - SEP,Childrens & Education Services,Supporting SEN,Alt Educn(Incl Yr 11 Project)           ,K90009,Supplies & Services           ,Services                      ,DF07,Bought in Teaching Services,718,"5,475.00",1/9/2012,R,EDUCATIONAL AND WELLBEING     
2012 - SEP,Childrens & Education Services,Supporting SEN,Alt Educn(Incl Yr 11 Project)           ,K90009,Supplies & Services           ,Services                      ,DF07,Bought in Teaching Services,719,"5,500.00",1/9/2012,R,EDUCATIONAL AND WELLBEING     
2012 - SEP,Childrens & Education Services,Supporting SEN,Alt Educn(Incl Yr 11 Project)           ,K90009,Supplies & Services           ,Services                      ,DF07,Bought in Teaching Services,720,"4,983.00",6/9/2012,R,KIP MCGRATH EDUCATION CENTRE  
2012 - SEP,Childrens & Education Services,Supporting SEN,Alt Educn(Incl Yr 11 Project)           ,K90009,Supplies & Services           ,Services                      ,DF07,Bought in Teaching Services,721,"10,213.50",6/9/2012,R,IMMANUEL HOUSE-COMM TRAINING  
2012 - SEP,Childrens & Education Services,Supporting SEN,Alt Educn(Incl Yr 11 Project)           ,K90009,Supplies & Services           ,Services                      ,DF07,Bought in Teaching Services,722,774,12/9/2012,R,HA TUTORS LTD                 
2012 - SEP,Childrens & Education Services,Supporting SEN,Smart Centre (Pupil Refer Unit          ,K90019,Employees                     ,Direct Employee Expenses      ,AA74,Public Duties (AP),723,"2,185.00",7/18/2012,R,EDUCATION PLUS                
2012 - SEP,Childrens & Education Services,Supporting SEN,Smart Centre (Pupil Refer Unit          ,K90019,Employees                     ,Direct Employee Expenses      ,AA74,Public Duties (AP),724,"2,075.00",7/24/2012,R,EDUCATION PLUS                
2012 - SEP,Childrens & Education Services,Supporting SEN,Smart Centre (Pupil Refer Unit          ,K90019,Premises Related Expenditure  ,RepairsAlterations&MtceOfBldgs,BA06,Repairs & Maintenance General,725,718.34,8/21/2012,R,P J HARVEY & CO LTD           
2012 - SEP,Childrens & Education Services,Supporting SEN,Smart Centre (Pupil Refer Unit          ,K90019,Premises Related Expenditure  ,Energy Costs                  ,BB03,Gas (incl. Butane),726,"1,014.94",9/17/2012,R,BRITISH GAS BUSINESS          
2012 - SEP,Childrens & Education Services,Supporting SEN,Smart Centre (Pupil Refer Unit          ,K90019,Premises Related Expenditure  ,Cleaning and Domestic Supplies,BH03,Cleaning Services,727,"1,500.20",6/25/2012,R,JULIUS RUTHERFOORD & CO LTD   
2012 - SEP,Childrens & Education Services,Supporting SEN,Smart Centre (Pupil Refer Unit          ,K90019,Premises Related Expenditure  ,Cleaning and Domestic Supplies,BH03,Cleaning Services,728,"1,500.20",8/25/2012,R,JULIUS RUTHERFOORD & CO LTD   
2012 - SEP,Childrens & Education Services,Supporting SEN,Smart Centre (Pupil Refer Unit          ,K90019,Premises Related Expenditure  ,Cleaning and Domestic Supplies,BH03,Cleaning Services,729,"1,500.20",7/25/2012,R,JULIUS RUTHERFOORD & CO LTD   
2012 - SEP,Childrens & Education Services,Supporting SEN,Smart Centre (Pupil Refer Unit          ,K90019,Supplies & Services           ,Services                      ,DF07,Bought in Teaching Services,730,800,5/23/2012,R,MBU1 EDUCATIONAL CONSULTANCY  
2012 - SEP,Childrens & Education Services,Supporting SEN,Smart Centre (Pupil Refer Unit          ,K90019,Supplies & Services           ,Services                      ,DF07,Bought in Teaching Services,731,900,5/23/2012,R,MBU1 EDUCATIONAL CONSULTANCY  
2012 - SEP,Childrens & Education Services,Supporting SEN,Non-Delegated Statements                ,K90024,Employees                     ,Direct Employee Expenses      ,AA17,Agency Staff & Casual Paymts,732,500,8/24/2012,R,KIKI'S CHILDREN'S CLINIC      
2012 - SEP,Childrens & Education Services,Supporting SEN,Non-Delegated Statements                ,K90024,Employees                     ,Direct Employee Expenses      ,AA17,Agency Staff & Casual Paymts,733,"1,170.00",7/31/2012,R,REDACTED
2012 - SEP,Childrens & Education Services,Supporting SEN,Non-Delegated Statements                ,K90024,Employees                     ,Direct Employee Expenses      ,AA17,Agency Staff & Casual Paymts,734,"1,073.50",10/8/2012,R,THE SENSORY SMART CHILD LTD   
2012 - SEP,Childrens & Education Services,Supporting SEN,Non-Delegated Statements                ,K90024,Supplies & Services           ,Equip Furniture/Materials     ,DA09,Equip-Purchases,735,"1,947.00",8/31/2012,R,JAMES LECKEY DESIGN           
2012 - SEP,Childrens & Education Services,Supporting SEN,Non-Delegated Statements                ,K90024,Supplies & Services           ,Services                      ,DF09,Miscellaneous Fees,736,"1,214.00",4/9/2012,R,MARY HARE GRAMMAR SCHOOL      
2012 - SEP,Childrens & Education Services,Supporting SEN,Non-Delegated Statements                ,K90024,Third Party Payments          ,Other Local Authorities       ,EB48,OLA Payments-Statements,737,"118,814.75",7/19/2012,R,WANDSWORTH CORPORATION        
2012 - SEP,Childrens & Education Services,Supporting SEN,Non-Delegated Statements                ,K90024,Third Party Payments          ,Other Local Authorities       ,EB48,OLA Payments-Statements,738,"21,248.00",11/7/2012,R,SURREY COUNTY COUNCIL         
2012 - SEP,Childrens & Education Services,Supporting SEN,Non-Delegated Statements                ,K90024,Third Party Payments          ,Other Local Authorities       ,EB48,OLA Payments-Statements,739,"100,429.00",8/22/2012,R,ROYAL BOR'GH KINGSTON U THAMES
2012 - SEP,Childrens & Education Services,Supporting SEN,Non-Delegated Statements                ,K90024,Third Party Payments          ,Other Local Authorities       ,EB49,OLA Payments - Residential,740,"189,393.00",7/26/2012,R,WANDSWORTH COUNCIL            
2012 - SEP,Childrens & Education Services,Supporting SEN,Non-Delegated Statements                ,K90024,Third Party Payments          ,Other Local Authorities       ,EB50,OLA-Payments - Day Schools,741,"21,024.07",7/18/2012,R,THE LONDON BOROUGH OF BROMLEY 
2012 - SEP,Childrens & Education Services,Supporting SEN,Non-Delegated Statements                ,K90024,Third Party Payments          ,Other Local Authorities       ,EB50,OLA-Payments - Day Schools,742,"41,063.09",7/19/2012,R,LONDON BOROUGH OF SUTTON      
2012 - SEP,Childrens & Education Services,Supporting SEN,Non-Delegated Statements                ,K90024,Third Party Payments          ,Other Local Authorities       ,EB50,OLA-Payments - Day Schools,743,"451,393.00",8/28/2012,R,KINGSTON CORPORATION          
2012 - SEP,Childrens & Education Services,Supporting SEN,Non-Delegated Statements                ,K90024,Third Party Payments          ,Other Local Authorities       ,EB50,OLA-Payments - Day Schools,744,"50,527.00",8/21/2012,R,SURREY COUNTY COUNCIL         
2012 - SEP,Childrens & Education Services,Supporting SEN,Non-Delegated Statements                ,K90024,Third Party Payments          ,Other Local Authorities       ,EB51,OLA Payments - Special Units,745,"9,072.45",7/8/2012,R,CROYDON COUNCIL               
2012 - SEP,Childrens & Education Services,Supporting SEN,Non-Delegated Statements                ,K90024,Third Party Payments          ,Other Local Authorities       ,EB51,OLA Payments - Special Units,746,"8,576.00",8/21/2012,R,SURREY COUNTY COUNCIL         
2012 - SEP,Childrens & Education Services,Supporting SEN,Non-Delegated Statements                ,K90024,Third Party Payments          ,Other Local Authorities       ,EB51,OLA Payments - Special Units,747,"100,206.60",7/19/2012,R,LONDON BOROUGH OF SUTTON      
2012 - SEP,Childrens & Education Services,Supporting SEN,Non-Delegated Statements                ,K90024,Third Party Payments          ,Other Establishments          ,EG01,Alternative SEN Provision,748,"1,184.25",8/14/2012,R,REDACTED
2012 - SEP,Childrens & Education Services,Supporting SEN,Non-Delegated Statements                ,K90024,Third Party Payments          ,Other Establishments          ,EG01,Alternative SEN Provision,749,"5,434.50",5/31/2012,R,FLEET EDUCATION SERVICES LTD  
2012 - SEP,Childrens & Education Services,Supporting SEN,Non-Delegated Statements                ,K90024,Third Party Payments          ,Other Establishments          ,EG01,Alternative SEN Provision,750,"2,268.00",5/9/2012,R,FACE YOUTH                    
2012 - SEP,Childrens & Education Services,Supporting SEN,Non-Delegated Statements                ,K90024,Third Party Payments          ,Other Establishments          ,EG50,Ind Day Schs Payments,751,"18,939.34",2/8/2012,R,JIGSAW                        
2012 - SEP,Childrens & Education Services,Supporting SEN,Non-Delegated Statements                ,K90024,Third Party Payments          ,Other Establishments          ,EG50,Ind Day Schs Payments,752,"8,365.00",2/8/2012,R,THE MOAT SCHOOL               
2012 - SEP,Childrens & Education Services,Supporting SEN,Non-Delegated Statements                ,K90024,Third Party Payments          ,Other Establishments          ,EG50,Ind Day Schs Payments,753,"8,365.00",2/8/2012,R,THE MOAT SCHOOL               
2012 - SEP,Childrens & Education Services,Supporting SEN,Non-Delegated Statements                ,K90024,Third Party Payments          ,Other Establishments          ,EG50,Ind Day Schs Payments,754,"-15,766.34",8/31/2012,R,EAGLE HOUSE SCHOOL            
2012 - SEP,Childrens & Education Services,Supporting SEN,Non-Delegated Statements                ,K90024,Third Party Payments          ,Other Establishments          ,EG50,Ind Day Schs Payments,755,"13,800.00",1/9/2012,R,MOORCROFT MANOR LTD           
2012 - SEP,Childrens & Education Services,Supporting SEN,Non-Delegated Statements                ,K90024,Third Party Payments          ,Other Establishments          ,EG50,Ind Day Schs Payments,756,"12,016.67",8/15/2012,R,EAGLE HOUSE SCHOOL (SUTTON)   
2012 - SEP,Childrens & Education Services,Assuring Access To Schools,Retained Schools Budgets                ,K90030,Supplies & Services           ,Prntng Stnry Gen Off Exp      ,DE22,Marketing,757,"17,195.00",8/31/2012,R,GREBOT DONNELLY  ASSOCIAT. LTD
2012 - SEP,Childrens & Education Services,Assuring Access To Schools,Retained Schools Budgets                ,K90030,Supplies & Services           ,Expenses                      ,DH17,Advances,758,"1,518.00",11/8/2012,R,TALOR DOLMAN LTD              
2012 - SEP,Childrens & Education Services,Assuring Access To Schools,Retained Schools Budgets                ,K90030,Supplies & Services           ,Expenses                      ,DH17,Advances,759,"2,000.00",8/31/2012,R,REDACTED
2012 - SEP,Childrens & Education Services,Delegated Ind Sec. Sch Budgets,Schools Delegated Budget                ,K90032,Supplies & Services           ,Services                      ,DF11,Counsel's fees,760,"6,479.00",6/29/2012,R,WARD HADAWAY                  
2012 - SEP,Childrens & Education Services,Facilitating Sch Improvement,SSQ CORE OFFER (DSG)                    ,K90040,Supplies & Services           ,Equip Furniture/Materials     ,DA58,Education Materials,761,832.5,11/9/2012,R,STORMFRONT RETAIL LTD         
2012 - SEP,Childrens & Education Services,Facilitating Sch Improvement,SSQ CORE OFFER (DSG)                    ,K90040,Supplies & Services           ,Services                      ,DF03,Consultants,762,"2,667.00",6/29/2012,R,REDACTED
2012 - SEP,Childrens & Education Services,Facilitating Sch Improvement,SSQ CORE OFFER (DSG)                    ,K90040,Supplies & Services           ,Services                      ,DF03,Consultants,763,"5,245.00",8/31/2012,R,GREBOT DONNELLY  ASSOCIAT. LTD
2012 - SEP,Childrens & Education Services,Facilitating Sch Improvement,SSQ CORE OFFER (DSG)                    ,K90040,Supplies & Services           ,Services                      ,DF03,Consultants,764,"15,000.00",4/9/2012,R,LONDON BOROUGH OF SUTTON      
2012 - SEP,Childrens & Education Services,Facilitating Sch Improvement,SSQ CORE OFFER (DSG)                    ,K90040,Supplies & Services           ,Services                      ,DF03,Consultants,765,740,9/22/2012,R,REDACTED
2012 - SEP,Childrens & Education Services,Facilitating Sch Improvement,SSQ CORE OFFER (DSG)                    ,K90040,Supplies & Services           ,Grants and Subscriptions      ,DJ04,Subscriptions,766,"3,000.00",8/14/2012,R,UCAS MEDIA                    
2012 - SEP,Childrens & Education Services,Facilitating Sch Improvement,SSQ CORE OFFER - EMAG (DSG)             ,K90041,Supplies & Services           ,Services                      ,DF04,Miscellaneous Expenses,767,944,7/30/2012,R,COFELY LIMITED                
2012 - SEP,Childrens & Education Services,Pre-School Ed (inc Nursery),EARLY YEARS NURSERY GRANTS           ,K90042,Supplies & Services           ,Grants and Subscriptions      ,DJ57,Nursery Grant Payment-4yr olds,768,"23,506.56",4/9/2012,R,CASTLE KINDERGARTEN           
2012 - SEP,Childrens & Education Services,Pre-School Ed (inc Nursery),EARLY YEARS NURSERY GRANTS           ,K90042,Supplies & Services           ,Grants and Subscriptions      ,DJ57,Nursery Grant Payment-4yr olds,769,"35,965.00",4/9/2012,R,DATE VALLEY SCHOOL            
2012 - SEP,Childrens & Education Services,Pre-School Ed (inc Nursery),EARLY YEARS NURSERY GRANTS           ,K90042,Supplies & Services           ,Grants and Subscriptions      ,DJ57,Nursery Grant Payment-4yr olds,770,"22,571.64",4/9/2012,R,DONHEAD SCHOOL                
2012 - SEP,Childrens & Education Services,Pre-School Ed (inc Nursery),EARLY YEARS NURSERY GRANTS           ,K90042,Supplies & Services           ,Grants and Subscriptions      ,DJ57,Nursery Grant Payment-4yr olds,771,"21,049.00",4/9/2012,R,BUILDING BLOCKS NURSERY       
2012 - SEP,Childrens & Education Services,Pre-School Ed (inc Nursery),EARLY YEARS NURSERY GRANTS           ,K90042,Supplies & Services           ,Grants and Subscriptions      ,DJ57,Nursery Grant Payment-4yr olds,772,"14,091.00",4/9/2012,R,EVELINE DAY NURSERY SCHOOLS   
2012 - SEP,Childrens & Education Services,Pre-School Ed (inc Nursery),EARLY YEARS NURSERY GRANTS           ,K90042,Supplies & Services           ,Grants and Subscriptions      ,DJ57,Nursery Grant Payment-4yr olds,773,"11,005.34",4/9/2012,R,MARIA MONTESSORI CHILDREN'S   
2012 - SEP,Childrens & Education Services,Pre-School Ed (inc Nursery),EARLY YEARS NURSERY GRANTS           ,K90042,Supplies & Services           ,Grants and Subscriptions      ,DJ57,Nursery Grant Payment-4yr olds,774,"10,595.76",4/9/2012,R,MMI PRE SCHOOL                
2012 - SEP,Childrens & Education Services,Pre-School Ed (inc Nursery),EARLY YEARS NURSERY GRANTS           ,K90042,Supplies & Services           ,Grants and Subscriptions      ,DJ57,Nursery Grant Payment-4yr olds,775,"26,925.70",4/9/2012,R,THE STUDY(WIMBLEDON)LTD       
2012 - SEP,Childrens & Education Services,Pre-School Ed (inc Nursery),EARLY YEARS NURSERY GRANTS           ,K90042,Supplies & Services           ,Grants and Subscriptions      ,DJ57,Nursery Grant Payment-4yr olds,776,"41,606.61",4/9/2012,R,URSULINE PREPARATORY SCHOOL   
2012 - SEP,Childrens & Education Services,Pre-School Ed (inc Nursery),EARLY YEARS NURSERY GRANTS           ,K90042,Supplies & Services           ,Grants and Subscriptions      ,DJ57,Nursery Grant Payment-4yr olds,777,"19,160.25",4/9/2012,R,WILLINGTON SCH.FOUNDATION LTD 
2012 - SEP,Childrens & Education Services,Pre-School Ed (inc Nursery),EARLY YEARS NURSERY GRANTS           ,K90042,Supplies & Services           ,Grants and Subscriptions      ,DJ57,Nursery Grant Payment-4yr olds,778,"7,149.91",6/9/2012,R,COLLIERS WOOD VILLAGE DAY NUR.
2012 - SEP,Childrens & Education Services,Pre-School Ed (inc Nursery),EARLY YEARS NURSERY GRANTS           ,K90042,Supplies & Services           ,Grants and Subscriptions      ,DJ57,Nursery Grant Payment-4yr olds,779,"9,749.88",6/9/2012,R,WILLOWS PRE-SCHOOL            
2012 - SEP,Childrens & Education Services,Pre-School Ed (inc Nursery),EARLY YEARS NURSERY GRANTS           ,K90042,Supplies & Services           ,Grants and Subscriptions      ,DJ57,Nursery Grant Payment-4yr olds,780,"5,849.93",6/9/2012,R,MONTIS DAY NURSERY            
2012 - SEP,Childrens & Education Services,Pre-School Ed (inc Nursery),EARLY YEARS NURSERY GRANTS           ,K90042,Supplies & Services           ,Grants and Subscriptions      ,DJ57,Nursery Grant Payment-4yr olds,781,"1,807.60",7/9/2012,R,CROWN KINDERGARTEN            
2012 - SEP,Childrens & Education Services,Pre-School Ed (inc Nursery),EARLY YEARS NURSERY GRANTS           ,K90042,Supplies & Services           ,Grants and Subscriptions      ,DJ57,Nursery Grant Payment-4yr olds,782,"4,549.94",11/9/2012,R,FIRST LITTLE STEPS            
2012 - SEP,Childrens & Education Services,Pre-School Ed (inc Nursery),EARLY YEARS NURSERY GRANTS           ,K90042,Supplies & Services           ,Grants and Subscriptions      ,DJ57,Nursery Grant Payment-4yr olds,783,"8,449.90",12/9/2012,R,JIGSAW DAY NURSERY            
2012 - SEP,Childrens & Education Services,Pre-School Ed (inc Nursery),EARLY YEARS NURSERY GRANTS           ,K90042,Supplies & Services           ,Grants and Subscriptions      ,DJ57,Nursery Grant Payment-4yr olds,784,"3,721.87",12/9/2012,R,LITTLE HANDS MONTESSORI       
2012 - SEP,Childrens & Education Services,Pre-School Ed (inc Nursery),EARLY YEARS NURSERY GRANTS           ,K90042,Supplies & Services           ,Grants and Subscriptions      ,DJ57,Nursery Grant Payment-4yr olds,785,"1,299.98",12/9/2012,R,NUTURE DAY NURSERIES          
2012 - SEP,Childrens & Education Services,Pre-School Ed (inc Nursery),EARLY YEARS NURSERY GRANTS           ,K90042,Supplies & Services           ,Grants and Subscriptions      ,DJ57,Nursery Grant Payment-4yr olds,786,"1,299.98",9/24/2012,R,LOVE LANE DAY NURSERY         
2012 - SEP,Childrens & Education Services,Pre-School Ed (inc Nursery),EARLY YEARS NURSERY GRANTS           ,K90042,Supplies & Services           ,Grants and Subscriptions      ,DJ57,Nursery Grant Payment-4yr olds,787,"9,295.78",3/9/2012,R,EVELINE DAY & NURSERY SCHS LTD
2012 - SEP,Childrens & Education Services,Pre-School Ed (inc Nursery),EARLY YEARS NURSERY GRANTS           ,K90042,Supplies & Services           ,Grants and Subscriptions      ,DJ57,Nursery Grant Payment-4yr olds,788,"13,905.20",3/9/2012,R,THE GARDENS CHILDCARE LTD     
2012 - SEP,Childrens & Education Services,Pre-School Ed (inc Nursery),EARLY YEARS NURSERY GRANTS           ,K90042,Supplies & Services           ,Grants and Subscriptions      ,DJ57,Nursery Grant Payment-4yr olds,789,"3,096.46",3/9/2012,R,JAM KIDS NURSERY              
2012 - SEP,Childrens & Education Services,Pre-School Ed (inc Nursery),EARLY YEARS NURSERY GRANTS           ,K90042,Supplies & Services           ,Grants and Subscriptions      ,DJ57,Nursery Grant Payment-4yr olds,790,"5,128.70",3/9/2012,R,LA PETITE FLEUR PRE-SCHOOL    
2012 - SEP,Childrens & Education Services,Pre-School Ed (inc Nursery),EARLY YEARS NURSERY GRANTS           ,K90042,Supplies & Services           ,Grants and Subscriptions      ,DJ57,Nursery Grant Payment-4yr olds,791,"2,564.35",3/9/2012,R,LITTLE CATERPILLARS           
2012 - SEP,Childrens & Education Services,Pre-School Ed (inc Nursery),EARLY YEARS NURSERY GRANTS           ,K90042,Supplies & Services           ,Grants and Subscriptions      ,DJ57,Nursery Grant Payment-4yr olds,792,"3,828.00",3/9/2012,R,MARIA MONTESSORI CHILD'S HOUSE
2012 - SEP,Childrens & Education Services,Pre-School Ed (inc Nursery),EARLY YEARS NURSERY GRANTS           ,K90042,Supplies & Services           ,Grants and Subscriptions      ,DJ57,Nursery Grant Payment-4yr olds,793,"11,430.60",3/9/2012,R,PLAYDAYS DAY NURSERY          
2012 - SEP,Childrens & Education Services,Pre-School Ed (inc Nursery),EARLY YEARS NURSERY GRANTS           ,K90042,Supplies & Services           ,Grants and Subscriptions      ,DJ57,Nursery Grant Payment-4yr olds,794,"12,714.91",3/9/2012,R,WILLOW PRE SCHOOL             
2012 - SEP,Childrens & Education Services,Pre-School Ed (inc Nursery),EARLY YEARS NURSERY GRANTS           ,K90042,Supplies & Services           ,Grants and Subscriptions      ,DJ57,Nursery Grant Payment-4yr olds,795,"16,027.20",3/9/2012,R,WIMBLEDON DAY NURSERY         
2012 - SEP,Childrens & Education Services,Pre-School Ed (inc Nursery),EARLY YEARS NURSERY GRANTS           ,K90042,Supplies & Services           ,Grants and Subscriptions      ,DJ57,Nursery Grant Payment-4yr olds,796,"5,684.31",3/9/2012,R,CHERUBS CHILDCARE LTD         
2012 - SEP,Childrens & Education Services,Pre-School Ed (inc Nursery),EARLY YEARS NURSERY GRANTS           ,K90042,Supplies & Services           ,Grants and Subscriptions      ,DJ57,Nursery Grant Payment-4yr olds,797,"2,368.46",3/9/2012,R,REDACTED
2012 - SEP,Childrens & Education Services,Pre-School Ed (inc Nursery),EARLY YEARS NURSERY GRANTS           ,K90042,Supplies & Services           ,Grants and Subscriptions      ,DJ57,Nursery Grant Payment-4yr olds,798,"7,052.00",3/9/2012,R,THE GRANGE DAY NURSERY        
2012 - SEP,Childrens & Education Services,Pre-School Ed (inc Nursery),EARLY YEARS NURSERY GRANTS           ,K90042,Supplies & Services           ,Grants and Subscriptions      ,DJ57,Nursery Grant Payment-4yr olds,799,"2,361.34",3/9/2012,R,LITTLE LEARNERS               
2012 - SEP,Childrens & Education Services,Pre-School Ed (inc Nursery),EARLY YEARS NURSERY GRANTS           ,K90042,Supplies & Services           ,Grants and Subscriptions      ,DJ57,Nursery Grant Payment-4yr olds,800,"5,128.70",3/9/2012,R,IVY GARDENS CHILDREN' S CENTRE
2012 - SEP,Childrens & Education Services,Pre-School Ed (inc Nursery),EARLY YEARS NURSERY GRANTS           ,K90042,Supplies & Services           ,Grants and Subscriptions      ,DJ57,Nursery Grant Payment-4yr olds,801,"2,798.53",9/27/2012,R,DICKY BIRDS PRE-SCH NURSERIES 
2012 - SEP,Childrens & Education Services,Pre-School Ed (inc Nursery),DAVID NICHOLAS CRECHE                   ,K90045,Supplies & Services           ,Equip Furniture/Materials     ,DA70,Milk and Meals,802,635.7,7/27/2012,R,ISS COLLECTIONS LTD           
2012 - SEP,Childrens & Education Services,Pre-School Ed (inc Nursery),EARLY YEARS FUNDING                     ,K90046,Employees                     ,Indirect Employee Expenses    ,AB02,Recruitment Adverts,803,"2,302.20",9/20/2012,R,PENNA COMMUNICATIONS (NO 2 A/C
2012 - SEP,Childrens & Education Services,Supporting SEN,ART SEN Residential (DSG)               ,K90050,Third Party Payments          ,Other Establishments          ,EG51,Ind Resid Schs Payments,804,"42,520.26",7/20/2012,R,CAMBIAN ASPERGER SYNDROME SERV
2012 - SEP,Childrens & Education Services,Supporting SEN,ART SEN Residential (DSG)               ,K90050,Third Party Payments          ,Other Establishments          ,EG51,Ind Resid Schs Payments,805,"57,257.98",9/8/2012,R,KISIMUL SCHOOL                
2012 - SEP,Cultural Env Reg&Plan Services,SMSS (Cult),Leisure Developmt Manager               ,P04061,Supplies & Services           ,Services                      ,DF03,Consultants,806,"3,300.00",3/15/2012,R,PEOPLE MAKE IT WORK
2012 - SEP,Cultural Env Reg&Plan Services,SMSS (Cult),Leisure Developmt Manager               ,P04061,Supplies & Services           ,Expenses                      ,DH50,Special Projects,807,"1,350.00",3/9/2012,R,MANGO CREATIVE STUDIO LTD     
2012 - SEP,Cultural Env Reg&Plan Services,SMSS (Cult),Leisure Developmt Manager               ,P04061,Supplies & Services           ,Expenses                      ,DH50,Special Projects,808,"3,581.00",3/9/2012,R,UK POWERNETWORKS              
2012 - SEP,Cultural Env Reg&Plan Services,Recreation & Sport,OLYMPICS&PARA LOOK&FEEL FUND      ,P04810,Supplies & Services           ,Expenses                      ,DH50,Special Projects,809,"1,000.00",7/29/2012,R,REDACTED
2012 - SEP,Cultural Env Reg&Plan Services,Open Spaces,"Pks,Rec Grds (Unloc)                    ",P05005,Premises Related Expenditure  ,Ground Maintenance Costs      ,BL02,Maintenance of paths,810,"1,140.00",9/13/2012,R,TIDEY & WEBB LTD              
2012 - SEP,Cultural Env Reg&Plan Services,Open Spaces,"Pks,Rec Grds (Unloc)                    ",P05005,Premises Related Expenditure  ,Ground Maintenance Costs      ,BL51,Playground Maintenance,811,"4,554.00",10/9/2012,R,PRO-TEQ SURFACING (UK) LTD    
2012 - SEP,Cultural Env Reg&Plan Services,Open Spaces,"Pks,Rec Grds (Unloc)                    ",P05005,Premises Related Expenditure  ,Ground Maintenance Costs      ,BL51,Playground Maintenance,812,602.6,12/9/2012,R,SMP (PLAYGROUNDS) LTD         
2012 - SEP,Cultural Env Reg&Plan Services,Open Spaces,King George's Field                     ,P05025,Premises Related Expenditure  ,Energy Costs                  ,BB03,Gas (incl. Butane),813,626.41,8/29/2012,R,KENT COUNTY COUNCIL           
2012 - SEP,Cultural Env Reg&Plan Services,Open Spaces,Morden Park                             ,P05030,Premises Related Expenditure  ,Energy Costs                  ,BB02,Electricity,814,"1,776.54",8/28/2012,R,EDF ENERGY 1 LIMITED          
2012 - SEP,Cultural Env Reg&Plan Services,Open Spaces,Raynes Pk Sports Grd                    ,P05038,Premises Related Expenditure  ,Energy Costs                  ,BB02,Electricity,815,"2,560.36",8/24/2012,R,EDF ENERGY 1 LIMITED          
2012 - SEP,Cultural Env Reg&Plan Services,Open Spaces,Raynes Pk Sports Grd                    ,P05038,Premises Related Expenditure  ,Energy Costs                  ,BB03,Gas (incl. Butane),816,711.37,8/29/2012,R,KENT COUNTY COUNCIL           
2012 - SEP,Cultural Env Reg&Plan Services,Open Spaces,Sir J. Hood Mem Grd                     ,P05042,Premises Related Expenditure  ,Energy Costs                  ,BB02,Electricity,817,541.83,9/9/2011,R,EDF ENERGY 1 LIMITED          
2012 - SEP,Cultural Env Reg&Plan Services,Open Spaces,Sir J. Hood Mem Grd                     ,P05042,Premises Related Expenditure  ,Energy Costs                  ,BB02,Electricity,818,718.28,11/9/2012,R,EDF ENERGY 1 LIMITED          
2012 - SEP,Cultural Env Reg&Plan Services,Open Spaces,Tamworth Rec Ground                     ,P05045,Premises Related Expenditure  ,Water Services                ,BE01,Use of Water (Metered),819,"1,021.21",8/21/2012,R,THAMES WATER UTILITIES LTD    
2012 - SEP,CS -Oth Operating Inc & Expend,INVESTMENT PROPERTIES,Wimbledon Park                          ,P05050,Premises Related Expenditure  ,Energy Costs                  ,BB02,Electricity,820,982.61,1/9/2012,R,EDF ENERGY 1 LIMITED          
2012 - SEP,CS -Oth Operating Inc & Expend,INVESTMENT PROPERTIES,Wimbledon Park                          ,P05050,Premises Related Expenditure  ,Energy Costs                  ,BB02,Electricity,821,942.42,7/10/2011,R,EDF ENERGY 1 LIMITED          
2012 - SEP,CS -Oth Operating Inc & Expend,INVESTMENT PROPERTIES,Wimbledon Park                          ,P05050,Premises Related Expenditure  ,Energy Costs                  ,BB02,Electricity,822,687.3,3/28/2011,R,EDF ENERGY 1 LIMITED          
2012 - SEP,CS -Oth Operating Inc & Expend,INVESTMENT PROPERTIES,Wimbledon Park                          ,P05050,Premises Related Expenditure  ,Energy Costs                  ,BB02,Electricity,823,649.33,7/10/2011,R,EDF ENERGY 1 LIMITED          
2012 - SEP,CS -Oth Operating Inc & Expend,INVESTMENT PROPERTIES,Wimbledon Park                          ,P05050,Premises Related Expenditure  ,Energy Costs                  ,BB02,Electricity,824,"1,453.11",9/28/2011,R,EDF ENERGY 1 LIMITED          
2012 - SEP,CS -Oth Operating Inc & Expend,INVESTMENT PROPERTIES,Wimbledon Park                          ,P05050,Premises Related Expenditure  ,Energy Costs                  ,BB02,Electricity,825,-952.71,7/10/2011,R,EDF ENERGY 1 LIMITED          
2012 - SEP,CS -Oth Operating Inc & Expend,INVESTMENT PROPERTIES,Wimbledon Park                          ,P05050,Premises Related Expenditure  ,Energy Costs                  ,BB02,Electricity,826,-687.3,7/10/2011,R,EDF ENERGY 1 LIMITED          
2012 - SEP,CS -Oth Operating Inc & Expend,INVESTMENT PROPERTIES,Wimbledon Park                          ,P05050,Premises Related Expenditure  ,Water Services                ,BE01,Use of Water (Metered),827,"1,836.65",5/9/2012,R,THAMES WATER UTILITIES LTD    
2012 - SEP,CS -Oth Operating Inc & Expend,INVESTMENT PROPERTIES,Wimbledon Park                          ,P05050,Premises Related Expenditure  ,Cleaning and Domestic Supplies,BH03,Cleaning Services,828,"3,096.00",8/31/2012,R,DYNAMIQ CLEANING LIMITED      
2012 - SEP,Cultural Env Reg&Plan Services,Recreation & Sport,Leisure Development                     ,P05068,Third Party Payments          ,Private Contractors           ,EH02,Miscellaneous Hired Services,829,"1,360.00",8/29/2012,R,DEEN CITY FARM                
2012 - SEP,Cultural Env Reg&Plan Services,Recreation & Sport,Leisure Development                     ,P05068,Third Party Payments          ,Private Contractors           ,EH02,Miscellaneous Hired Services,830,"1,440.00",8/28/2012,R,RIDGWAY STABLES               
2012 - SEP,Cultural Env Reg&Plan Services,Open Spaces,NATURE CONSERVATION                     ,P05078,Premises Related Expenditure  ,Ground Maintenance Costs      ,BL50,Nature Conservation,831,"1,250.00",5/9/2012,R,WANDLE TRUST                  
2012 - SEP,Cultural Env Reg&Plan Services,Open Spaces,Mitcham Parks                           ,P05109,Premises Related Expenditure  ,Energy Costs                  ,BB02,Electricity,832,897.1,12/9/2012,R,EDF ENERGY 1 LIMITED          
